Workbook

Sheet GuiadeUso (hidden)
K2: Volver al Panel
E8: GUÍA DE USO - COTIZADOR HOGAR
C10: Este archivo debe usarse con versiones de Excel 2003 en adelante. Además, debe tener instalado el complemento de "Guardar como PDF para Office" en su PC.
C13: Si le apareciera el botón Habilitar Contenido, haga click en el mismo. Luego le aparecerá una ventana en la cual debe seleccionar la opción "Habilitar Macros" y dar click en Aceptar.
C17: REALIZAR COTIZACIÓN
C18: 1. Ud. cuenta con 3 secciones en el cotizador:
C19: (i) Datos del agente
C20: (ii) Datos del cliente
C21: (iii) Información para cotizar
C23: 2 . Los campos de color celeste son obligatorios. Debe llenarlos sino no podrá continuar.
C25: 3. En la sección "Información para cotizar" deberás elegir una opción para cada una de las preguntas establecidas ( tipo de cliente, materia asegurada, modo a asegurar, tipo de vivienda y moneda),
C28: 4.Luego haz click en el botón "Ir a coberturas"
C30: 5.Ingresar las sumas aseguradas de la edificación y/o contenido según lo que se desea asegurar; o hacer uso del valorizador de inmueble si es que el cliente vive en Lima y quiere obtener un valor referencial.
C34: 6.Según las opciones que se hayan elegido en el paso 3, aparecerán coberturas preseleccionadas a manera de sugerencia según el tipo de cliente. Podrás mantener estas coberturas o deseleccionarlas borrando la X o dando doble click en los recuadros. De la misma manera podrás seleccionar cualquier cobertura colocando una X o dando doble click en los recuadros.
C39: 7. Al confirmar coberturas seleccionadas, ir a la parte superior y presionar "Ir al cotizador"
C41: 8. Seleccionar la forma de pago
C43: 9. Para obtener un archivo PDF de la Cotización de Seguro, debe presionar el botón: "COTIZACIÓN EN PDF".
C46: INGRESAR SOLICITUD
C47: 1. Los campos de color celeste son obligatorios. Debe llenarlos sino no podrá continuar.
C48: 2. Ud. cuenta con 6 secciones:
C49: (i) Datos Generales -> Informacion del Asegurado
C50: (ii) Datos Generales -> Informacion del Contratante
C51: (iii) Datos del Negocio (Datos vienen de la hoja Cotizador)
C52: (iv) Declaracion Jurada
C53: (v) Pago de Primas (Datos vienen de la hoja Cotizador)
C54: (vi) Datos del Corredor de Seguros
C55: 3. Para obtener un archivo PDF de la Solicitud de Seguro, debe presionar el botón: "SOLICITUD DE SEGURO EN PDF"
C57: PARA EMISIÓN
C58: 1.- Enviar al buzon emisionrapida@pacifico.com.pe
C59: (I) Solicitud PDF
C60: (ii) Slip de cotizacion
C61: (iii) Información para emisión (afiliación al débito automático)

Sheet Valor referencial m2
J1: Volver al Panel
D2: ="Valor referencial de Inmueble - " & configuracion!$K$2 -> Valor referencial de Inmueble - Enero 2025 | M2: =+CONCATENATE(D5,"-",D6,"-",D7,"-",D8) -> ---
C3: Ingrese los datos en turqueza para obtener el valor referencial del inmueble por Ubigeo y m2 | M3: 3.7
C5: Departamento
C6: Provincia
C7: Distrito
C8: Tipo de inmueble
C10: Metros cuadrados
D12: En soles | E12: =IFERROR(VLOOKUP(M2,'Cálculo valor referencial'!F:G,2,0)*D10,0) -> 0 | G12: En dólares | H12: =+IFERROR(E12/M3,0) -> 0
H13: =CONCATENATE("Tipo de cambio ",TEXT(M3,"0.00")) -> Tipo de cambio 3.70

Sheet Panel
J1: VERSION | K1: =+configuracion!K2 -> Enero 2025
M3: IMPORTANTE , antes de usar el cotizador, debe desbloquearlo así:
M4: 1. Vaya a la ubicación donde descargó el excel y de Click Derecho
M8: 2. Seleccione "Propiedades"
M12: 3. Seleccione "Desbloquear" y luego de click en "Aceptar"

Sheet Cálculo valor referencial (hidden)
A1: DEPARTAMENTO | B1: PROVINCIA | C1: DISTRITO | D1: Tipo de Inmueble | E1: Moneda | F1: Concatenado | G1: M2 en Soles | J1: DEPARTAMENTO | K1: PROVINCIA | L1: DISTRITO | M1: Tipo de Inmueble
A2: Amazonas | B2: Chachapoyas | C2: Chachapoyas | D2: Casa | E2: Soles | F2: =+CONCATENATE(A2,"-",B2,"-",C2,"-",D2) -> Amazonas-Chachapoyas-Chachapoyas-Casa | G2: 2880 | J2: Amazonas | K2: Abancay | L2: Abancay | M2: Casa
A3: Amazonas | B3: Chachapoyas | C3: Chachapoyas | D3: Departamento | E3: Soles | F3: =+CONCATENATE(A3,"-",B3,"-",C3,"-",D3) -> Amazonas-Chachapoyas-Chachapoyas-Departamento | G3: 2520 | J3: Áncash | K3: Arequipa | L3: Ancón | M3: Departamento
A4: Amazonas | B4: Bagua | C4: Bagua | D4: Casa | E4: Soles | F4: Amazonas-Bagua-Bagua-Casa | G4: 2520 | J4: Apurímac | K4: Bagua | L4: Arequipa
A5: Amazonas | B5: Bagua | C5: Bagua | D5: Departamento | E5: Soles | F5: Amazonas-Bagua-Bagua-Departamento | G5: 2160 | J5: Arequipa | K5: Cajamarca | L5: Ate
A6: Áncash | B6: Huaraz | C6: Huaraz | D6: Casa | E6: Soles | F6: Áncash-Huaraz-Huaraz-Casa | G6: 3600 | J6: Ayacucho | K6: Callao | L6: Ayacucho
A7: Áncash | B7: Huaraz | C7: Huaraz | D7: Departamento | E7: Soles | F7: Áncash-Huaraz-Huaraz-Departamento | G7: 3240 | J7: Cajamarca | K7: Chachapoyas | L7: Bagua
A8: Apurímac | B8: Abancay | C8: Abancay | D8: Casa | E8: Soles | F8: Apurímac-Abancay-Abancay-Casa | G8: 2880 | J8: Callao | K8: Chiclayo | L8: Barranco
A9: Apurímac | B9: Abancay | C9: Abancay | D9: Departamento | E9: Soles | F9: Apurímac-Abancay-Abancay-Departamento | G9: 2520 | J9: Cusco | K9: Coronel Portillo | L9: Breña
A10: Arequipa | B10: Arequipa | C10: Arequipa | D10: Casa | E10: Soles | F10: Arequipa-Arequipa-Arequipa-Casa | G10: 5400 | J10: Huancavelica | K10: Cusco | L10: Cajamarca
A11: Arequipa | B11: Arequipa | C11: Arequipa | D11: Departamento | E11: Soles | F11: Arequipa-Arequipa-Arequipa-Departamento | G11: 4680 | J11: Huánuco | K11: Huamanga | L11: Callao
A12: Ayacucho | B12: Huamanga | C12: Ayacucho | D12: Casa | E12: Soles | F12: Ayacucho-Huamanga-Ayacucho-Casa | G12: 3240 | J12: Ica | K12: Huancavelica | L12: Carabayllo
A13: Ayacucho | B13: Huamanga | C13: Ayacucho | D13: Departamento | E13: Soles | F13: Ayacucho-Huamanga-Ayacucho-Departamento | G13: 2880 | J13: Junín | K13: Huancayo | L13: Cerro de Pasco
A14: Cajamarca | B14: Cajamarca | C14: Cajamarca | D14: Casa | E14: Soles | F14: Cajamarca-Cajamarca-Cajamarca-Casa | G14: 2880 | J14: La Libertad | K14: Huánuco | L14: Chachapoyas
A15: Cajamarca | B15: Cajamarca | C15: Cajamarca | D15: Departamento | E15: Soles | F15: Cajamarca-Cajamarca-Cajamarca-Departamento | G15: 2520 | J15: Lambayeque | K15: Huaraz | L15: Chaclacayo
A16: Callao | B16: Callao | C16: Callao | D16: Casa | E16: Soles | F16: Callao-Callao-Callao-Casa | G16: 4320 | J16: Lima | K16: Ica | L16: Chiclayo
A17: Callao | B17: Callao | C17: Callao | D17: Departamento | E17: Soles | F17: Callao-Callao-Callao-Departamento | G17: 3600 | J17: Loreto | K17: Lima | L17: Chorrillos
A18: Cusco | B18: Cusco | C18: Cusco | D18: Casa | E18: Soles | F18: Cusco-Cusco-Cusco-Casa | G18: 4680 | J18: Madre de Dios | K18: Mariscal Nieto | L18: Cieneguilla
A19: Cusco | B19: Cusco | C19: Cusco | D19: Departamento | E19: Soles | F19: Cusco-Cusco-Cusco-Departamento | G19: 3960 | J19: Moquegua | K19: Maynas | L19: Comas
A20: Huancavelica | B20: Huancavelica | C20: Huancavelica | D20: Casa | E20: Soles | F20: Huancavelica-Huancavelica-Huancavelica-Casa | G20: 2520 | J20: Pasco | K20: Moyobamba | L20: Cusco
A21: Huancavelica | B21: Huancavelica | C21: Huancavelica | D21: Departamento | E21: Soles | F21: Huancavelica-Huancavelica-Huancavelica-Departamento | G21: 2160 | J21: Piura | K21: Pasco | L21: El Agustino
A22: Huánuco | B22: Huánuco | C22: Huánuco | D22: Casa | E22: Soles | F22: Huánuco-Huánuco-Huánuco-Casa | G22: 3240 | J22: Puno | K22: Piura | L22: Huancavelica
A23: Huánuco | B23: Huánuco | C23: Huánuco | D23: Departamento | E23: Soles | F23: Huánuco-Huánuco-Huánuco-Departamento | G23: 2880 | J23: San Martín | K23: Puno | L23: Huancayo
A24: Ica | B24: Ica | C24: Ica | D24: Casa | E24: Soles | F24: Ica-Ica-Ica-Casa | G24: 3600 | J24: Tacna | K24: Tacna | L24: Huánuco
A25: Ica | B25: Ica | C25: Ica | D25: Departamento | E25: Soles | F25: Ica-Ica-Ica-Departamento | G25: 3240 | J25: Tumbes | K25: Tambopata | L25: Huaraz
A26: Junín | B26: Huancayo | C26: Huancayo | D26: Casa | E26: Soles | F26: Junín-Huancayo-Huancayo-Casa | G26: 3960 | J26: Ucayali | K26: Trujillo | L26: Ica
A27: Junín | B27: Huancayo | C27: Huancayo | D27: Departamento | E27: Soles | F27: Junín-Huancayo-Huancayo-Departamento | G27: 3600 | K27: Tumbes | L27: Independencia
A28: La Libertad | B28: Trujillo | C28: Trujillo | D28: Casa | E28: Soles | F28: La Libertad-Trujillo-Trujillo-Casa | G28: 4320 | L28: Iquitos
A29: La Libertad | B29: Trujillo | C29: Trujillo | D29: Departamento | E29: Soles | F29: La Libertad-Trujillo-Trujillo-Departamento | G29: 3600 | L29: Jesús María
A30: Lambayeque | B30: Chiclayo | C30: Chiclayo | D30: Casa | E30: Soles | F30: Lambayeque-Chiclayo-Chiclayo-Casa | G30: 3960 | L30: La Molina
A31: Lambayeque | B31: Chiclayo | C31: Chiclayo | D31: Departamento | E31: Soles | F31: Lambayeque-Chiclayo-Chiclayo-Departamento | G31: 3240 | L31: La Victoria
A32: Loreto | B32: Maynas | C32: Iquitos | D32: Casa | E32: Soles | F32: Loreto-Maynas-Iquitos-Casa | G32: 2880 | L32: Lince
A33: Loreto | B33: Maynas | C33: Iquitos | D33: Departamento | E33: Soles | F33: Loreto-Maynas-Iquitos-Departamento | G33: 2520 | L33: Los Olivos
A34: Madre de Dios | B34: Tambopata | C34: Puerto Maldonado | D34: Casa | E34: Soles | F34: Madre de Dios-Tambopata-Puerto Maldonado-Casa | G34: 3240 | L34: Lurigancho
A35: Madre de Dios | B35: Tambopata | C35: Puerto Maldonado | D35: Departamento | E35: Soles | F35: Madre de Dios-Tambopata-Puerto Maldonado-Departamento | G35: 2880 | L35: Lurín
A36: Moquegua | B36: Mariscal Nieto | C36: Moquegua | D36: Casa | E36: Soles | F36: Moquegua-Mariscal Nieto-Moquegua-Casa | G36: 3600 | L36: Magdalena
A37: Moquegua | B37: Mariscal Nieto | C37: Moquegua | D37: Departamento | E37: Soles | F37: Moquegua-Mariscal Nieto-Moquegua-Departamento | G37: 3240 | L37: Miraflores
A38: Pasco | B38: Pasco | C38: Cerro de Pasco | D38: Casa | E38: Soles | F38: Pasco-Pasco-Cerro de Pasco-Casa | G38: 2520 | L38: Moquegua
A39: Pasco | B39: Pasco | C39: Cerro de Pasco | D39: Departamento | E39: Soles | F39: Pasco-Pasco-Cerro de Pasco-Departamento | G39: 2160 | L39: Moyobamba
A40: Piura | B40: Piura | C40: Piura | D40: Casa | E40: Soles | F40: Piura-Piura-Piura-Casa | G40: 3960 | L40: Pachacámac
A41: Piura | B41: Piura | C41: Piura | D41: Departamento | E41: Soles | F41: Piura-Piura-Piura-Departamento | G41: 3240 | L41: Piura
A42: Puno | B42: Puno | C42: Puno | D42: Casa | E42: Soles | F42: Puno-Puno-Puno-Casa | G42: 2880 | L42: Pucallpa
A43: Puno | B43: Puno | C43: Puno | D43: Departamento | E43: Soles | F43: Puno-Puno-Puno-Departamento | G43: 2520 | L43: Pucusana
A44: San Martín | B44: Moyobamba | C44: Moyobamba | D44: Casa | E44: Soles | F44: San Martín-Moyobamba-Moyobamba-Casa | G44: 3240 | L44: Pueblo Libre
A45: San Martín | B45: Moyobamba | C45: Moyobamba | D45: Departamento | E45: Soles | F45: San Martín-Moyobamba-Moyobamba-Departamento | G45: 2880 | L45: Puente Piedra
A46: Tacna | B46: Tacna | C46: Tacna | D46: Casa | E46: Soles | F46: Tacna-Tacna-Tacna-Casa | G46: 3600 | L46: Puerto Maldonado
A47: Tacna | B47: Tacna | C47: Tacna | D47: Departamento | E47: Soles | F47: Tacna-Tacna-Tacna-Departamento | G47: 3240 | L47: Puno
A48: Tumbes | B48: Tumbes | C48: Tumbes | D48: Casa | E48: Soles | F48: Tumbes-Tumbes-Tumbes-Casa | G48: 3960 | L48: Punta Hermosa
A49: Tumbes | B49: Tumbes | C49: Tumbes | D49: Departamento | E49: Soles | F49: Tumbes-Tumbes-Tumbes-Departamento | G49: 3240 | L49: Punta Negra
A50: Ucayali | B50: Coronel Portillo | C50: Pucallpa | D50: Casa | E50: Soles | F50: Ucayali-Coronel Portillo-Pucallpa-Casa | G50: 3240 | L50: Rímac
A51: Ucayali | B51: Coronel Portillo | C51: Pucallpa | D51: Departamento | E51: Soles | F51: Ucayali-Coronel Portillo-Pucallpa-Departamento | G51: 2880 | L51: San Bartolo
A52: Lima | B52: Lima | C52: Miraflores | D52: Casa | E52: Soles | F52: Lima-Lima-Miraflores-Casa | G52: 7200 | L52: San Borja
A53: Lima | B53: Lima | C53: Miraflores | D53: Departamento | E53: Soles | F53: Lima-Lima-Miraflores-Departamento | G53: 6480 | L53: San Isidro
A54: Lima | B54: Lima | C54: San Isidro | D54: Casa | E54: Soles | F54: Lima-Lima-San Isidro-Casa | G54: 7920 | L54: San Juan de Lurigancho
A55: Lima | B55: Lima | C55: San Isidro | D55: Departamento | E55: Soles | F55: Lima-Lima-San Isidro-Departamento | G55: 7200 | L55: San Juan de Miraflores
A56: Lima | B56: Lima | C56: Surco | D56: Casa | E56: Soles | F56: Lima-Lima-Surco-Casa | G56: 6480 | L56: San Luis
A57: Lima | B57: Lima | C57: Surco | D57: Departamento | E57: Soles | F57: Lima-Lima-Surco-Departamento | G57: 5760 | L57: San Martín de Porres
A58: Lima | B58: Lima | C58: San Borja | D58: Casa | E58: Soles | F58: Lima-Lima-San Borja-Casa | G58: 6120 | L58: San Miguel
A59: Lima | B59: Lima | C59: San Borja | D59: Departamento | E59: Soles | F59: Lima-Lima-San Borja-Departamento | G59: 5400 | L59: Santa Anita
A60: Lima | B60: Lima | C60: Jesús María | D60: Casa | E60: Soles | F60: Lima-Lima-Jesús María-Casa | G60: 5400 | L60: Santa María del Mar
A61: Lima | B61: Lima | C61: Jesús María | D61: Departamento | E61: Soles | F61: Lima-Lima-Jesús María-Departamento | G61: 4680 | L61: Santa Rosa
A62: Lima | B62: Lima | C62: Magdalena | D62: Casa | E62: Soles | F62: Lima-Lima-Magdalena-Casa | G62: 5760 | L62: Santiago de Surco
A63: Lima | B63: Lima | C63: Magdalena | D63: Departamento | E63: Soles | F63: Lima-Lima-Magdalena-Departamento | G63: 5040 | L63: Surco
A64: Lima | B64: Lima | C64: Pueblo Libre | D64: Casa | E64: Soles | F64: Lima-Lima-Pueblo Libre-Casa | G64: 5040 | L64: Tacna
A65: Lima | B65: Lima | C65: Pueblo Libre | D65: Departamento | E65: Soles | F65: Lima-Lima-Pueblo Libre-Departamento | G65: 4320 | L65: Trujillo
A66: Lima | B66: Lima | C66: San Miguel | D66: Casa | E66: Soles | F66: Lima-Lima-San Miguel-Casa | G66: 4680 | L66: Tumbes
A67: Lima | B67: Lima | C67: San Miguel | D67: Departamento | E67: Soles | F67: =+CONCATENATE(A67,"-",B67,"-",C67,"-",D67) -> Lima-Lima-San Miguel-Departamento | G67: 3960
A68: Lima | B68: Lima | C68: Independencia | D68: Casa | E68: Soles | F68: Lima-Lima-Independencia-Casa | G68: 4320
A69: Lima | B69: Lima | C69: Independencia | D69: Departamento | E69: Soles | F69: Lima-Lima-Independencia-Departamento | G69: 3600
A70: Lima | B70: Lima | C70: Comas | D70: Casa | E70: Soles | F70: Lima-Lima-Comas-Casa | G70: 3600
A71: Lima | B71: Lima | C71: Comas | D71: Departamento | E71: Soles | F71: Lima-Lima-Comas-Departamento | G71: 2880
A72: Lima | B72: Lima | C72: San Martín de Porres | D72: Casa | E72: Soles | F72: Lima-Lima-San Martín de Porres-Casa | G72: 3240
A73: Lima | B73: Lima | C73: San Martín de Porres | D73: Departamento | E73: Soles | F73: Lima-Lima-San Martín de Porres-Departamento | G73: 2520
A74: Lima | B74: Lima | C74: Carabayllo | D74: Casa | E74: Soles | F74: Lima-Lima-Carabayllo-Casa | G74: 2880
A75: Lima | B75: Lima | C75: Carabayllo | D75: Departamento | E75: Soles | F75: Lima-Lima-Carabayllo-Departamento | G75: 2160
A76: Lima | B76: Lima | C76: Ancón | D76: Casa | E76: Soles | F76: Lima-Lima-Ancón-Casa | G76: 2520
A77: Lima | B77: Lima | C77: Ancón | D77: Departamento | E77: Soles | F77: Lima-Lima-Ancón-Departamento | G77: 1800
A78: Lima | B78: Lima | C78: Ate | D78: Casa | E78: Soles | F78: Lima-Lima-Ate-Casa | G78: 3240
A79: Lima | B79: Lima | C79: Ate | D79: Departamento | E79: Soles | F79: Lima-Lima-Ate-Departamento | G79: 2520
A80: Lima | B80: Lima | C80: Barranco | D80: Casa | E80: Soles | F80: Lima-Lima-Barranco-Casa | G80: 6480
A81: Lima | B81: Lima | C81: Barranco | D81: Departamento | E81: Soles | F81: Lima-Lima-Barranco-Departamento | G81: 5760
A82: Lima | B82: Lima | C82: Breña | D82: Casa | E82: Soles | F82: Lima-Lima-Breña-Casa | G82: 4320
A83: Lima | B83: Lima | C83: Breña | D83: Departamento | E83: Soles | F83: Lima-Lima-Breña-Departamento | G83: 3600
A84: Lima | B84: Lima | C84: Chaclacayo | D84: Casa | E84: Soles | F84: Lima-Lima-Chaclacayo-Casa | G84: 2880
A85: Lima | B85: Lima | C85: Chaclacayo | D85: Departamento | E85: Soles | F85: Lima-Lima-Chaclacayo-Departamento | G85: 2160
A86: Lima | B86: Lima | C86: Chorrillos | D86: Casa | E86: Soles | F86: Lima-Lima-Chorrillos-Casa | G86: 4680
A87: Lima | B87: Lima | C87: Chorrillos | D87: Departamento | E87: Soles | F87: Lima-Lima-Chorrillos-Departamento | G87: 3960
A88: Lima | B88: Lima | C88: Cieneguilla | D88: Casa | E88: Soles | F88: Lima-Lima-Cieneguilla-Casa | G88: 2520
A89: Lima | B89: Lima | C89: Cieneguilla | D89: Departamento | E89: Soles | F89: Lima-Lima-Cieneguilla-Departamento | G89: 1800
A90: Lima | B90: Lima | C90: El Agustino | D90: Casa | E90: Soles | F90: Lima-Lima-El Agustino-Casa | G90: 3600
A91: Lima | B91: Lima | C91: El Agustino | D91: Departamento | E91: Soles | F91: Lima-Lima-El Agustino-Departamento | G91: 2880
A92: Lima | B92: Lima | C92: La Molina | D92: Casa | E92: Soles | F92: Lima-Lima-La Molina-Casa | G92: 7200
A93: Lima | B93: Lima | C93: La Molina | D93: Departamento | E93: Soles | F93: Lima-Lima-La Molina-Departamento | G93: 6480
A94: Lima | B94: Lima | C94: La Victoria | D94: Casa | E94: Soles | F94: Lima-Lima-La Victoria-Casa | G94: 4320
A95: Lima | B95: Lima | C95: La Victoria | D95: Departamento | E95: Soles | F95: Lima-Lima-La Victoria-Departamento | G95: 3600
A96: Lima | B96: Lima | C96: Lince | D96: Casa | E96: Soles | F96: Lima-Lima-Lince-Casa | G96: 5400
A97: Lima | B97: Lima | C97: Lince | D97: Departamento | E97: Soles | F97: Lima-Lima-Lince-Departamento | G97: 4680
A98: Lima | B98: Lima | C98: Los Olivos | D98: Casa | E98: Soles | F98: Lima-Lima-Los Olivos-Casa | G98: 3960
A99: Lima | B99: Lima | C99: Los Olivos | D99: Departamento | E99: Soles | F99: Lima-Lima-Los Olivos-Departamento | G99: 3240
A100: Lima | B100: Lima | C100: Lurigancho | D100: Casa | E100: Soles | F100: Lima-Lima-Lurigancho-Casa | G100: 2880
A101: Lima | B101: Lima | C101: Lurigancho | D101: Departamento | E101: Soles | F101: Lima-Lima-Lurigancho-Departamento | G101: 2160
A102: Lima | B102: Lima | C102: Lurín | D102: Casa | E102: Soles | F102: Lima-Lima-Lurín-Casa | G102: 3240
A103: Lima | B103: Lima | C103: Lurín | D103: Departamento | E103: Soles | F103: Lima-Lima-Lurín-Departamento | G103: 2520
A104: Lima | B104: Lima | C104: Pachacámac | D104: Casa | E104: Soles | F104: Lima-Lima-Pachacámac-Casa | G104: 2880
A105: Lima | B105: Lima | C105: Pachacámac | D105: Departamento | E105: Soles | F105: Lima-Lima-Pachacámac-Departamento | G105: 2160
A106: Lima | B106: Lima | C106: Pucusana | D106: Casa | E106: Soles | F106: Lima-Lima-Pucusana-Casa | G106: 2520
A107: Lima | B107: Lima | C107: Pucusana | D107: Departamento | E107: Soles | F107: Lima-Lima-Pucusana-Departamento | G107: 1800
A108: Lima | B108: Lima | C108: Puente Piedra | D108: Casa | E108: Soles | F108: Lima-Lima-Puente Piedra-Casa | G108: 3600
A109: Lima | B109: Lima | C109: Puente Piedra | D109: Departamento | E109: Soles | F109: Lima-Lima-Puente Piedra-Departamento | G109: 2880
A110: Lima | B110: Lima | C110: Punta Hermosa | D110: Casa | E110: Soles | F110: Lima-Lima-Punta Hermosa-Casa | G110: 4320
A111: Lima | B111: Lima | C111: Punta Hermosa | D111: Departamento | E111: Soles | F111: Lima-Lima-Punta Hermosa-Departamento | G111: 3600
A112: Lima | B112: Lima | C112: Punta Negra | D112: Casa | E112: Soles | F112: Lima-Lima-Punta Negra-Casa | G112: 3960
A113: Lima | B113: Lima | C113: Punta Negra | D113: Departamento | E113: Soles | F113: Lima-Lima-Punta Negra-Departamento | G113: 3240
A114: Lima | B114: Lima | C114: Rímac | D114: Casa | E114: Soles | F114: Lima-Lima-Rímac-Casa | G114: 4680
A115: Lima | B115: Lima | C115: Rímac | D115: Departamento | E115: Soles | F115: Lima-Lima-Rímac-Departamento | G115: 3960
A116: Lima | B116: Lima | C116: San Bartolo | D116: Casa | E116: Soles | F116: Lima-Lima-San Bartolo-Casa | G116: 4320
A117: Lima | B117: Lima | C117: San Bartolo | D117: Departamento | E117: Soles | F117: Lima-Lima-San Bartolo-Departamento | G117: 3600
A118: Lima | B118: Lima | C118: San Juan de Lurigancho | D118: Casa | E118: Soles | F118: Lima-Lima-San Juan de Lurigancho-Casa | G118: 3240
A119: Lima | B119: Lima | C119: San Juan de Lurigancho | D119: Departamento | E119: Soles | F119: Lima-Lima-San Juan de Lurigancho-Departamento | G119: 2520
A120: Lima | B120: Lima | C120: San Juan de Miraflores | D120: Casa | E120: Soles | F120: Lima-Lima-San Juan de Miraflores-Casa | G120: 3600
A121: Lima | B121: Lima | C121: San Juan de Miraflores | D121: Departamento | E121: Soles | F121: Lima-Lima-San Juan de Miraflores-Departamento | G121: 2880
A122: Lima | B122: Lima | C122: San Luis | D122: Casa | E122: Soles | F122: Lima-Lima-San Luis-Casa | G122: 3960
A123: Lima | B123: Lima | C123: San Luis | D123: Departamento | E123: Soles | F123: Lima-Lima-San Luis-Departamento | G123: 3240
A124: Lima | B124: Lima | C124: Santa Anita | D124: Casa | E124: Soles | F124: Lima-Lima-Santa Anita-Casa | G124: 3600
A125: Lima | B125: Lima | C125: Santa Anita | D125: Departamento | E125: Soles | F125: Lima-Lima-Santa Anita-Departamento | G125: 2880
A126: Lima | B126: Lima | C126: Santa María del Mar | D126: Casa | E126: Soles | F126: Lima-Lima-Santa María del Mar-Casa | G126: 4680
A127: Lima | B127: Lima | C127: Santa María del Mar | D127: Departamento | E127: Soles | F127: Lima-Lima-Santa María del Mar-Departamento | G127: 3960
A128: Lima | B128: Lima | C128: Santa Rosa | D128: Casa | E128: Soles | F128: Lima-Lima-Santa Rosa-Casa | G128: 3240
A129: Lima | B129: Lima | C129: Santa Rosa | D129: Departamento | E129: Soles | F129: Lima-Lima-Santa Rosa-Departamento | G129: 2520
A130: Lima | B130: Lima | C130: Santiago de Surco | D130: Casa | E130: Soles | F130: Lima-Lima-Santiago de Surco-Casa | G130: 6480
A131: Lima | B131: Lima | C131: Santiago de Surco | D131: Departamento | E131: Soles | F131: =+CONCATENATE(A131,"-",B131,"-",C131,"-",D131) -> Lima-Lima-Santiago de Surco-Departamento | G131: 5760

Sheet Cotizador
A1: 0 | G1: ="Cotizador de Hogar Flex - " & configuracion!$K$2 -> Cotizador de Hogar Flex - Enero 2025 | L1: Volver al Panel
B6: Fecha de la cotización | G6: =TODAY() -> 2025-03-25 | J6: Fecha Inicio de Vigencia
B8: Datos del Agente
B10: Agente | G10: Corredor | K10: Código del Agente | O10: Nombre del Agente
B12: Datos del Cliente
B14: Tipo de Documento*: | K14: Nro Documento:
B15: Nombre / Razón Social*: | K15: Apellido Paterno: | Q15: Apellido Materno:
B16: E-mail
B17: Teléfono
B18: Celular
B20: Información para cotizar
B22: Dirección exacta del riesgo:
B23: Nro | W23: Nota
B24: Dpto | J24: Urbanización | W24: Para seleccionar o deseleccionar las opciones, dar doble click en los recuadros. NO ESCRIBIR NI BORRAR.
B25: Distrito | J25: Mza/Lt | W25: La sección de coberturas se mostrará una vez se seleccione: lo que se desea cotizar,
B26: Provincia | J26: Departamento | W26: el modo de aseguramiento y la moneda.
B27: Tipo de Cliente
B29: ¿Qué desea cotizar? | J29: Bienes | M29: Inmueble + Bienes
B31: Elige el modo a asegurar | J31: A valor total
B33: Tipo de Vivienda
B34: Casa
B35: Departamento
B37: Moneda | J37: Dólares
B38: Valor Declarado Inmueble
B39: Valor Declarado Bienes | J39: Descuento | M39: Descuento
B40: Suma Asegurada del Inmueble | M40: 0
B41: Suma Asegurada de Bienes
B42: Total | G42: =SUM(G40:G41) -> 0
B43: Límite asegurado por vigencia
E49: Confirmo que el inmueble: tiene menos de 50 años de construido o remodelado, el material de construcción es de concreto armado o mampostería y/o acero metálico y además está ubicado a más de 500 metros de distancia del mar, río, laguna, lago y a más de 15 metros de altura de alguno de estos.
C50: X
E52: ="Descuento de " & TEXT(configuracion!$BH$2,"0%") & " de descuento por afiliación al débito automático y emisión de póliza electrónica (respetando prima mínima)" -> Descuento de 0% de descuento por afiliación al débito automático y emisión de póliza electrónica (respetando prima mínima)
C53: SI
F54: Prima comercial
F55: 18% Igv
F56: Prima total
B59: Formas de pago | I59: Marcar
B60: Débito automático | C60: No olvides llenar el formato de débito automático | I60: con una X
B61: Al contado. Prima Comercial + IGV: | J61: =IF($I$61="X",$G$56,"-.-") -> -.-
B62: 4 cuotas sin intereses + IGV Sin Intereses: | J62: =IF($I$62="X",$G$56/4,"-.-") -> -.-
B63: 6 cuotas Prima Comercial + IGV Sin Intereses: | J63: =IF($I$63="X",$G$56/6,"-.-") -> -.-
B64: 12 cuotas Prima Comercial + IGV Sin Intereses: | J64: =IF($I$64="X",$G$56/12,"-.-") -> -.-
B65: Cupones
B66: Contado 1 cupón Prima Comercial + IGV Sin Intereses: | J66: =IF($I$66="X",$G$56,"-.-") -> -.-
B67: 4 cupones Prima Comercial + IGV Sin Intereses: | J67: =IF($I$67="X",$G$56/4,"-.-") -> -.-
B68: 6 cupones Prima Comercial + IGV con 17.5% de interes: | J68: =IF($I$68="X",$G$56*tasasCupones!$C$18,"-.-") -> -.-
B71: Consideraciones :
E72: - La modalidad de aseguramiento que brinda este plan de seguros es a primer riesgo absoluto y se deja expresa constancia que nuestro límite máximo de responsabilidad es hasta el valor que usted determinó como Suma Asegurada, pudiendo ser esta un valor inferior al valor total del Inmueble y/o bien. No se aplicará INFRASEGURO.
E73: - La forma de entrega de la póliza es electrónica o física.
E74: - La forma de pago de la póliza es con afiliación al débito automático a una tarjeta de crédito o a una cuenta bancaria o cupones.
E75: - Las asistencias de mascotas son válidas solo para Lima Metropolitana y por el primer año de vigencia de la póliza.
E76: - La cobertura principal comprende además cualquier otro riesgo, súbito e imprevisto, que no esté excluido explícitamente en las exclusiones de las Condiciones Generales y/o Cláusulas Adicionales de la Póliza.
E77: - Las coberturas señaladas en Coberturas Adicionales forman parte de la suma asegurada de la Cobertura Principal, es decir, cada indemnización que le paguemos por las coberturas adicionales, reducirá la suma asegurada de la cobertura principal, a excepción de la cobertura adicional Responsabilidad civil frente a terceros, la cual es independiente a la suma asegurada de la cobertura principal.
E78: - La cobertura de la póliza en cuanto a pérdida o daños causados por agua que inunde, descargue o derrame de cualquier instalación de agua o desagüe de otros elementos líquidos; no comprenderá el costo de reparar el desperfecto que originó tal pérdida o daño.
E79: - Este seguro no otorga cobertura cuando en el inmueble se realiza cualquier actividad o giro comercial diferente al de casa habitación.
E80: - Este seguro se renovará automáticamente, es decir, en las mismas condiciones vigentes en el periodo anterior.
E81: - Para la cobertura de Robo y/o daños por intento de robo de Joyas y platería se define lo siguiente: Objetos y/o adornos de uso personal elaborados en oro, plata, platino, perlas y que pueden llevar o no incrustadas piedras preciosas de origen biológico o mineral, tanto si están engastadas como si no. También se considera a cualquier objeto ornamental o de uso doméstico elaborado con los materiales enumerados en el párrafo anterior.
E82: - El ASEGURADO deberá presentar una relación detallada, a ser actualizada mínimo cada dos años, de los bienes cuyo valor unitario excedan los S/ 5,000. En caso de siniestro, esta relación de bienes es el sustento de la pre-existencia de cada bien declarado. En caso de no cumplir con lo anterior o para bienes afectados no incluidos en la relación presentada, el Asegurado deberá demostrarnos la pre-existencia de los bienes afectados en el siniestro, a través de comprobantes de pago y/o constancia visual (fotografías, video, manuales de uso o similares) en donde se muestre el artículo en el interior del Inmueble asegurado o a la persona usando dicho artículo.
E83: - En caso de robo: Se mantiene la exigencia de la denuncia policial, pero se manejará a discreción cada caso hasta por un monto máximo de siniestro de S/ 30,000, siniestros por encima de este monto deberán presentar denuncia policial de manera obligatoria.
E84: - Las asistencias están disponibles los 365 días del año en las siguientes ciudades:
E85: · Lima Metropolitana exceptuando Ancón, Punta Hermosa, San Bartolo, Santa María y Pucusana.
E86: · Trujillo: En los distritos de Trujillo, Victor Larco, Moche y Huanchaco.
E87: · Chiclayo: En los distritos de Chiclayo, La Victoria, José Leonardo Ortiz, Pimentel.
E88: · Piura: En los distritos de Piura, Castilla, Catacaos.
E89: · Arequipa: En los distritos de Arequipa (Cercado), Yanahuara, Cayma, Sachaca, José Luis Bustamante y Rivero, Cerro Colorado.
E90: · Cusco: En los distritos de Cusco, San Jerónimo, San Sebastián, Santiago, Wanchaq.
E91: Aplican y deben aparecer tanto para a primer riesgo como para valor total
B93: Exclusiones:
E94: Tenga en cuenta que no pagaremos la reparación del desperfecto ni del bien que originó el daño, como tampoco ninguna pérdida o daño proveniente o que sean causa de, o en conexión con, o atribuibles principalmente a:
E95: a) Dolo, culpa grave o negligencia inexcusable del CONTRATANTE o de USTED y/o del BENEFICIARIO y/o ENDOSATARIO o de los familiares de cualquiera de ellos, o de sus dependientes, especialmente de los responsables de la seguridad de los BIENES asegurados.
E96: b) Guerra, Guerra Civil, invasión, acto de enemigo extranjero, hostilidades u operaciones de guerra, declarada o no.
E97: c) Desgaste o deterioro paulatino o fatiga de material, causado por, o resultado de, el uso y funcionamiento del bien; uso o deterioro gradual; deficiencias de rendimiento o capacidad; polución, contaminación; corrosión, erosión; herrumbre u oxidación; hongos, moho húmedo o seco, combustión espontánea, fermentación; humedad, sequedad, smog o cambios de temperatura; asentamiento o contracción o expansión de edificios o cimientos; la calefacción o la desecación a que hubieran sido sometidos los objetos que forman parte de la Materia Asegurada.
E98: d) Hundimientos, desplazamientos, agrietamientos o asentamientos de muros, pisos, techos, pavimentos, cimientos, muros de contención. Sin embargo, si estos daños son causados por los eventos de Terremoto, Temblor, Erupción Volcánica o Maremoto para los cuales se haya contratado amparo bajo la presente póliza, no se aplicará esta exclusión.
E99: e) Todo gasto o costo para implementar modificaciones o mejoras, o por mantenimiento, o para hacer otras reparaciones o arreglos, en el INMUEBLE y/o BIENES dañados o afectados; así como los gastos o costos de cualquier reparación provisional, a menos que constituyan, a la vez, parte de los gastos de la reparación definitiva amparada por la póliza.
E100: f) Valor atribuido a los BIENES por razones sentimentales o simbólicas, por afición, por antigüedad, o por exclusividad.
E101: g) Pérdida o daño ocurrido cuando el INMUEBLE esté deshabitado y/o cuando los BIENES se hallen en el INMUEBLE deshabitado; en ambos casos durante más de noventa (90) días consecutivos.
E102: Las demás exclusiones se encuentran en el acápite 3 de las Condiciones Generales de la Póliza. Aplican exclusiones específicas a la cobertura que se contrate, detalladas en su respectiva Cláusula Adicional.
E103: Bienes excluidos:
E104: a) INMUEBLE y/o BIENES con cualquier actividad o giro diferente al de casa habitación.
E105: b) Animales vivos de cualquier tipo.
E106: c) Plantaciones, cultivos, cosechas de cualquier tipo, invernaderos, bosques, selvas, monte bajo, praderas, pampas, árboles, parques, prados, jardines naturales y ornamentales, agua.
E107: d) INMUEBLES y/o BIENES en proceso de construcción, reconstrucción, montaje o desmontaje.
E108: e) Vehículos motorizados con una placa de rodaje, equipos flotantes o submarinos, aeronaves o artefactos aéreos, embarcaciones, naves acuáticas; de cualquier tipo y tamaño.
E109: f) BIENES de cualquier tipo que sean propiedad de terceros aun cuando dichos BIENES se encuentren bajo custodia y/o posesión del Asegurado.
E110: g) Material pirotécnico, explosivos, combustibles, mechas, fulminantes, detonadores y similares.
E111: h) BIENES situados o instalados u operando o trabajando o siendo usados en él, o a las orillas del, mar, río, lago o laguna, en subterráneos, o debajo del nivel de la superficie terrestre.
E112: i) Dinero en efectivo, títulos valores.
E113: j) Cualquier tipo de contenido o bien para fines comerciales, de la profesión u ocupación o de negocios de USTED, de cualquier miembro de su familia, por medio de los cuales obtengan un lucro.

Sheet configuracion (hidden)
D1: FLEX | H1: Ir a Panel | K1: VERSION | M1: Password | O1: celdas del Cotizador desbloqueadas | S1: VALOR TOTAL INMUEBLE | U1: VALOR TOTAL BIENES | W1: VALOR TOTAL INMUEBLE +BIENES | Y1: PRIMER RIESGO INMUEBLE | AA1: PRIMER RIESGO BIENES | AC1: PRIMER RIESGO INMUEBLE+BIENES | AD1: <- CELDAS DESBLOQUEADAS -> | AE1: IngresoSolicitud | AK1: Tipo de Cliente | AN1: ¿Qué desea cotizar? | AP1: Plan Unico para Paquete | AQ1: Elige el modo a asegurar | AT1: Tipo de Vivienda | AW1: Moneda | BA1: Provincia | BB1: Distrito | BC1: Tipo de Inmueble | BD1: Dólares | BE1: Soles | BH1: Descuento | BL1: COBERTURAS X DEFAULT | BM1: . | BP1: A valor total_Inmueble | BV1: A valor total_Bienes | CB1: A valor total_Inmueble + Bienes | CI1: A primer riesgo absoluto_Inmueble | CO1: A primer riesgo absoluto_Bienes | CU1: A primer riesgo absoluto_Inmueble + Bienes | DC1: Condiciones Descuentos por Sumas Aseguradas | DD1: DOLARES | DE1: DOLARES | DG1: Condiciones Descuentos por Sumas Aseguradas | DH1: SOLES | DI1: SOLES | DK1: SA Menor a $ 500K Sin Descuento | DL1: SA Desde $ 500K Hasta $750K 5%. - 10% | DM1: SA Desde $ 750K Hasta $ 1M 15% - 20% | DN1: SA Mayor a $1M 20% - 25% | DO1: Hasta 15% - para corredores
D2: VARIABLES DE CONFIGURACIÓN | K2: Enero 2025 | M2: pacifico | O2: 1 | P2: 'Fecha Inicio de Vigencia | Q2: L6 | S2: E3 | U2: E3 | W2: E3:E4 | Y2: E3 | AA2: E3 | AC2: E3:E4 | AE2: H11 | AF2: Contratante | AK2: Es dueño y vive en su hogar | AN2: Inmueble | AP2: SI | AQ2: A primer riesgo absoluto | AT2: Casa | AW2: Soles | BA2: Cañete | BB2: ASIA | BC2: CASA | BD2: 550 | BE2: 1650 | BH2: 0 | BL2: . -> NOTA -> INCENDIO ESTÁ PREMARCADA Y BLOQUEADA PARA TODAS | BM2: . | BP2: Prima Mínima USD | BQ2: Prima Mínima S/ | BV2: Prima Mínima USD | BW2: Prima Mínima S/ | CB2: Prima Mínima USD | CC2: Prima Mínima S/ | CI2: Prima Mínima USD | CJ2: Prima Mínima S/ | CO2: Prima Mínima USD | CP2: Prima Mínima S/ | CU2: Prima Mínima USD | CV2: Prima Mínima S/ | DC2: No aplica descuento | DD2: 200000 | DG2: No aplica descuento | DH2: =DD2*3 -> 600000 | DK2: 0 | DL2: 0 | DM2: 0 | DN2: 0 | DO2: 0
H3: Nota Importante | O3: 2 | P3: 'Código del Agente | Q3: M10:N10 | S3: B14:B15 | U3: B14 | W3: B14:B15 | Y3: B14:B15 | AA3: B14 | AC3: B14:B15 | AE3: D13:K13 | AF3: NUMERO DNI | AK3: Es dueño y alquila su vivienda | AN3: Inmueble + Bienes | AP3: A primer riesgo absoluto | AQ3: A valor total | AT3: Departamento | AW3: Dólares | BA3: Cañete | BB3: ASIA | BC3: DEPARTAMENTO | BD3: 1180 | BE3: 3540 | BM3: . | BO3: INCENDIO | BP3: 60.77 | BQ3: 182.31 | BR3: COBERTURAS (solo INMUEBLE) | BU3: INCENDIO | BV3: 60.77 | BW3: 182.31 | BX3: COBERTURAS (solo BIENES) | CA3: INCENDIO | CB3: 60.77 | CC3: 182.31 | CD3: COBERTURAS (INMUEBLE Y BIENES) | CH3: INCENDIO | CI3: 60.77 | CJ3: 182.31 | CK3: COBERTURAS (solo INMUEBLE) | CN3: INCENDIO | CO3: 60.77 | CP3: 182.31 | CQ3: COBERTURAS (solo BIENES) | CT3: INCENDIO | CU3: 60.77 | CV3: 182.31 | CW3: COBERTURAS (INMUEBLE Y BIENES) | DC3: Aplica hasta descuento 10% | DD3: 200000 | DE3: 500000 | DG3: Aplica hasta descuento 10% | DH3: =DD3*3 -> 600000 | DI3: 1500000 | DL3: 0.05 | DM3: 0.05 | DN3: 0.05 | DO3: 0.05
D4: Asesor / Corredor | E4: Corredor | H4: La contraseña se camba solamente | O4: 3 | P4: 'Nombre del Agente" | Q4: R10:W10 | S4: B16:B17 | U4: B15 | W4: B16:B17 | Y4: B16:B17 | AA4: B15 | AC4: B16:B17 | AE4: N11 | AF4: Contratante | AK4: Vive en casa o departamento alquilado | AN4: Bienes | BA4: Cañete | BB4: CAÑETE - CHILCA | BC4: CASA | BD4: 390 | BE4: 1170 | BL4: Sub iraCoberturas() | BM4: . | BO4: ROBO | BP4: 60.77 | BQ4: 182.31 | BR4: Cobertura principal | BU4: ROBO | BV4: 60.77 | BW4: 182.31 | BX4: Cobertura principal | CA4: ROBO | CB4: 60.77 | CC4: 182.31 | CD4: Cobertura principal | CH4: ROBO | CI4: 60.77 | CJ4: 182.31 | CK4: Cobertura principal | CN4: ROBO | CO4: 60.77 | CP4: 182.31 | CQ4: Cobertura principal | CT4: ROBO | CU4: 60.77 | CV4: 182.31 | CW4: Cobertura principal | DC4: Aplica hasta descuento 20% | DD4: 750000 | DE4: 1000000 | DG4: Aplica hasta descuento 20% | DH4: 2250000 | DI4: 3000000 | DL4: 0.06 | DM4: 0.1 | DN4: 0.1 | DO4: 0.1
H5: utilizando el botón | O5: 4 | P5: 'Tipo de Documento*: | Q5: G14 | S5: B18 | U5: B16:B17 | W5: B18:B19 | Y5: B18 | AA5: B16:B17 | AC5: B18:B19 | AE5: N13:X13 | AF5: NUMERO RUC | BA5: Cañete | BB5: CAÑETE - MALA | BC5: CASA | BD5: 460 | BE5: 1380 | BL5: ActiveSheet.Cells(1, 1).Select | BM5: . | BP5: =IF('VALOR TOTAL INMUEBLE'!B12=0,"",'VALOR TOTAL INMUEBLE'!B12) -> X | BR5: Incendio y/o rayo, explosión, incendio en aparatos eléctricos. Daños por agua, daños por humo, impacto de vehículos y/o aeronaves o daños por riesgos políticos y sociales | BV5: =IF('VALOR TOTAL BIENES'!B12=0,"",'VALOR TOTAL BIENES'!B12) -> X | BX5: Incendio y/o rayo, explosión, incendio en aparatos eléctricos. Daños por agua, daños por humo, impacto de vehículos y/o aeronaves o daños por riesgos políticos y sociales | CB5: =IF('VALOR TOTAL INMUEBLE +BIENES'!B12=0,"",'VALOR TOTAL INMUEBLE +BIENES'!B12) -> X | CD5: Incendio y/o rayo, explosión, incendio en aparatos eléctricos. Daños por agua, daños por humo, impacto de vehículos y/o aeronaves o daños por riesgos políticos y sociales | CI5: =IF('PRIMER RIESGO INMUEBLE'!B12=0,"",'PRIMER RIESGO INMUEBLE'!B12) -> X | CK5: Incendio y/o rayo, explosión, incendio en aparatos eléctricos. Daños por agua, daños por humo, impacto de vehículos y/o aeronaves o daños por riesgos políticos y sociales | CO5: =IF('PRIMER RIESGO BIENES'!B12=0,"",'PRIMER RIESGO BIENES'!B12) -> X | CQ5: Incendio y/o rayo, explosión, incendio en aparatos eléctricos. Daños por agua, daños por humo, impacto de vehículos y/o aeronaves o daños por riesgos políticos y sociales | CU5: =IF('PRIMER RIESGO INMUEBLE+BIENES'!B12=0,"",'PRIMER RIESGO INMUEBLE+BIENES'!B12) -> X | CW5: Incendio y/o rayo, explosión, incendio en aparatos eléctricos. Daños por agua, daños por humo, impacto de vehículos y/o aeronaves o daños por riesgos políticos y sociales | DC5: Aplica hasta descuento 25% | DD5: 1000000 | DG5: Aplica hasta descuento 25% | DH5: =DD5*3 -> 3000000 | DL5: 0.07 | DM5: 0.15 | DN5: 0.15 | DO5: 0.11
O6: 5 | P6: 'Nombre / Razón Social*: | Q6: G15:J15 | S6: B19 | U6: B18 | W6: B20 | Y6: B19 | AA6: B18 | AC6: B20 | AE6: AC13:AE13 | AF6: Otro (indicar tipo y número) | BA6: Cañete | BB6: CAÑETE - SAN ANTONIO | BC6: CASA | BD6: 550 | BE6: 1650 | BM6: . | BR6: Coberturas adicionales | BX6: Coberturas adicionales | CD6: Coberturas adicionales | CK6: Coberturas adicionales | CQ6: Coberturas adicionales | CW6: Coberturas adicionales | DC6: Aplica hasta descuento 15% | DD6: 500000 | DE6: 750000 | DG6: Aplica hasta descuento 15% | DH6: =DD6*3 -> 1500000 | DI6: =DE6*3 -> 2250000 | DL6: 0.08 | DM6: 0.16 | DN6: 0.2 | DO6: 0.12
O7: 6 | P7: 'E-mail | Q7: G16:J16 | S7: B20 | U7: B19 | W7: B21 | Y7: B20 | AA7: B19 | AC7: B21 | AE7: I15:AE15 | AF7: Nombre / Razon Social | BA7: Lima | BB7: ATE VITARTE | BC7: CASA | BD7: 610 | BE7: 1830 | BL7: Dim rowtarget As Double | BM7: . | BP7: =IF('VALOR TOTAL INMUEBLE'!B14=0,"",'VALOR TOTAL INMUEBLE'!B14) ->  | BR7: Terremoto, temblor, maremoto, Inundaciones y riesgos de la naturaleza | BV7: =IF(IF('VALOR TOTAL BIENES'!B14=0,"",'VALOR TOTAL BIENES'!B14)="X","Robo","") ->  | BX7: Robo y/o daños por intento de robo (dentro y fuera de la vivienda a nivel nacional) | CB7: =IF('VALOR TOTAL INMUEBLE +BIENES'!B14=0,"",'VALOR TOTAL INMUEBLE +BIENES'!B14) -> X | CD7: Terremoto, temblor, maremoto, Inundaciones y riesgos de la naturaleza | CI7: =IF('PRIMER RIESGO INMUEBLE'!B14=0,"",'PRIMER RIESGO INMUEBLE'!B14) ->  | CK7: Terremoto, temblor, maremoto, Inundaciones y riesgos de la naturaleza | CO7: =IF(IF('PRIMER RIESGO BIENES'!B14=0,"",'PRIMER RIESGO BIENES'!B14)="X","Robo","") ->  | CQ7: Robo y/o daños por intento de robo (dentro y fuera de la vivienda a nivel nacional) | CU7: =IF('PRIMER RIESGO INMUEBLE+BIENES'!B14=0,"",'PRIMER RIESGO INMUEBLE+BIENES'!B14) -> X | CW7: Terremoto, temblor, maremoto, Inundaciones y riesgos de la naturaleza | DL7: 0.09 | DM7: 0.17 | DN7: 0.21 | DO7: 0.13
O8: 7 | P8: 'Teléfono | Q8: G17:J17 | S8: B21 | U8: B21 | W8: B22 | Y8: B21 | AA8: B21 | AC8: B22 | AE8: H16:T16 | AF8: Apellido Paterno | BA8: Lima | BB8: ATE VITARTE | BC8: DEPARTAMENTO | BD8: 1110 | BE8: 3330 | BL8: Dim columntarget As Double | BM8: . | BP8: =IF('VALOR TOTAL INMUEBLE'!B15=0,"",'VALOR TOTAL INMUEBLE'!B15) ->  | BV8: =IF(IF('VALOR TOTAL BIENES'!B15=0,"",'VALOR TOTAL BIENES'!B15)="X","Robo","") ->  | BX8: Robo y/o daños por intento de robo de joyas, platería, relojes, obras de arte, cámaras fotográficas o de video, laptops y bicicletas dentro de la vivienda o que estén siendo portados fuera de la vivienda | CB8: =IF('VALOR TOTAL INMUEBLE +BIENES'!B15=0,"",'VALOR TOTAL INMUEBLE +BIENES'!B15) ->  | CI8: =IF('PRIMER RIESGO INMUEBLE'!B15=0,"",'PRIMER RIESGO INMUEBLE'!B15) ->  | CO8: =IF(IF('PRIMER RIESGO BIENES'!B15=0,"",'PRIMER RIESGO BIENES'!B15)="X","Robo","") ->  | CQ8: Robo y/o daños por intento de robo de joyas, platería, relojes, obras de arte, cámaras fotográficas o de video, laptops y bicicletas dentro de la vivienda o que estén siendo portados fuera de la vivienda | CU8: =IF('PRIMER RIESGO INMUEBLE+BIENES'!B15=0,"",'PRIMER RIESGO INMUEBLE+BIENES'!B15) ->  | DL8: 0.1 | DM8: 0.18 | DN8: 0.22 | DO8: 0.14
O9: 8 | P9: 'Celular" | Q9: G18:J18 | S9: B22 | U9: F15 | W9: B23 | Y9: B22 | AA9: F15 | AC9: B23 | AE9: Z16:AE16 | AF9: Apellido Materno | BA9: Lima | BB9: BARRANCO | BC9: CASA | BD9: 765 | BE9: 2295 | BM9: . | BP9: =IF('VALOR TOTAL INMUEBLE'!B16=0,"",'VALOR TOTAL INMUEBLE'!B16) ->  | BR9: Responsabilidad civil frente a terceros | BV9: =IF('VALOR TOTAL BIENES'!B16=0,"",'VALOR TOTAL BIENES'!B16) ->  | BX9: Terremoto, temblor, maremoto, Inundaciones y riesgos de la naturaleza | CB9: =IF('VALOR TOTAL INMUEBLE +BIENES'!B16=0,"",'VALOR TOTAL INMUEBLE +BIENES'!B16) -> X | CD9: Responsabilidad civil frente a terceros | CI9: =IF('PRIMER RIESGO INMUEBLE'!B16=0,"",'PRIMER RIESGO INMUEBLE'!B16) ->  | CK9: Responsabilidad civil frente a terceros | CO9: =IF('PRIMER RIESGO BIENES'!B16=0,"",'PRIMER RIESGO BIENES'!B16) ->  | CQ9: Terremoto, temblor, maremoto, Inundaciones y riesgos de la naturaleza | CU9: =IF('PRIMER RIESGO INMUEBLE+BIENES'!B16=0,"",'PRIMER RIESGO INMUEBLE+BIENES'!B16) -> X | CW9: Responsabilidad civil frente a terceros | DM9: 0.19 | DN9: 0.23 | DO9: 0.15
O10: 9 | P10: 'Nro Documento: | Q10: M14 | S10: B24 | W10: B24 | Y10: B24 | AC10: B24 | AE10: E18 | AF10: Sexo | BA10: Lima | BB10: BARRANCO | BC10: DEPARTAMENTO | BD10: 2545 | BE10: 7635 | BL10: Dim TipodeCliente As String | BM10: . | BP10: =IF('VALOR TOTAL INMUEBLE'!B17=0,"",'VALOR TOTAL INMUEBLE'!B17) ->  | BV10: =IF('VALOR TOTAL BIENES'!B17=0,"",'VALOR TOTAL BIENES'!B17) ->  | CB10: =IF('VALOR TOTAL INMUEBLE +BIENES'!B17=0,"",'VALOR TOTAL INMUEBLE +BIENES'!B17) ->  | CI10: =IF('PRIMER RIESGO INMUEBLE'!B17=0,"",'PRIMER RIESGO INMUEBLE'!B17) ->  | CO10: =IF('PRIMER RIESGO BIENES'!B17=0,"",'PRIMER RIESGO BIENES'!B17) ->  | CU10: =IF('PRIMER RIESGO INMUEBLE+BIENES'!B17=0,"",'PRIMER RIESGO INMUEBLE+BIENES'!B17) ->  | DM10: 0.2 | DN10: 0.24
O11: 10 | P11: 'Apellido Paterno: | Q11: M15:N15 | W11: B25 | AC11: B25 | AE11: N18:P18 | AF11: Fecha de Nacimiento | BA11: Lima | BB11: BREÑA | BC11: CASA | BD11: 610 | BE11: 1830 | BL11: Dim Quedeseacotizar As String | BM11: . | BP11: =IF('VALOR TOTAL INMUEBLE'!B18=0,"",'VALOR TOTAL INMUEBLE'!B18) ->  | BR11: Rotura accidental de vidrio y/o cristales | BV11: =IF('VALOR TOTAL BIENES'!B18=0,"",'VALOR TOTAL BIENES'!B18) ->  | BX11: Hurto | CB11: =IF('VALOR TOTAL INMUEBLE +BIENES'!B18=0,"",'VALOR TOTAL INMUEBLE +BIENES'!B18) -> X | CD11: Rotura accidental de vidrio y/o cristales | CI11: =IF('PRIMER RIESGO INMUEBLE'!B18=0,"",'PRIMER RIESGO INMUEBLE'!B18) ->  | CK11: Rotura accidental de vidrio y/o cristales | CO11: =IF('PRIMER RIESGO BIENES'!B18=0,"",'PRIMER RIESGO BIENES'!B18) ->  | CQ11: Hurto | CU11: =IF('PRIMER RIESGO INMUEBLE+BIENES'!B18=0,"",'PRIMER RIESGO INMUEBLE+BIENES'!B18) -> X | CW11: Rotura accidental de vidrio y/o cristales | DN11: 0.25
O12: 11 | P12: 'Apellido Materno: | Q12: R15:U15 | W12: B26 | AC12: B26 | AE12: V18:Y18 | AF12: Estado Civil | BA12: Lima | BB12: BREÑA | BC12: DEPARTAMENTO | BD12: 1200 | BE12: 3600 | BL12: Dim Eligeelmodoaasegurar As String | BM12: . | BP12: =IF('VALOR TOTAL INMUEBLE'!B19=0,"",'VALOR TOTAL INMUEBLE'!B19) ->  | BR12: Robo o intento de robo de instalaciones fijas | BV12: =IF('VALOR TOTAL BIENES'!B19=0,"",'VALOR TOTAL BIENES'!B19) ->  | BX12: Deshonestidad de trabajadores del hogar | CB12: =IF('VALOR TOTAL INMUEBLE +BIENES'!B19=0,"",'VALOR TOTAL INMUEBLE +BIENES'!B19) ->  | CI12: =IF('PRIMER RIESGO INMUEBLE'!B19=0,"",'PRIMER RIESGO INMUEBLE'!B19) ->  | CK12: Robo o intento de robo de instalaciones fijas | CO12: =IF('PRIMER RIESGO BIENES'!B19=0,"",'PRIMER RIESGO BIENES'!B19) ->  | CQ12: Deshonestidad de trabajadores del hogar | CU12: =IF('PRIMER RIESGO INMUEBLE+BIENES'!B19=0,"",'PRIMER RIESGO INMUEBLE+BIENES'!B19) -> 
O13: 12 | P13: 'Dirección exacta del riesgo: | Q13: G22:J22 | W13: B27 | AC13: B27 | AE13: AA18:AE18 | AF13: Nacionalidad | BA13: Lima | BB13: CALLAO | BC13: CASA | BD13: 450 | BE13: 1350 | BL13: Dim TipodeVivienda As String | BM13: . | BP13: =IF('VALOR TOTAL INMUEBLE'!B20=0,"",'VALOR TOTAL INMUEBLE'!B20) ->  | BR13: Reembolso de gastos médicos por accidentes de trabajadores del hogar, ocurridos dentro del inmueble | BV13: =IF('VALOR TOTAL BIENES'!B20=0,"",'VALOR TOTAL BIENES'!B20) -> X | BX13: Gastos extraordinarios: remoción de escombros, honorarios profesionales y construcción de documentos y modelos | CB13: =IF(IF('VALOR TOTAL INMUEBLE +BIENES'!B20=0,"",'VALOR TOTAL INMUEBLE +BIENES'!B20)="X","Robo","") ->  | CD13: Robo o intento de robo de instalaciones fijas | CI13: =IF('PRIMER RIESGO INMUEBLE'!B20=0,"",'PRIMER RIESGO INMUEBLE'!B20) ->  | CK13: Reembolso de gastos médicos por accidentes de trabajadores del hogar, ocurridos dentro del inmueble | CO13: =IF('PRIMER RIESGO BIENES'!B20=0,"",'PRIMER RIESGO BIENES'!B20) -> X | CQ13: Gastos extraordinarios: remoción de escombros, honorarios profesionales y construcción de documentos y modelos | CU13: =IF(IF('PRIMER RIESGO INMUEBLE+BIENES'!B20=0,"",'PRIMER RIESGO INMUEBLE+BIENES'!B20)="X","Robo","") -> Robo | CW13: Robo o intento de robo de instalaciones fijas
O14: 13 | P14: 'Nro | Q14: G23 | W14: B29 | AC14: B29 | AE14: J20:V20 | AF14: Direccion (Jr. / Cl / Av) | BA14: Lima | BB14: CALLAO | BC14: DEPARTAMENTO | BD14: 820 | BE14: 2460 | BL14: Dim moneda As String | BM14: . | BP14: =IF('VALOR TOTAL INMUEBLE'!B21=0,"",'VALOR TOTAL INMUEBLE'!B21) ->  | BR14: Gastos de arrendamiento de vivienda temporal a reembolso | BV14: =IF('VALOR TOTAL BIENES'!B21=0,"",'VALOR TOTAL BIENES'!B21) ->  | BY14: Asistencias | CB14: =IF(IF('VALOR TOTAL INMUEBLE +BIENES'!B21=0,"",'VALOR TOTAL INMUEBLE +BIENES'!B21)="X","Robo","") ->  | CD14: Robo y/o daños por intento de robo (dentro y fuera de la vivienda a nivel nacional) | CI14: =IF('PRIMER RIESGO INMUEBLE'!B21=0,"",'PRIMER RIESGO INMUEBLE'!B21) ->  | CK14: Gastos de arrendamiento de vivienda temporal a reembolso | CO14: =IF('PRIMER RIESGO BIENES'!B21=0,"",'PRIMER RIESGO BIENES'!B21) ->  | CR14: Asistencias | CU14: =IF(IF('PRIMER RIESGO INMUEBLE+BIENES'!B21=0,"",'PRIMER RIESGO INMUEBLE+BIENES'!B21)="X","Robo","") -> Robo | CW14: Robo y/o daños por intento de robo (dentro y fuera de la vivienda a nivel nacional)
O15: 14 | P15: 'Dpto | Q15: G24 | W15: G22 | AC15: G22 | AE15: X20:Y20 | AF15: Nro | BA15: Lima | BB15: CARABAYLLO | BC15: CASA | BD15: 470 | BE15: 1410 | BL15: '''''''''''''''''''''''''' | BM15: . | BP15: =IF('VALOR TOTAL INMUEBLE'!B22=0,"",'VALOR TOTAL INMUEBLE'!B22) ->  | BR15: Alquiler no percibido por inmueble inhabitable temporalmente | CB15: =IF(IF('VALOR TOTAL INMUEBLE +BIENES'!B22=0,"",'VALOR TOTAL INMUEBLE +BIENES'!B22)="X","Robo","") ->  | CD15: Robo y/o daños por intento de robo de joyas, platería, relojes, obras de arte, cámaras fotográficas o de video, laptops y bicicletas dentro de la vivienda o que estén siendo portados fuera de la vivienda | CI15: =IF('PRIMER RIESGO INMUEBLE'!B22=0,"",'PRIMER RIESGO INMUEBLE'!B22) ->  | CK15: Alquiler no percibido por inmueble inhabitable temporalmente | CU15: =IF(IF('PRIMER RIESGO INMUEBLE+BIENES'!B22=0,"",'PRIMER RIESGO INMUEBLE+BIENES'!B22)="X","Robo","") -> Robo | CW15: Robo y/o daños por intento de robo de joyas, platería, relojes, obras de arte, cámaras fotográficas o de video, laptops y bicicletas dentro de la vivienda o que estén siendo portados fuera de la vivienda
O16: 15 | P16: 'Urbanización | Q16: L24 | AE16: AA20 | AF16: Dpto/Piso/Int | BA16: Lima | BB16: CARABAYLLO | BC16: DEPARTAMENTO | BD16: 760 | BE16: 2280 | BM16: . | BP16: =IF('VALOR TOTAL INMUEBLE'!B23=0,"",'VALOR TOTAL INMUEBLE'!B23) -> X | BR16: Gastos extraordinarios: remoción de escombros, honorarios profesionales y construcción de documentos y modelos | CB16: =IF('VALOR TOTAL INMUEBLE +BIENES'!B23=0,"",'VALOR TOTAL INMUEBLE +BIENES'!B23) ->  | CD16: Hurto | CI16: =IF('PRIMER RIESGO INMUEBLE'!B23=0,"",'PRIMER RIESGO INMUEBLE'!B23) -> X | CK16: Gastos extraordinarios: remoción de escombros, honorarios profesionales y construcción de documentos y modelos | CU16: =IF('PRIMER RIESGO INMUEBLE+BIENES'!B23=0,"",'PRIMER RIESGO INMUEBLE+BIENES'!B23) -> X | CW16: Hurto
O17: 16 | P17: 'Mza/Lt | Q17: L25 | AE17: AC20 | AF17: Mz | BA17: Lima | BB17: CERCADO DE LIMA | BC17: CASA | BD17: 480 | BE17: 1440 | BL17: Application.EnableEvents = False | BM17: . | BP17: =IF('VALOR TOTAL INMUEBLE'!B24=0,"",'VALOR TOTAL INMUEBLE'!B24) ->  | BS17: Asistencias | CB17: =IF('VALOR TOTAL INMUEBLE +BIENES'!B24=0,"",'VALOR TOTAL INMUEBLE +BIENES'!B24) ->  | CD17: Deshonestidad de trabajadores del hogar | CI17: =IF('PRIMER RIESGO INMUEBLE'!B24=0,"",'PRIMER RIESGO INMUEBLE'!B24) ->  | CL17: Asistencias | CU17: =IF('PRIMER RIESGO INMUEBLE+BIENES'!B24=0,"",'PRIMER RIESGO INMUEBLE+BIENES'!B24) ->  | CW17: Deshonestidad de trabajadores del hogar
O18: 17 | P18: 'Distrito | Q18: G25 | AE18: AE20 | AF18: Lt | BA18: Lima | BB18: CERCADO DE LIMA | BC18: DEPARTAMENTO | BD18: 1335 | BE18: 4005 | BL18: Application.ScreenUpdating = False | BM18: . | CB18: =IF('VALOR TOTAL INMUEBLE +BIENES'!B25=0,"",'VALOR TOTAL INMUEBLE +BIENES'!B25) ->  | CD18: Reembolso de gastos médicos por accidentes de trabajadores del hogar, ocurridos dentro del inmueble | CU18: =IF('PRIMER RIESGO INMUEBLE+BIENES'!B25=0,"",'PRIMER RIESGO INMUEBLE+BIENES'!B25) ->  | CW18: Reembolso de gastos médicos por accidentes de trabajadores del hogar, ocurridos dentro del inmueble
O19: 18 | P19: 'Provincia | Q19: G26 | AE19: K21:X21 | AF19: Urbanizacion (Urb / AAHH / Coop) | BA19: Lima | BB19: CHORRILLOS | BC19: CASA | BD19: 470 | BE19: 1410 | BM19: . | CB19: =IF('VALOR TOTAL INMUEBLE +BIENES'!B26=0,"",'VALOR TOTAL INMUEBLE +BIENES'!B26) -> X | CD19: Gastos de arrendamiento de vivienda temporal a reembolso | CU19: =IF('PRIMER RIESGO INMUEBLE+BIENES'!B26=0,"",'PRIMER RIESGO INMUEBLE+BIENES'!B26) ->  | CW19: Gastos de arrendamiento de vivienda temporal a reembolso
O20: 19 | P20: 'Departamento | Q20: G27 | AE20: AC20 | AF20: Mz | BA20: Lima | BB20: CHORRILLOS | BC20: DEPARTAMENTO | BD20: 1050 | BE20: 3150 | BL20: 'agregado el 02 octubre 2019 | BM20: . | CB20: =IF('VALOR TOTAL INMUEBLE +BIENES'!B27=0,"",'VALOR TOTAL INMUEBLE +BIENES'!B27) ->  | CD20: Alquiler no percibido por inmueble inhabitable temporalmente (aplica solo para el arrendador) | CU20: =IF('PRIMER RIESGO INMUEBLE+BIENES'!B27=0,"",'PRIMER RIESGO INMUEBLE+BIENES'!B27) ->  | CW20: Alquiler no percibido por inmueble inhabitable temporalmente (aplica solo para el arrendador)
O21: 20 | P21: '¿Qué desea cotizar? | Q21: G29 | AE21: AE20 | AF21: Lt | BA21: Lima | BB21: CIENEGUILLA | BC21: CASA | BD21: 400 | BE21: 1200 | BL21: With hj_ingresoSolicitud | BM21: . | CB21: =IF('VALOR TOTAL INMUEBLE +BIENES'!B28=0,"",'VALOR TOTAL INMUEBLE +BIENES'!B28) -> X | CD21: Gastos extraordinarios: remoción de escombros, honorarios profesionales y construcción de documentos y modelos | CU21: =IF('PRIMER RIESGO INMUEBLE+BIENES'!B28=0,"",'PRIMER RIESGO INMUEBLE+BIENES'!B28) -> X | CW21: Gastos extraordinarios: remoción de escombros, honorarios profesionales y construcción de documentos y modelos
O22: 20 | P22: '¿Qué desea cotizar? | Q22: H29 | AE22: AA21:AE21 | AF22: Sec / Etapa / Zona | BA22: Lima | BB22: COMAS | BC22: CASA | BD22: 500 | BE22: 1500 | BL22: .Visible = xlSheetHidden | BM22: . | CB22: =IF('VALOR TOTAL INMUEBLE +BIENES'!B29=0,"",'VALOR TOTAL INMUEBLE +BIENES'!B29) -> X | CE22: Asistencias | CU22: =IF('PRIMER RIESGO INMUEBLE+BIENES'!B29=0,"",'PRIMER RIESGO INMUEBLE+BIENES'!B29) -> X | CX22: Asistencias
O23: 21 | P23: '¿Qué desea cotizar? | Q23: K29 | AE23: AA21:AE21 | AF23: Sec / Etapa / Zona | BA23: Lima | BB23: COMAS | BC23: DEPARTAMENTO | BD23: 720 | BE23: 2160 | BL23: End With | BM23: .
O24: 22 | P24: '¿Qué desea cotizar? | Q24: O29 | AE24: F22:L22 | AF24: Departamento | BA24: Lima | BB24: EL AGUSTINO | BC24: CASA | BD24: 410 | BE24: 1230 | BL24: ''''''' | BM24: .
O25: 23 | P25: 'Eligeel modo a Asegurar | Q25: G31 | AE25: N22:R22 | AF25: Provincia | BA25: Lima | BB25: EL AGUSTINO | BC25: DEPARTAMENTO | BD25: 940 | BE25: 2820 | BM25: .
O26: 23 | P26: 'A primer riesgo absoluto | Q26: H31 | AE26: W22:Z22 | AF26: Distrito | BA26: Lima | BB26: JESÚS MARÍA | BC26: CASA | BD26: 500 | BE26: 1500 | BL26: With hj_cotizador | BM26: .
O27: 24 | P27: 'A primer riesgo absoluto | Q27: K31 | AE27: G23:L23 | AF27: Telefono Casa | BA27: Lima | BB27: JESÚS MARÍA | BC27: DEPARTAMENTO | BD27: 1760 | BE27: 5280 | BM27: .
O28: 25 | P28: 'Tipo de Vivienda | Q28: G33 | AE28: N23:Y23 | AF28: Telefono trabajo | BA28: Lima | BB28: LA MOLINA | BC28: CASA | BD28: 750 | BE28: 2250 | BL28: 'Tipo de Cliente | BM28: .
O29: 25 | P29: 'Tipo de Vivienda | Q29: E34 | AE29: AA23:AE23 | AF29: Telefono Movil | BA29: Lima | BB29: LA MOLINA | BC29: DEPARTAMENTO | BD29: 2000 | BE29: 6000 | BL29: If Len(.Range("G27").Value) = 0 Then | BM29: .
O30: 26 | P30: 'Tipo de Vivienda | Q30: E35 | AE30: H24:AE24 | AF30: Correo electronico(*) | BA30: Lima | BB30: LA VICTORIA | BC30: CASA | BD30: 500 | BE30: 1500 | BL30: MsgBox "Seleccione -> Tipo de Cliente.", vbExclamation, "Pacifico" | BM30: .
O31: 27 | P31: 'Tipo de Vivienda | Q31: G34 | AE31: N27 | AF31: ¿El contratante es diferente del asegurado? | BA31: Lima | BB31: LA VICTORIA | BC31: DEPARTAMENTO | BD31: 1467 | BE31: 4401 | BL31: End | BM31: .
O32: 28 | P32: 'Tipo de Vivienda | Q32: G35 | AE32: X44 | AF32: ¿La dirección del asegurado es la misma que del inmueble a asegurar? | BA32: Lima | BB32: LINCE | BC32: CASA | BD32: 720 | BE32: 2160 | BL32: End If | BM32: .
O33: 29 | P33: 'Moneda | Q33: G37 | AE33: F53:J53 | AF33: Datos del Inmueble Nro de Pisos | BA33: Lima | BB33: LINCE | BC33: DEPARTAMENTO | BD33: 1820 | BE33: 5460 | BM33: .
O34: 29 | P34: 'Moneda | Q34: H37 | AE34: N53:R53 | AF34: Datos del Inmueble Nro de Sótanos | BA34: Lima | BB34: LOS OLIVOS | BC34: CASA | BD34: 470 | BE34: 1410 | BL34: '¿Qué desea cotizar? | BM34: .
O35: 30 | P35: 'Moneda | Q35: K37 | AE35: X53:Z53 | AF35: Datos del Inmueble Año de construcción | BA35: Lima | BB35: LOS OLIVOS | BC35: DEPARTAMENTO | BD35: 980 | BE35: 2940 | BL35: If Len(.Range("G29").Value) = 0 Then | BM35: .
O36: 31 | P36: 'Formar de Pago | Q36: I61 | AE36: M54 | AF36: Datos del Inmueble Nro de pisos de la ubicación de la vivienda | BA36: Lima | BB36: LURIGANCHO | BC36: CASA | BD36: 420 | BE36: 1260 | BL36: MsgBox "Seleccione -> ¿Qué desea cotizar?", vbExclamation, "Pacifico" | BM36: .
O37: 32 | P37: 'Formar de Pago | Q37: I62 | AE37: J63 | AF37: Alarma | BA37: Lima | BB37: LURIGANCHO | BC37: DEPARTAMENTO | BD37: 670 | BE37: 2010 | BL37: End | BM37: .
O38: 33 | P38: 'Formar de Pago | Q38: I63 | AE38: O63 | AF38: Cámara de seguridad | BA38: Lima | BB38: LURÍN | BC38: CASA | BD38: 450 | BE38: 1350 | BL38: End If | BM38: .
O39: 34 | P39: 'Formar de Pago | Q39: I64 | AE39: X63 | AF39: Sensor de movimiento | BA39: Lima | BB39: LURÍN | BC39: DEPARTAMENTO | BD39: 830 | BE39: 2490 | BM39: .
O40: 35 | P40: 'Formar de Pago | Q40: I66 | AE40: J65 | AF40: Cerco eléctrico | BA40: Lima | BB40: MAGDALENA DEL MAR | BC40: CASA | BD40: 750 | BE40: 2250 | BL40: 'Elige el modo a asegurar | BM40: .
O41: 36 | P41: 'Formar de Pago | Q41: I67 | AE41: O65 | AF41: Detector de humo | BA41: Lima | BB41: MAGDALENA DEL MAR | BC41: DEPARTAMENTO | BD41: 1750 | BE41: 5250 | BL41: If Len(.Range("G31").Value) = 0 Then | BM41: .
O42: 37 | P42: 'Formar de Pago | Q42: I68 | AE42: X65 | AF42: Ninguno | BA42: Lima | BB42: MIRAFLORES | BC42: CASA | BD42: 850 | BE42: 2550 | BL42: MsgBox "Seleccione -> Elige el modo a asegurar.", vbExclamation, "Pacifico" | BM42: .
O43: 38 | P43: 'Formar de Pago | Q43: I69 | AE43: AC71 | AF43: Declaración Jurada Pregunta 1 | BA43: Lima | BB43: MIRAFLORES | BC43: DEPARTAMENTO | BD43: 2500 | BE43: 7500 | BL43: End | BM43: .
AE44: AE71 | AF44: Declaración Jurada Pregunta 1 | BA44: Lima | BB44: PUCUSANA | BC44: CASA | BD44: 470 | BE44: 1410 | BL44: End If | BM44: .
AE45: AC74 | AF45: Declaración Jurada Pregunta 2 | BA45: Lima | BB45: PUCUSANA | BC45: DEPARTAMENTO | BD45: 1060 | BE45: 3180 | BM45: .
AE46: AE74 | AF46: Declaración Jurada Pregunta 2 | BA46: Lima | BB46: PUEBLO LIBRE | BC46: CASA | BD46: 500 | BE46: 1500 | BL46: 'Tipo de Vivienda | BM46: .
AE47: AC77 | AF47: Declaración Jurada Pregunta 3 | BA47: Lima | BB47: PUEBLO LIBRE | BC47: DEPARTAMENTO | BD47: 1550 | BE47: 4650 | BL47: If Len(.Range("G33").Value) = 0 Then | BM47: .
AE48: AE77 | AF48: Declaración Jurada Pregunta 3 | BA48: Lima | BB48: PUENTE PIEDRA | BC48: CASA | BD48: 430 | BE48: 1290 | BL48: MsgBox "Seleccione -> Tipo de Vivienda.", vbExclamation, "Pacifico" | BM48: .
AE49: T78:Y78 | AF49: En caso marque Sí indique el año de la última remodelación | BA49: Lima | BB49: PUENTE PIEDRA | BC49: DEPARTAMENTO | BD49: 790 | BE49: 2370 | BL49: End | BM49: .
AE50: C110 | AF50: Planes - Confirmo que he sido informado correctamente sobre el plan, coberturas, beneficios adicionales que estoy eligiendo | BA50: Lima | BB50: PUNTA HERMOSA | BC50: CASA | BD50: 470 | BE50: 1410 | BL50: End If | BM50: .
AE51: T122 | AF51: Suma Asegurada ¿Tiene usted otros seguros contratados para los bienes objeto de este seguro? | BA51: Lima | BB51: PUNTA HERMOSA | BC51: DEPARTAMENTO | BD51: 1310 | BE51: 3930 | BM51: .
AE52: V122 | AF52: Suma Asegurada ¿Tiene usted otros seguros contratados para los bienes objeto de este seguro? | BA52: Lima | BB52: PUNTA NEGRA | BC52: CASA | BD52: 460 | BE52: 1380 | BL52: 'Moneda | BM52: .
AE53: L123:Y123 | AF53: En caso afirmativo, ¿En qué compañia? | BA53: Lima | BB53: PUNTA NEGRA | BC53: DEPARTAMENTO | BD53: 990 | BE53: 2970 | BL53: If Len(.Range("G37").Value) = 0 Then | BM53: .
AE54: AA123:AE123 | AF54: Indique la póliza de la compañía de seguros | BA54: Lima | BB54: RIMAC | BC54: CASA | BD54: 450 | BE54: 1350 | BL54: MsgBox "Seleccione -> Moneda.", vbExclamation, "Pacifico" | BM54: .
AE55: H126:AE126 | AF55: Endosado a favor de: | BA55: Lima | BB55: RIMAC | BC55: DEPARTAMENTO | BD55: 1000 | BE55: 3000 | BL55: End | BM55: .
AE56: H127:M127 | AF56: Monto de endoso: | BA56: Lima | BB56: SAN BARTOLO | BC56: CASA | BD56: 480 | BE56: 1440 | BL56: End If | BM56: .
AE57: O127:S127 | AF57: porcentaje (%) | BA57: Lima | BB57: SAN BARTOLO | BC57: DEPARTAMENTO | BD57: 1210 | BE57: 3630 | BL57: '()()()()()()()()()()()()()()()()()()()()()()()()()()()()()()()()() | BM57: .
AE58: F161:M161 | AF58: Teléfono Corredor / Asesor | BA58: Lima | BB58: SAN BORJA | BC58: CASA | BD58: 750 | BE58: 2250 | BM58: .
AE59: U161:AE161 | AF59: Correo electrónico Corredor / Asesor | BA59: Lima | BB59: SAN BORJA | BC59: DEPARTAMENTO | BD59: 2050 | BE59: 6150 | BM59: .
AE60: T242 | AF60: Cláusulas Abusivas | BA60: Lima | BB60: SAN ISIDRO | BC60: CASA | BD60: 900 | BE60: 2700 | BL60: 'capturamos variables | BM60: .
AE61: Y242 | AF61: Cláusulas Abusivas | BA61: Lima | BB61: SAN ISIDRO | BC61: DEPARTAMENTO | BD61: 2600 | BE61: 7800 | BL61: TipodeCliente = .Range("G27").Value | BM61: .
AE62: H29 | AF62: Persona Natural | AG62: Asegurado (llenar solo si es diferente del Contratante) | BA62: Lima | BB62: SAN LUIS | BC62: CASA | BD62: 500 | BE62: 1500 | BL62: Quedeseacotizar = .Range("G29").Value | BM62: .
AE63: N29 | AF63: Persona Juridica | AG63: Asegurado (llenar solo si es diferente del Contratante) | BA63: Lima | BB63: SAN LUIS | BC63: DEPARTAMENTO | BD63: 1467 | BE63: 4401 | BL63: Eligeelmodoaasegurar = .Range("G31").Value | BM63: .
AE64: D31:K31 | AF64: DNI | AG64: Asegurado (llenar solo si es diferente del Contratante) | BA64: Lima | BB64: SAN JUAN DE LURIGANCHO | BC64: CASA | BD64: 420 | BE64: 1260 | BL64: TipodeVivienda = .Range("G33").Value | BM64: .
AE65: N31:Y31 | AF65: RUC | AG65: Asegurado (llenar solo si es diferente del Contratante) | BA65: Lima | BB65: SAN JUAN DE LURIGANCHO | BC65: DEPARTAMENTO | BD65: 1000 | BE65: 3000 | BL65: moneda = .Range("G37").Value | BM65: .
AE66: AC31:AE31 | AF66: Otro (indicar tipo y número) | AG66: Asegurado (llenar solo si es diferente del Contratante) | BA66: Lima | BB66: SAN JUAN DE MIRAFLORES | BC66: CASA | BD66: 430 | BE66: 1290 | BL66: ''''''''''''''''''''''''''''''' | BM66: .
AE67: I32:AE32 | AF67: Nombre / Razon Social" | AG67: Asegurado (llenar solo si es diferente del Contratante) | BA67: Lima | BB67: SAN JUAN DE MIRAFLORES | BC67: DEPARTAMENTO | BD67: 860 | BE67: 2580 | BM67: .
AE68: H33:T33 | AF68: Apellido Paterno | AG68: Asegurado (llenar solo si es diferente del Contratante) | BA68: Lima | BB68: SAN MARTIN DE PORRES | BC68: CASA | BD68: 420 | BE68: 1260 | BL68: 'Quedeseacotizar | BM68: .
AE69: Z33:AE33 | AF69: Apellido Paterno | AG69: Asegurado (llenar solo si es diferente del Contratante) | BA69: Lima | BB69: SAN MARTIN DE PORRES | BC69: DEPARTAMENTO | BD69: 890 | BE69: 2670 | BL69: If Quedeseacotizar = "Inmueble" Then | BM69: .
AE70: E35 | AF70: Sexo | AG70: Asegurado (llenar solo si es diferente del Contratante) | BA70: Lima | BB70: SAN MIGUEL | BC70: CASA | BD70: 650 | BE70: 1950 | BL70: .Range("H29").Value = "X" | BM70: .
AE71: N35:P35 | AF71: Fecha de Nacimiento" | AG71: Asegurado (llenar solo si es diferente del Contratante) | BA71: Lima | BB71: SAN MIGUEL | BC71: DEPARTAMENTO | BD71: 1745 | BE71: 5235 | BL71: .Range("K29").ClearContents | BM71: .
AE72: V35:Y35 | AF72: Estado Civil | AG72: Asegurado (llenar solo si es diferente del Contratante) | BA72: Lima | BB72: SANTA MARÍA DEL MAR | BC72: CASA | BD72: 510 | BE72: 1530 | BL72: .Range("O29").ClearContents | BM72: .
AE73: AA34:AE35 | AF73: Nacionalidad | AG73: Asegurado (llenar solo si es diferente del Contratante) | BA73: Lima | BB73: SANTA MARÍA DEL MAR | BC73: DEPARTAMENTO | BD73: 1580 | BE73: 4740 | BM73: .
AE74: H37:V37 | AF74: Direccion (Jr. / Cl / Av) | AG74: Asegurado (llenar solo si es diferente del Contratante) | BA74: Lima | BB74: SANTIAGO DE SURCO | BC74: CASA | BD74: 700 | BE74: 2100 | BL74: ElseIf Quedeseacotizar = "Bienes" Then | BM74: .
AE75: X37:Y37 | AF75: Nro | AG75: Asegurado (llenar solo si es diferente del Contratante) | BA75: Lima | BB75: SANTIAGO DE SURCO | BC75: DEPARTAMENTO | BD75: 1900 | BE75: 5700 | BL75: .Range("H29").ClearContents | BM75: .
AE76: AA37 | AF76: Dpto/Piso/Int | AG76: Asegurado (llenar solo si es diferente del Contratante) | BA76: Lima | BB76: SURQUILLO | BC76: CASA | BD76: 500 | BE76: 1500 | BL76: .Range("K29").Value = "X" | BM76: .
AE77: AC37 | AF77: Mz | AG77: Asegurado (llenar solo si es diferente del Contratante) | BA77: Lima | BB77: SURQUILLO | BC77: DEPARTAMENTO | BD77: 1750 | BE77: 5250 | BL77: .Range("O29").ClearContents | BM77: .
AE78: AE37 | AF78: Lt | AG78: Asegurado (llenar solo si es diferente del Contratante) | BA78: Lima | BB78: VILLA EL SALVADOR | BC78: CASA | BD78: 385 | BE78: 1155 | BM78: .
AE79: K38:X38 | AF79: Urbanizacion (Urb / AAHH / Coop) | AG79: Asegurado (llenar solo si es diferente del Contratante) | BA79: Lima | BB79: VILLA EL SALVADOR | BC79: DEPARTAMENTO | BD79: 860 | BE79: 2580 | BL79: ElseIf Quedeseacotizar = "Inmueble + Bienes" Then | BM79: .
AE80: AA38:AE38 | AF80: Sec / Etapa / Zona | AG80: Asegurado (llenar solo si es diferente del Contratante) | BL80: .Range("H29").ClearContents | BM80: .
AE81: F39:L39 | AF81: Departamento | AG81: Asegurado (llenar solo si es diferente del Contratante) | BL81: .Range("K29").ClearContents | BM81: .
AE82: N39:R39 | AF82: Provincia | AG82: Asegurado (llenar solo si es diferente del Contratante) | BL82: .Range("O29").Value = "X" | BM82: .
AE83: W39:Z39 | AF83: Distrito | AG83: Asegurado (llenar solo si es diferente del Contratante) | BM83: .
AE84: AB39:AE39 | AF84: País | AG84: Asegurado (llenar solo si es diferente del Contratante) | BL84: End If | BM84: .
AE85: G40:L40 | AF85: Teléfono Casa | AG85: Asegurado (llenar solo si es diferente del Contratante) | BL85: ''''''''' | BM85: .
AE86: N40:Y40 | AF86: Teléfono trabajo | AG86: Asegurado (llenar solo si es diferente del Contratante) | BL86: '''''''' | BM86: .
AE87: AA40:AE40 | AF87: Teléfono Móvil | AG87: Asegurado (llenar solo si es diferente del Contratante) | BM87: .
AE88: H41:AE41 | AF88: Correo electronico(*) | AG88: Asegurado (llenar solo si es diferente del Contratante) | BL88: 'Eligeelmodoaasegurar | BM88: .
AE89: H49:V49 | AF89: Direccion (Jr. / Cl / Av) | BL89: If Eligeelmodoaasegurar = "A primer riesgo absoluto" Then | BM89: .
AE90: X49:Y49 | AF90: Nro | BL90: .Range("H31").Value = "X" | BM90: .
AE91: AA49 | AF91: Dpto/Piso/Int | BL91: .Range("K31").ClearContents | BM91: .
AE92: AC49 | AF92: Mz | BM92: .
AE93: AE49 | AF93: Lt | BL93: ElseIf Eligeelmodoaasegurar = "A valor total" Then | BM93: .
AE94: K50:X50 | AF94: Urbanizacion (Urb / AAHH / Coop) | BL94: .Range("H31").ClearContents | BM94: .
AE95: AA50:AE50 | AF95: Sec / Etapa / Zona | BL95: .Range("K31").Value = "X" | BM95: .
AE96: F52:L52 | AF96: Distrito | BL96: End If | BM96: .
AE97: N52:R52 | AF97: Provincia | BL97: ''''''''' | BM97: .
AE98: W52:Z52 | AF98: Departamento | BL98: '''''''' | BM98: .
AE99: X54:Z54 | AF99: m2 construccion | BM99: .
AE100: AD217 | AF100: Sí acepto | BL100: 'TipodeVivienda | BM100: .
AE101: AD219 | AF101: No acepto y prefiero perder la oportunidad de recibir nuevas ofertas | BL101: If TipodeVivienda = "Casa" Then | BM101: .
AE102: K51:M51 | AF102: Tipo de Material de Construccion | BL102: .Range("E34").Value = "X" | BM102: .
BL103: .Range("E35").ClearContents | BM103: .
BM104: .
BL105: ElseIf TipodeVivienda = "Departamento" Then | BM105: .
BL106: .Range("E34").ClearContents | BM106: .
BL107: .Range("E35").Value = "X" | BM107: .
BL108: End If | BM108: .
BL109: ''''''''' | BM109: .
BL110: '''''''' | BM110: .
BM111: .
BL112: 'moneda | BM112: .
BL113: If moneda = "Soles" Then | BM113: .
BL114: .Range("H37").Value = "X" | BM114: .
BL115: .Range("K37").ClearContents | BM115: .
BM116: .
BL117: ElseIf moneda = "Dólares" Then | BM117: .
BL118: .Range("H37").ClearContents | BM118: .
BL119: .Range("K37").Value = "X" | BM119: .
BL120: End If | BM120: .
BL121: ''''''''' | BM121: .
BL122: '''''''' | BM122: .
BM123: .
BL124: '()()()()()()()()()()()()()()()()()()()()()()()()()()()()()()()()()()()()()()()()()()()()()()()()()()()()()()()()() | BM124: .
BM125: .
BL126: ' MsgBox "ir a coberturas.." | BM126: .
BL127: ' Stop | BM127: .
BM128: .
BL129: If moneda = "Soles" Then | BM129: .
BL130: rowtarget = 37 | BM130: .
BL131: columntarget = 8 | BM131: .
BM132: .
BL133: WorksheetBeforeDoubleClick rowtarget, columntarget | BM133: .
BM134: .
BL135: ElseIf moneda = "Dólares" Then | BM135: .
BL136: .Range("K37").Value = "X" | BM136: .
BL137: rowtarget = 37 | BM137: .
BL138: columntarget = 11 | BM138: .
BM139: .
BL140: WorksheetBeforeDoubleClick rowtarget, columntarget | BM140: .
BL141: End If | BM141: .
BM142: .
BL143: End With | BM143: .
BM144: .
BL145: Application.EnableEvents = True | BM145: .
BL146: Application.ScreenUpdating = True | BM146: .
BM147: .
BL148: End Sub | BM148: .
BM149: .
BL150: Sub coberturasPredeterminadas() | BM150: .
BL151: Application.EnableEvents = False | BM151: .
BM152: .
BL153: 'agregado el 01 octubre 2019 | BM153: .
BL154: unprotectsheets | BM154: .
BL155: ''''''''''''''''' | BM155: .
BM156: .
BL157: Dim TipodeCliente As String | BM157: .
BL158: Dim Quedeseacotizar As String | BM158: .
BM159: .
BL160: With hj_cotizador | BM160: .
BL161: TipodeCliente = .Range("G27").Value | BM161: .
BL162: Quedeseacotizar = .Range("G29").Value | BM162: .
BL163: End With | BM163: .
BL164: '''''''''''''' | BM164: .
BL165: 'COBERTURAS X DEFAULT | BM165: .
BL166: If Quedeseacotizar = "Inmueble" Then | BM166: .
BM167: .
BL168: 'modificado el 02 octubre 2019 | BM168: .
BL169: With Sheets("VALOR TOTAL INMUEBLE") | BM169: .
BL170: .Range("B14").Value = "X" 'Terremoto, temblor, maremoto, Inundaciones y riesgos de la naturaleza | BM170: .
BL171: .Range("B16").Value = "X" 'Responsabilidad civil frente a terceros | BM171: .
BL172: .Range("B18").Value = "X" 'Rotura accidental de vidrio y/o cristales | BM172: .
BL173: .Range("B21").Value = "X" 'Gastos de arrendamiento de vivienda temporal a reembolso | BM173: .
BL174: .Range("B22").ClearContents 'Alquiler no percibido por inmueble inhabitable temporalmente | BM174: .
BL175: .Range("B23").Value = "X" 'Gastos extraordinarios: remoción de escombros, honorarios profesionales y construcción de documentos y modelos | BM175: .
BL176: .Range("B24").Value = "X" 'Asistencias | BM176: .
BL177: End With | BM177: .
BM178: .
BL179: With Sheets("PRIMER RIESGO INMUEBLE") | BM179: .
BL180: .Range("B14").Value = "X" 'Terremoto, temblor, maremoto, Inundaciones y riesgos de la naturaleza | BM180: .
BL181: .Range("B16").Value = "X" 'Responsabilidad civil frente a terceros | BM181: .
BL182: .Range("B18").Value = "X" 'Rotura accidental de vidrio y/o cristales | BM182: .
BL183: .Range("B21").Value = "X" 'Gastos de arrendamiento de vivienda temporal a reembolso | BM183: .
BL184: .Range("B22").ClearContents 'Alquiler no percibido por inmueble inhabitable temporalmente | BM184: .
BL185: .Range("B23").Value = "X" 'Gastos extraordinarios: remoción de escombros, honorarios profesionales y construcción de documentos y modelos | BM185: .
BL186: .Range("B24").Value = "X" 'Asistencias | BM186: .
BL187: End With | BM187: .
BL188: End If | BM188: .
BL189: '============================================================================================================================================================= | BM189: .
BM190: .
BL191: If Quedeseacotizar = "Bienes" Then | BM191: .
BL192: With Sheets("VALOR TOTAL BIENES") | BM192: .
BL193: .Range("B14").Value = "X" 'Robo y/o daños por intento de robo (dentro y fuera de la vivienda a nivel nacional) | BM193: .
BL194: .Range("B15").Value = "X" 'Robo y/o daños por intento de robo de joyas, platería, relojes, obras de arte, cámaras fotográficas o de video, laptops y bicicletas dentro de la vivienda o que estén siendo portados fuera de la vivienda | BM194: .
BL195: .Range("B16").Value = "X" 'Terremoto, temblor, maremoto, Inundaciones y riesgos de la naturaleza | BM195: .
BL196: .Range("B20").Value = "X" 'Gastos extraordinarios: remoción de escombros, honorarios profesionales y construcción de documentos y modelos | BM196: .
BL197: .Range("B21").Value = "X" 'Asistencias | BM197: .
BL198: End With | BM198: .
BM199: .
BL200: With Sheets("PRIMER RIESGO BIENES") | BM200: .
... 57 more rows

Sheet tabla (hidden)
E1: Consideraciones : | J1: Ir a Panel
E3: primer riesgo absoluto
E4: - La modalidad de aseguramiento que brinda este plan de seguros es a primer riesgo absoluto y se deja expresa constancia que nuestro límite máximo de responsabilidad es hasta el valor que usted determinó como Suma Asegurada, pudiendo ser esta un valor inferior al valor total del Inmueble y/o bien. No se aplicará INFRASEGURO.
E6: valor total
E7: - La modalidad de aseguramiento que brinda este plan de seguros es a valor total.

Sheet tasasCupones (hidden)
B15: Tasas Cuotas Corredores | C15: Factores
B16: 4 CUOTAS | C16: 0.25
B17: 6 CUOTAS DA | C17: 0.1722453552
B18: 6 CUOTAS Cupones | C18: 0.1746473822 | D18: 1.2154
B19: 10 CUOTAS DA | C19: 0.1052927555
B20: 10 CUOTAS Cupones | C20: 0.1075913079
B21: 12 Cuotas DA | C21: 0.088562 | D21: 1.2154
B22: 12 Cuotas CUPONES | C22: 0.09084241725 | D22: 1.2154

Sheet CotizacionInmueble (hidden)
C1: ="Cotización Seguro de Hogar Flex " & configuracion!$K$2 -> Cotización Seguro de Hogar Flex Enero 2025
C3: Vigencia de la cotización | D3: =TEXT(TODAY(),"dd/mm/yyyy") & " - " & TEXT(TODAY()+15,"dd/mm/yyyy") -> 25/03/2025 - 09/04/2025
C4: Fecha inicio de Vigencia | D4: =Cotizador!$L$6 -> 00:00:00
C5: Canal | D5: =Cotizador!$G$10 -> Corredor
C6: Agente | D6: =Cotizador!R$10 -> 0
C8: Datos del Contratante
C9: Nombre del Contratante | D9: =Cotizador!$G$15 & " " & Cotizador!$M$15& " " & Cotizador!$R$15 -> 
C10: Tipo de documento | D10: =Cotizador!$G$14&" " &Cotizador!$M$14 -> 
F11: Descuento
C12: Planes de Pago Prima | F12: =Cotizador!$M$40 -> 0
C13: Débito automático | D13: Valores de la Cuota
C14: Plan de pago | D14: Prima Comercial | E14: IGV | F14: Prima Total
C15: Prima anual + IGV sin intereses: | D15: =IF(Cotizador!$G$54=0,"",Cotizador!$G$54) ->  | E15: =IF(Cotizador!$G$55=0,"",Cotizador!$G$55) ->  | F15: =IF(Cotizador!$G$56=0,"",Cotizador!$G$56) -> 
C16: Prima anual + IGV sin intereses: | D16: =IF(Cotizador!$L$54=0,"",Cotizador!$L$54) ->  | E16: =IF(Cotizador!$L$55=0,"",Cotizador!$L$55) ->  | F16: =IF(Cotizador!$L$56=0,"",Cotizador!$L$56) -> 
C17: =IF(Cotizador!$I$61="X",Cotizador!$B$61,IF(Cotizador!$I$62="X",Cotizador!$B$62,IF(Cotizador!$I$63="X",Cotizador!$B$63,IF(Cotizador!$I$64="X",Cotizador!$B$64,IF(Cotizador!$I$66="X",Cotizador!$B$66,IF(Cotizador!$I$67="X",Cotizador!$B$67,IF(Cotizador!$I$68="X",Cotizador!$B$68,IF(Cotizador!$I$69="X",Cotizador!$B$69,"")))))))) ->  | D17: =IFERROR(F17/1.18,"") ->  | E17: =IFERROR(F17-D17,"") ->  | F17: =IF(Cotizador!$I$61="X",Cotizador!$J$61,IF(Cotizador!$I$62="X",Cotizador!$J$62,IF(Cotizador!$I$63="X",Cotizador!$J$63,IF(Cotizador!$I$64="X",Cotizador!$J$64,IF(Cotizador!$I$66="X",Cotizador!$J$66,IF(Cotizador!$I$67="X",Cotizador!$J$67,IF(Cotizador!$I$68="X",Cotizador!$J$68,IF(Cotizador!$I$69="X",Cotizador!$J$69,"")))))))) -> 
C18: Materia Asegurada | D18: =IF(Cotizador!$H$29="X",Cotizador!$G$29,IF(Cotizador!$K$29="X",Cotizador!$J$29,IF(Cotizador!$O$29="X",Cotizador!$M$29))) -> FALSE
C20: Datos del Inmueble asegurado
C21: Dirección | D21: =Cotizador!$G$22 & " " & Cotizador!G23 -> 
C22: Departamento | D22: =IF(Cotizador!$L$26=0,"",Cotizador!$L$26) -> 
C23: Provincia | D23: =IF(Cotizador!$G$26=0,"",Cotizador!$G$26) -> 
C24: Distrito | D24: =IF(Cotizador!$G$25=0,"",Cotizador!$G$25) -> 
C25: Tipo de Inmueble | D25: =IF(Cotizador!$E$34="X",Cotizador!$B$34,IF(Cotizador!$E$35="X",Cotizador!$B$35,"")) -> 
C27: Modalidad de Aseguramiento | D27: =IF(Cotizador!$H$31="X",Cotizador!$G$31,IF(Cotizador!$K$31="X",Cotizador!$J$31,"")) -> 
C29: Plan contratado | D29: =IF(Cotizador!$G$29="PLAN BÁSICO","Plan Básico",IF(Cotizador!$G$29="PLAN FULL","Plan Full","Personalizado")) -> Personalizado
C31: Suma Asegurada
C32: Suma Asegurada Inmueble | D32: =Cotizador!$G$40 -> 0 | E32: Valor Declarado Inmueble | F32: =Cotizador!$G$38 -> 0
C33: Suma Asegurada Bienes | D33: =Cotizador!G41 -> 0
C34: Suma Asegurada Total (Inmueble + Bienes) | D34: =SUM(D32:D33) -> 0
C36: COBERTURAS (solo INMUEBLE) | E36: Límites asegurados por vigencia | F36: Prima Comercial | I36: OK
C37: Cobertura principal
A38: =IF(LEN(B38)=0,"hide","") ->  | B38: =IF('PRIMER RIESGO INMUEBLE'!B12=0,"",'PRIMER RIESGO INMUEBLE'!B12) -> X | C38: Incendio y/o rayo, explosión, incendio en aparatos eléctricos. Daños por agua, daños por humo, impacto de vehículos y/o aeronaves o daños por riesgos políticos y sociales | E38: ='PRIMER RIESGO INMUEBLE'!F12 -> 0 | F38: ='PRIMER RIESGO INMUEBLE'!G12 -> 51.5
A39: =IF(AND(A40="hide",A41="hide",A42="hide",A43="hide",A44="hide",A45="hide",A46="hide",A47="hide",A48="hide",A49="hide"),"hide","") ->  | C39: Coberturas adicionales
A40: =IF(LEN(B40)=0,"hide","") -> hide | B40: =IF('PRIMER RIESGO INMUEBLE'!B14=0,"",'PRIMER RIESGO INMUEBLE'!B14) ->  | C40: Terremoto, temblor, maremoto, Inundaciones y riesgos de la naturaleza | E40: ='PRIMER RIESGO INMUEBLE'!F14 -> 0 | F40: ='PRIMER RIESGO INMUEBLE'!G14 -> 0
A41: =IF(LEN(B40)=0,"hide","") -> hide | B41: =IF('PRIMER RIESGO INMUEBLE'!B15=0,"",'PRIMER RIESGO INMUEBLE'!B15) ->  | E41: ='PRIMER RIESGO INMUEBLE'!F15 -> Suma asegurada que forma parte de la cobertura principal
A42: =IF(LEN(B42)=0,"hide","") -> hide | B42: =IF('PRIMER RIESGO INMUEBLE'!B16=0,"",'PRIMER RIESGO INMUEBLE'!B16) ->  | C42: Responsabilidad civil frente a terceros | E42: ='PRIMER RIESGO INMUEBLE'!F16 -> 0 | F42: ='PRIMER RIESGO INMUEBLE'!G16 -> 0
A43: =IF(LEN(B42)=0,"hide","") -> hide | B43: =IF('PRIMER RIESGO INMUEBLE'!B17=0,"",'PRIMER RIESGO INMUEBLE'!B17) ->  | E43: ='PRIMER RIESGO INMUEBLE'!F17 -> máximo US$ 200,000
A44: =IF(LEN(B44)=0,"hide","") -> hide | B44: =IF('PRIMER RIESGO INMUEBLE'!B18=0,"",'PRIMER RIESGO INMUEBLE'!B18) ->  | C44: Rotura accidental de vidrio y/o cristales | E44: ='PRIMER RIESGO INMUEBLE'!F18 -> Hasta US$ 3,000 ,suma asegurada que forma parte de la cobertura principal | F44: ='PRIMER RIESGO INMUEBLE'!G18 -> 0
A45: =IF(LEN(B45)=0,"hide","") -> hide | B45: =IF('PRIMER RIESGO INMUEBLE'!B19=0,"",'PRIMER RIESGO INMUEBLE'!B19) ->  | C45: Robo o intento de robo de instalaciones fijas | E45: ='PRIMER RIESGO INMUEBLE'!F19 -> Hasta el 20% de la suma asegurada de inmueble, máximo US$ 5,000 ,suma asegurada que forma parte de la cobertura principal | F45: ='PRIMER RIESGO INMUEBLE'!G19 -> 0
A46: =IF(LEN(B46)=0,"hide","") -> hide | B46: =IF('PRIMER RIESGO INMUEBLE'!B20=0,"",'PRIMER RIESGO INMUEBLE'!B20) ->  | C46: Reembolso de gastos médicos por accidentes de trabajadores del hogar, ocurridos dentro del inmueble | E46: ='PRIMER RIESGO INMUEBLE'!F20 -> Hasta US$ 5,000 por evento, máximo 3 eventos por vigencia de la póliza | F46: ='PRIMER RIESGO INMUEBLE'!G20 -> 0
A47: hide | B47: =IF('PRIMER RIESGO INMUEBLE'!B21=0,"",'PRIMER RIESGO INMUEBLE'!B21) ->  | C47: Gastos de arrendamiento de vivienda temporal a reembolso | E47: ='PRIMER RIESGO INMUEBLE'!F21 -> Hasta US$ 2,000 mensuales, máximo 6 meses por vigencia de la póliza, suma asegurada que forma parte de la cobertura principal | F47: ='PRIMER RIESGO INMUEBLE'!G21 -> 0
A48: hide | B48: =IF('PRIMER RIESGO INMUEBLE'!B22=0,"",'PRIMER RIESGO INMUEBLE'!B22) ->  | C48: Alquiler no percibido por inmueble inhabitable temporalmente | E48: ='PRIMER RIESGO INMUEBLE'!F22 -> Hasta US$ 2,000 mensuales, máximo 6 meses por vigencia de la póliza, suma asegurada que forma parte de la cobertura principal | F48: ='PRIMER RIESGO INMUEBLE'!G22 -> 0
A49: =IF(LEN(B49)=0,"hide","") ->  | B49: =IF('PRIMER RIESGO INMUEBLE'!B23=0,"",'PRIMER RIESGO INMUEBLE'!B23) -> X | C49: Gastos extraordinarios: remoción de escombros, honorarios profesionales y construcción de documentos y modelos | E49: ='PRIMER RIESGO INMUEBLE'!F23 -> Hasta el 20% de la suma asegurada de Inmueble, suma asegurada que forma parte de la cobertura principal | F49: ='PRIMER RIESGO INMUEBLE'!G23 -> 0
A50: =IF(LEN($B$50)=0,"hide","") -> hide | B50: =IF('PRIMER RIESGO INMUEBLE'!B24=0,"",'PRIMER RIESGO INMUEBLE'!B24) ->  | C50: Asistencias | I50: OK
A51: =IF(LEN($B$50)=0,"hide","") -> hide | C51: ='PRIMER RIESGO INMUEBLE'!D25 -> Envío y pago de Cerrajero por emergencia las 24H | E51: ='PRIMER RIESGO INMUEBLE'!F25 -> Hasta US$ 300 por evento, Máximo de 3 eventos | F51: ='PRIMER RIESGO INMUEBLE'!G25 -> 0
A52: =IF(LEN($B$50)=0,"hide","") -> hide | C52: ='PRIMER RIESGO INMUEBLE'!D26 -> Envío y pago de Gasfitero por emergencia las 24H | E52: ='PRIMER RIESGO INMUEBLE'!F26 -> Hasta US$ 300 por evento, Máximo de 3 eventos
A53: hide | C53: ='PRIMER RIESGO INMUEBLE'!D27 -> Envío y pago de Electricista por emergencia las 24H | E53: ='PRIMER RIESGO INMUEBLE'!F27 -> Hasta US$ 300 por evento, Máximo de 3 eventos
A54: hide | C54: ='PRIMER RIESGO INMUEBLE'!D28 -> Envío y pago de Vidriero por emergencia las 24H | E54: ='PRIMER RIESGO INMUEBLE'!F28 -> Hasta US$ 300 por evento, Máximo de 3 eventos
A55: hide | C55: ='PRIMER RIESGO INMUEBLE'!D29 -> Limpieza del inmueble asegurado a consecuencia de un siniestro | E55: ='PRIMER RIESGO INMUEBLE'!F29 -> Hasta US$ 500 por evento, Máximo de 3 eventos
A56: hide | C56: ='PRIMER RIESGO INMUEBLE'!D30 -> Servicio de Lavado de estores, roller, alfombras | E56: ='PRIMER RIESGO INMUEBLE'!F30 -> Hasta US$ 80 por evento, máximo de 1 evento, cubriendo la limpieza de una pieza.
A57: hide | C57: ='PRIMER RIESGO INMUEBLE'!D31 -> Servicio de Lavado de colchón | E57: ='PRIMER RIESGO INMUEBLE'!F31 -> Hasta US$ 80 por evento, máximo de 1 evento, cubriendo la limpieza de una pieza.
A58: hide | C58: ='PRIMER RIESGO INMUEBLE'!D32 -> Masajes relajantes a domicilio durante 1 hora | E58: ='PRIMER RIESGO INMUEBLE'!F32 -> Hasta US$ 80 por evento, máximo de 1 evento, cubriendo la limpieza de una pieza.
A59: hide | C59: ='PRIMER RIESGO INMUEBLE'!D33 -> Mozo a domicilio | E59: ='PRIMER RIESGO INMUEBLE'!F33 -> Hasta máximo de 3 eventos al año, con servicio una vez al mes.
A60: hide | C60: ='PRIMER RIESGO INMUEBLE'!D34 -> Mantenimiento Preventivo de Línea Blanca | E60: ='PRIMER RIESGO INMUEBLE'!F34 -> Hasta US$ 75 por evento, máximo de 3 eventos, cubriendo la revisión de un equipo.
A61: hide | C61: ='PRIMER RIESGO INMUEBLE'!D35 -> Orientación telefónica veterinaria para perros las 24H | E61: ='PRIMER RIESGO INMUEBLE'!F35 -> Sin límite
A62: hide | C62: ='PRIMER RIESGO INMUEBLE'!D36 -> Hospedaje de perros | E62: ='PRIMER RIESGO INMUEBLE'!F36 -> Hasta máximo de 3 eventos. Se considera 1 día de hospedaje por evento.
C63: Deducibles: Aplicables por evento/pérdida, en caso de discrepancia prevalece el mayor | I63: OK
A64: =IF(LEN(B64)=0,"hide","") -> hide | B64: =IF('PRIMER RIESGO INMUEBLE'!B38=0,"",'PRIMER RIESGO INMUEBLE'!B38) ->  | C64: Terremoto / Maremoto | E64: ='PRIMER RIESGO INMUEBLE'!F38 -> Hasta el 1% del límite asegurado, mínimo US$ 200
A65: =IF(LEN(B65)=0,"hide","") -> hide | B65: =IF('PRIMER RIESGO INMUEBLE'!B39=0,"",'PRIMER RIESGO INMUEBLE'!B39) ->  | C65: Otros Riesgos de la Naturaleza (entre ellos lluvia, inundación, otros) | E65: ='PRIMER RIESGO INMUEBLE'!F39 -> Hasta 10% del monto indemnizable, mínimo US$ 200
B66: =IF('PRIMER RIESGO INMUEBLE'!B40=0,"",'PRIMER RIESGO INMUEBLE'!B40) -> X | C66: Daños por agua | E66: ='PRIMER RIESGO INMUEBLE'!F40 -> Hasta 10% del monto indemnizable, mínimo US$ 200
B67: =IF('PRIMER RIESGO INMUEBLE'!B41=0,"",'PRIMER RIESGO INMUEBLE'!B41) -> X | C67: Riesgos políticos y sociales | E67: ='PRIMER RIESGO INMUEBLE'!F41 -> Hasta 10% del monto indemnizable, mínimo US$ 200
A68: hide | B68: =IF('PRIMER RIESGO INMUEBLE'!B42=0,"",'PRIMER RIESGO INMUEBLE'!B42) ->  | C68: Responsabilidad civil frente a terceros | E68: ='PRIMER RIESGO INMUEBLE'!F42 -> Hasta 10% del monto indemnizable, mínimo US$ 200
A69: hide | B69: =IF('PRIMER RIESGO INMUEBLE'!B43=0,"",'PRIMER RIESGO INMUEBLE'!B43) ->  | C69: Rotura accidental de vidrio y/o cristales | E69: ='PRIMER RIESGO INMUEBLE'!F43 -> Hasta 10% del monto indemnizable, mínimo US$ 200
A70: hide | B70: =IF('PRIMER RIESGO INMUEBLE'!B44=0,"",'PRIMER RIESGO INMUEBLE'!B44) ->  | C70: Robo o intento de robo de instalaciones fijas | E70: ='PRIMER RIESGO INMUEBLE'!F44 -> Hasta 10% del monto indemnizable, mínimo US$ 200
A71: hide | B71: =IF('PRIMER RIESGO INMUEBLE'!B45=0,"",'PRIMER RIESGO INMUEBLE'!B45) ->  | C71: Demás coberturas | E71: ='PRIMER RIESGO INMUEBLE'!F45 -> Sin deducible
C74: Importante: | I74: OK
C75: Si se encuentran discrepancias entre la presente cotización y los términos de la póliza, prevalecerán las condiciones de esta última.
C76: La presente cotización es válida por un plazo de 30 días calendarios contados a partir de la fecha de recepción de la misma. Luego de vencido dicho plazo la oferta contenida en la presente cotización quedará sin efecto legal alguno entre las partes.
C77: Se deja constancia expresa que, a potestad de la Compañía, la aceptación final del riesgo por parte de esta queda sujeta a la realización de la inspección, por parte de nuestro Departamento de Ingeniería o la persona autorizada para tal efecto, para verificar el efectivo estado del riesgo, así como el estricto cumplimiento por parte del Asegurado de las garantías que a mérito de dicha inspección establezca el Departamento de Ingeniería de la Compañía.
C79: Consideraciones: | I79: OK
C80: - La forma de entrega de la póliza es electrónica. - La forma de pago de la póliza es solo con afiliación al débito automático a una tarjeta de crédito o a una cuenta bancaria. - La modalidad de aseguramiento que brinda este plan de seguros es a valor total. - La cobertura principal comprende además cualquier otro riesgo, súbito e imprevisto, que no esté excluido explícitamente en las exclusiones de las Condiciones Generales y/o Cláusulas Adicionales de la Póliza. - Las coberturas señaladas en Coberturas Adicionales forman parte de la suma asegurada de la Cobertura Principal, es decir, cada indemnización que le paguemos por las coberturas adicionales, reducirá la suma asegurada de la cobertura principal, a excepción de la cobertura adicional Responsabilidad civil frente a terceros, la cual es independiente a la suma asegurada de la cobertura principal. - La cobertura de la póliza en cuanto a pérdida o daños causados por agua que inunde, descargue o derrame de cualquier instalación de agua o desagüe de otros elementos líquidos; no comprenderá el costo de reparar el desperfecto que originó tal pérdida o daño. - Este seguro no otorga cobertura cuando en el inmueble se realiza cualquier actividad o giro comercial diferente al de casa habitación. - Este seguro se renovará automáticamente, es decir, en las mismas condiciones vigentes en el periodo anterior. - Para la cobertura de Robo y/o daños por intento de robo de Joyas y platería se define lo siguiente: Objetos y/o adornos de uso personal elaborados en oro, plata, platino, perlas y que pueden llevar o no incrustadas piedras preciosas de origen biológico o mineral, tanto si están engastadas como si no. También se considera a cualquier objeto ornamental o de uso doméstico elaborado con los materiales enumerados en el párrafo anterior. - El ASEGURADO deberá presentar una relación detallada, a ser actualizada mínimo cada dos años, de los bienes cuyo valor unitario excedan los S/ 5,000. En caso de siniestro, esta relación de bienes es el sustento de la pre-existencia de cada bien declarado. En caso de no cumplir con lo anterior o para bienes afectados no incluidos en la relación presentada, el Asegurado deberá demostrarnos la pre-existencia de los bienes afectados en el siniestro, a través de comprobantes de pago y/o constancia visual (fotografías, video, manuales de uso o similares) en donde se muestre el artículo en el interior del Inmueble asegurado o a la persona usando dicho artículo. - En caso de robo: Se mantiene la exigencia de la denuncia policial, pero se manejará a discreción cada caso hasta por un monto máximo de siniestro de S/ 30,000, siniestros por encima de este monto deberán presentar denuncia policial de manera obligatoria. - Las asistencias están disponibles los 365 días del año en las siguientes ciudades: • Lima Metropolitana exceptuando Ancón, Punta Hermosa, San Bartolo, Santa María y Pucusana. • Trujillo: En los distritos de Trujillo, Victor Larco, Moche y Huanchaco. • Chiclayo: En los distritos de Chiclayo, La Victoria, José Leonardo Ortiz, Pimentel. • Piura: En los distritos de Piura, Castilla, Catacaos. • Arequipa: En los distritos de Arequipa (Cercado), Yanahuara, Cayma, Sachaca, José Luis Bustamante y Rivero, Cerro Colorado. • Cusco: En los distritos de Cusco, San Jerónimo, San Sebastián, Santiago, Wanchaq. Aplican y deben aparecer tanto para a primer riesgo como para valor total
C112: Exlusiones: | I112: OK
C113: Tenga en cuenta que no pagaremos la reparación del desperfecto ni del bien que originó el daño, como tampoco ninguna pérdida o daño proveniente o que sean causa de, o en conexión con, o atribuibles principalmente a: a) Dolo, culpa grave o negligencia inexcusable del CONTRATANTE o de USTED y/o del BENEFICIARIO y/o ENDOSATARIO o de los familiares de cualquiera de ellos, o de sus dependientes, especialmente de los responsables de la seguridad de los BIENES asegurados. b) Guerra, Guerra Civil, invasión, acto de enemigo extranjero, hostilidades u operaciones de guerra, declarada o no. c) Desgaste o deterioro paulatino o fatiga de material, causado por, o resultado de, el uso y funcionamiento del bien; uso o deterioro gradual; deficiencias de rendimiento o capacidad; polución, contaminación; corrosión, erosión; herrumbre u oxidación; hongos, moho húmedo o seco, combustión espontánea, fermentación; humedad, sequedad, smog o cambios de temperatura; asentamiento o contracción o expansión de edificios o cimientos; la calefacción o la desecación a que hubieran sido sometidos los objetos que forman parte de la Materia Asegurada. d) Hundimientos, desplazamientos, agrietamientos o asentamientos de muros, pisos, techos, pavimentos, cimientos, muros de contención. Sin embargo, si estos daños son causados por los eventos de Terremoto, Temblor, Erupción Volcánica o Maremoto para los cuales se haya contratado amparo bajo la presente póliza, no se aplicará esta exclusión. e) Todo gasto o costo para implementar modificaciones o mejoras, o por mantenimiento, o para hacer otras reparaciones o arreglos, en el INMUEBLE y/o BIENES dañados o afectados; así como los gastos o costos de cualquier reparación provisional, a menos que constituyan, a la vez, parte de los gastos de la reparación definitiva amparada por la póliza. f) Valor atribuido a los BIENES por razones sentimentales o simbólicas, por afición, por antigüedad, o por exclusividad. g) Pérdida o daño ocurrido cuando el INMUEBLE esté deshabitado y/o cuando los BIENES se hallen en el INMUEBLE deshabitado; en ambos casos durante más de noventa (90) días consecutivos. Las demás exclusiones se encuentran en el acápite 3 de las Condiciones Generales de la Póliza. Aplican exclusiones específicas a la cobertura que se contrate, detalladas en su respectiva Cláusula Adicional. Bienes excluidos: a) INMUEBLE y/o BIENES con cualquier actividad o giro diferente al de casa habitación. b) Animales vivos de cualquier tipo. c) Plantaciones, cultivos, cosechas de cualquier tipo, invernaderos, bosques, selvas, monte bajo, praderas, pampas, árboles, parques, prados, jardines naturales y ornamentales, agua. d) INMUEBLES y/o BIENES en proceso de construcción, reconstrucción, montaje o desmontaje. e) Vehículos motorizados con una placa de rodaje, equipos flotantes o submarinos, aeronaves o artefactos aéreos, embarcaciones, naves acuáticas; de cualquier tipo y tamaño. f) BIENES de cualquier tipo que sean propiedad de terceros aun cuando dichos BIENES se encuentren bajo custodia y/o posesión del Asegurado. g) Material pirotécnico, explosivos, combustibles, mechas, fulminantes, detonadores y similares. h) BIENES situados o instalados u operando o trabajando o siendo usados en él, o a las orillas del, mar, río, lago o laguna, en subterráneos, o debajo del nivel de la superficie terrestre. i) Dinero en efectivo, títulos valores. j) Cualquier tipo de contenido o bien para fines comerciales, de la profesión u ocupación o de negocios de USTED, de cualquier miembro de su familia, por medio de los cuales obtengan un lucro.

Sheet CotizacionBienes (hidden)
C1: ="Cotización Seguro de Hogar Flex " & configuracion!$K$2 -> Cotización Seguro de Hogar Flex Enero 2025
C3: Vigencia de la cotización | D3: =TEXT(TODAY(),"dd/mm/yyyy") & " - " & TEXT(TODAY()+15,"dd/mm/yyyy") -> 25/03/2025 - 09/04/2025
C4: Fecha inicio de Vigencia | D4: =Cotizador!$L$6 -> 00:00:00
C5: Canal | D5: =Cotizador!$G$10 -> Corredor
C6: Agente | D6: =Cotizador!R$10 -> 0
C8: Datos del Contratante
C9: Nombre del Contratante | D9: =Cotizador!$G$15 & " " & Cotizador!$M$15& " " & Cotizador!$R$15 -> 
C10: Tipo de documento | D10: =Cotizador!$G$14&" " &Cotizador!$M$14 -> 
F11: Descuento
C12: Planes de Pago Prima | F12: =Cotizador!$M$40 -> 0
C13: Débito automático | D13: Valores de la Cuota
C14: Plan de pago | D14: Prima Comercial | E14: IGV | F14: Prima Total
C15: Prima anual + IGV sin intereses: | D15: =IF(Cotizador!$G$54=0,"",Cotizador!$G$54) ->  | E15: =IF(Cotizador!$G$55=0,"",Cotizador!$G$55) ->  | F15: =IF(Cotizador!$G$56=0,"",Cotizador!$G$56) -> 
C16: Prima anual + IGV sin intereses: | D16: =IF(Cotizador!$L$54=0,"",Cotizador!$L$54) ->  | E16: =IF(Cotizador!$L$55=0,"",Cotizador!$L$55) ->  | F16: =IF(Cotizador!$L$56=0,"",Cotizador!$L$56) -> 
C17: =IF(Cotizador!$I$61="X",Cotizador!$B$61,IF(Cotizador!$I$62="X",Cotizador!$B$62,IF(Cotizador!$I$63="X",Cotizador!$B$63,IF(Cotizador!$I$64="X",Cotizador!$B$64,IF(Cotizador!$I$66="X",Cotizador!$B$66,IF(Cotizador!$I$67="X",Cotizador!$B$67,IF(Cotizador!$I$68="X",Cotizador!$B$68,IF(Cotizador!$I$69="X",Cotizador!$B$69,"")))))))) ->  | D17: =IFERROR(F17/1.18,"") ->  | E17: =IFERROR(F17-D17,"") ->  | F17: =IF(Cotizador!$I$61="X",Cotizador!$J$61,IF(Cotizador!$I$62="X",Cotizador!$J$62,IF(Cotizador!$I$63="X",Cotizador!$J$63,IF(Cotizador!$I$64="X",Cotizador!$J$64,IF(Cotizador!$I$66="X",Cotizador!$J$66,IF(Cotizador!$I$67="X",Cotizador!$J$67,IF(Cotizador!$I$68="X",Cotizador!$J$68,IF(Cotizador!$I$69="X",Cotizador!$J$69,"")))))))) -> 
C18: Materia Asegurada | D18: =IF(Cotizador!$H$29="X",Cotizador!$G$29,IF(Cotizador!$K$29="X",Cotizador!$J$29,IF(Cotizador!$O$29="X",Cotizador!$M$29))) -> FALSE
C20: Datos del Inmueble asegurado
C21: Dirección | D21: =Cotizador!$G$22 & " " & Cotizador!G23 -> 
C22: Departamento | D22: =IF(Cotizador!$L$26=0,"",Cotizador!$L$26) -> 
C23: Provincia | D23: =IF(Cotizador!$G$26=0,"",Cotizador!$G$26) -> 
C24: Distrito | D24: =IF(Cotizador!$G$25=0,"",Cotizador!$G$25) -> 
C25: Tipo de Inmueble | D25: =IF(Cotizador!$E$34="X",Cotizador!$B$34,IF(Cotizador!$E$35="X",Cotizador!$B$35,"")) -> 
C27: Modalidad de Aseguramiento | D27: =IF(Cotizador!$H$31="X",Cotizador!$G$31,IF(Cotizador!$K$31="X",Cotizador!$J$31,"")) -> 
C29: Plan contratado | D29: =IF(Cotizador!$G$29="PLAN BÁSICO","Plan Básico",IF(Cotizador!$G$29="PLAN FULL","Plan Full","Personalizado")) -> Personalizado
C31: Suma Asegurada
C32: Suma Asegurada Inmueble | D32: =Cotizador!$G$40 -> 0
C33: Suma Asegurada Bienes | D33: =Cotizador!G41 -> 0 | E33: Valor Declarado Bienes | F33: =Cotizador!$G$39 -> 0
C34: Suma Asegurada Total (Inmueble + Bienes) | D34: =SUM(D32:D33) -> 0
C36: COBERTURAS (solo BIENES) | E36: Límites asegurados por vigencia | F36: Prima Comercial | I36: OK
C37: Cobertura principal
A38: =IF(LEN(B38)=0,"hide","") ->  | B38: =IF('PRIMER RIESGO BIENES'!B12=0,"",'PRIMER RIESGO BIENES'!B12) -> X | C38: Incendio y/o rayo, explosión, incendio en aparatos eléctricos. Daños por agua, daños por humo, impacto de vehículos y/o aeronaves o daños por riesgos políticos y sociales | E38: ='PRIMER RIESGO BIENES'!F12 -> 0 | F38: ='PRIMER RIESGO BIENES'!G12 -> 51.5
A39: =IF(AND(A40="hide",A41="hide",A42="hide",A43="hide",A44="hide",A45="hide",A46="hide"),"hide","") ->  | C39: Coberturas adicionales
A40: =IF(LEN(B40)=0,"hide","") -> hide | B40: =IF('PRIMER RIESGO BIENES'!B14=0,"",'PRIMER RIESGO BIENES'!B14) ->  | C40: Robo y/o daños por intento de robo (dentro y fuera de la vivienda a nivel nacional) | E40: ='PRIMER RIESGO BIENES'!F14 -> 0 | F40: ='PRIMER RIESGO BIENES'!G14 -> 0
A41: =IF(LEN(B41)=0,"hide","") -> hide | B41: =IF('PRIMER RIESGO BIENES'!B15=0,"",'PRIMER RIESGO BIENES'!B15) ->  | C41: Robo y/o daños por intento de robo de joyas, platería, relojes, obras de arte, cámaras fotográficas o de video, laptops y bicicletas dentro de la vivienda o que estén siendo portados fuera de la vivienda. | E41: ='PRIMER RIESGO BIENES'!F15 -> USD 10,000, sublímite de la cobertura de Robo | F41: ='PRIMER RIESGO BIENES'!G15 -> 0
A42: =IF(LEN(B42)=0,"hide","") -> hide | B42: =IF('PRIMER RIESGO BIENES'!B16=0,"",'PRIMER RIESGO BIENES'!B16) ->  | C42: Terremoto, temblor, maremoto, Inundaciones y riesgos de la naturaleza | E42: ='PRIMER RIESGO BIENES'!F16 -> 0 | F42: ='PRIMER RIESGO BIENES'!G16 -> 0
A43: =IF(LEN(B42)=0,"hide","") -> hide | E43: ='PRIMER RIESGO BIENES'!F17 -> Suma asegurada que forma parte de la cobertura principal | F43: ='PRIMER RIESGO BIENES'!G17 -> 0
A44: =IF(LEN(B44)=0,"hide","") -> hide | B44: =IF('PRIMER RIESGO BIENES'!B18=0,"",'PRIMER RIESGO BIENES'!B18) ->  | C44: Hurto | E44: ='PRIMER RIESGO BIENES'!F18 -> Hasta US$ 3,000 , sublímite de la cobertura de Robo | F44: ='PRIMER RIESGO BIENES'!G18 -> 0
A45: =IF(LEN(B45)=0,"hide","") -> hide | B45: =IF('PRIMER RIESGO BIENES'!B19=0,"",'PRIMER RIESGO BIENES'!B19) ->  | C45: Deshonestidad de trabajadores del hogar | E45: ='PRIMER RIESGO BIENES'!F19 -> Hasta US$ 5,000 por evento, máximo 3 eventos por vigencia de la póliza, sublímite de la cobertura de Robo | F45: ='PRIMER RIESGO BIENES'!G19 -> 0
A46: =IF(LEN(B46)=0,"hide","") ->  | B46: =IF('PRIMER RIESGO BIENES'!B20=0,"",'PRIMER RIESGO BIENES'!B20) -> X | C46: Gastos extraordinarios: remoción de escombros, honorarios profesionales y construcción de documentos y modelos | E46: ='PRIMER RIESGO BIENES'!F20 -> Hasta el 20% de la suma asegurada de bienes, suma asegurada que forma parte de la cobertura principal | F46: ='PRIMER RIESGO BIENES'!G20 -> 0
A47: =IF(AND(A48="hide",A52="hide",A53="hide",A50="hide",A49="hide",A51="hide",A60="hide",A61="hide",A62="hide",A63="hide"),"hide","") ->  | B47: =IF('PRIMER RIESGO BIENES'!B21=0,"",'PRIMER RIESGO BIENES'!B21) ->  | C47: Asistencias | I47: OK
A48: =IF(LEN($B$47)=0,"hide","") -> hide | C48: ='PRIMER RIESGO BIENES'!D22 -> Envío y pago de Cerrajero por emergencia | E48: ='PRIMER RIESGO BIENES'!F22 -> Hasta US$ 300 por evento, Máximo de 3 eventos | F48: ='PRIMER RIESGO BIENES'!G22 -> 0
A49: =IF(LEN($B$47)=0,"hide","") -> hide | C49: ='PRIMER RIESGO BIENES'!D23 -> Envío y pago de Gasfitero por emergencia | E49: ='PRIMER RIESGO BIENES'!F23 -> Hasta US$ 300 por evento, Máximo de 3 eventos
A50: hide | C50: ='PRIMER RIESGO BIENES'!D24 -> Envío y pago de Electricista por emergencia | E50: ='PRIMER RIESGO BIENES'!F24 -> Hasta US$ 300 por evento, Máximo de 3 eventos
A51: hide | C51: ='PRIMER RIESGO BIENES'!D25 -> Envío y pago de Vidriero por emergencia | E51: ='PRIMER RIESGO BIENES'!F25 -> Hasta US$ 300 por evento, Máximo de 3 eventos
A52: hide | C52: ='PRIMER RIESGO BIENES'!D26 -> Limpieza del inmueble asegurado a consecuencia de un siniestro | E52: ='PRIMER RIESGO BIENES'!F26 -> Hasta US$ 500 por evento, Máximo de 3 eventos
A53: hide | C53: ='PRIMER RIESGO BIENES'!D27 -> Servicio de Lavado de estores, roller, alfombras | E53: ='PRIMER RIESGO BIENES'!F27 -> Hasta US$ 80 por evento, máximo de 1 evento, cubriendo la limpieza de una pieza.
A54: hide | C54: ='PRIMER RIESGO BIENES'!D28 -> Servicio de Lavado de colchón | E54: ='PRIMER RIESGO BIENES'!F28 -> Hasta US$ 80 por evento, máximo de 1 evento, cubriendo la limpieza de una pieza.
A55: hide | C55: ='PRIMER RIESGO BIENES'!D29 -> Masajes relajantes a domicilio durante 1 hora | E55: ='PRIMER RIESGO BIENES'!F29 -> Hasta US$ 80 por evento, máximo de 1 evento, cubriendo la limpieza de una pieza.
A56: hide | C56: ='PRIMER RIESGO BIENES'!D30 -> Mozo a domicilio | E56: ='PRIMER RIESGO BIENES'!F30 -> Hasta máximo de 3 eventos al año, con servicio una vez al mes.
A57: hide | C57: ='PRIMER RIESGO BIENES'!D31 -> Mantenimiento Preventivo de Línea Blanca | E57: ='PRIMER RIESGO BIENES'!F31 -> Hasta US$ 75 por evento, máximo de 3 eventos, cubriendo la revisión de un equipo.
A58: hide | C58: ='PRIMER RIESGO BIENES'!D32 -> Orientación telefónica veterinaria para perros las 24H | E58: ='PRIMER RIESGO BIENES'!F32 -> Sin límite
A59: hide | C59: ='PRIMER RIESGO BIENES'!D33 -> Hospedaje de perros | E59: ='PRIMER RIESGO BIENES'!F33 -> Hasta máximo de 3 eventos. Se considera 1 día de hospedaje por evento.
C60: Deducibles: Aplicables por evento/pérdida, en caso de discrepancia prevalece el mayor | H60: OK
A61: =IF(LEN(B61)=0,"hide","") -> hide | B61: =IF('PRIMER RIESGO BIENES'!B35=0,"",'PRIMER RIESGO BIENES'!B35) ->  | C61: Robo y/o daños por intento de robo | E61: ='PRIMER RIESGO BIENES'!F35 -> Hasta 10% del monto indemnizable, mínimo US$ 200
A62: hide | B62: =IF('PRIMER RIESGO BIENES'!B36=0,"",'PRIMER RIESGO BIENES'!B36) ->  | C62: Hurto | E62: ='PRIMER RIESGO BIENES'!F36 -> Hasta 10% del monto indemnizable, mínimo US$ 200
A63: hide | B63: =IF('PRIMER RIESGO BIENES'!B37=0,"",'PRIMER RIESGO BIENES'!B37) ->  | C63: Deshonestidad de trabajadores del hogar | E63: ='PRIMER RIESGO BIENES'!F37 -> Hasta 10% del monto indemnizable, mínimo US$ 200
A64: hide | B64: =IF('PRIMER RIESGO BIENES'!B38=0,"",'PRIMER RIESGO BIENES'!B38) ->  | C64: Terremoto / Maremoto | E64: ='PRIMER RIESGO BIENES'!F38 -> Hasta el 1% del límite asegurado, mínimo US$ 200
A65: hide | B65: =IF('PRIMER RIESGO BIENES'!B39=0,"",'PRIMER RIESGO BIENES'!B39) ->  | C65: Otros Riesgos de la Naturaleza (entre ellos lluvia, inundación, otros) | E65: ='PRIMER RIESGO BIENES'!F39 -> Hasta 10% del monto indemnizable, mínimo US$ 200
B66: =IF('PRIMER RIESGO BIENES'!B40=0,"",'PRIMER RIESGO BIENES'!B40) -> X | C66: Daños por agua | E66: ='PRIMER RIESGO BIENES'!F40 -> Hasta 10% del monto indemnizable, mínimo US$ 200
B67: =IF('PRIMER RIESGO BIENES'!B41=0,"",'PRIMER RIESGO BIENES'!B41) -> X | C67: Riesgos políticos y sociales | E67: ='PRIMER RIESGO BIENES'!F41 -> Hasta 10% del monto indemnizable, mínimo US$ 200
A68: =IF(LEN(B68)=0,"hide","") -> hide | B68: =IF('PRIMER RIESGO BIENES'!B42=0,"",'PRIMER RIESGO BIENES'!B42) ->  | C68: Demás coberturas | E68: ='PRIMER RIESGO BIENES'!F42 -> Sin deducible
C71: Importante: | I71: OK
C72: Si se encuentran discrepancias entre la presente cotización y los términos de la póliza, prevalecerán las condiciones de esta última.
C73: La presente cotización es válida por un plazo de 30 días calendarios contados a partir de la fecha de recepción de la misma. Luego de vencido dicho plazo la oferta contenida en la presente cotización quedará sin efecto legal alguno entre las partes.
C74: Se deja constancia expresa que, a potestad de la Compañía, la aceptación final del riesgo por parte de esta queda sujeta a la realización de la inspección, por parte de nuestro Departamento de Ingeniería o la persona autorizada para tal efecto, para verificar el efectivo estado del riesgo, así como el estricto cumplimiento por parte del Asegurado de las garantías que a mérito de dicha inspección establezca el Departamento de Ingeniería de la Compañía.
C76: Consideraciones: | I76: OK
C77: - La forma de entrega de la póliza es electrónica. - La forma de pago de la póliza es solo con afiliación al débito automático a una tarjeta de crédito o a una cuenta bancaria. - La modalidad de aseguramiento que brinda este plan de seguros es a valor total. - La cobertura principal comprende además cualquier otro riesgo, súbito e imprevisto, que no esté excluido explícitamente en las exclusiones de las Condiciones Generales y/o Cláusulas Adicionales de la Póliza. - Las coberturas señaladas en Coberturas Adicionales forman parte de la suma asegurada de la Cobertura Principal, es decir, cada indemnización que le paguemos por las coberturas adicionales, reducirá la suma asegurada de la cobertura principal, a excepción de la cobertura adicional Responsabilidad civil frente a terceros, la cual es independiente a la suma asegurada de la cobertura principal. - La cobertura de la póliza en cuanto a pérdida o daños causados por agua que inunde, descargue o derrame de cualquier instalación de agua o desagüe de otros elementos líquidos; no comprenderá el costo de reparar el desperfecto que originó tal pérdida o daño. - Este seguro no otorga cobertura cuando en el inmueble se realiza cualquier actividad o giro comercial diferente al de casa habitación. - Este seguro se renovará automáticamente, es decir, en las mismas condiciones vigentes en el periodo anterior. - Para la cobertura de Robo y/o daños por intento de robo de Joyas y platería se define lo siguiente: Objetos y/o adornos de uso personal elaborados en oro, plata, platino, perlas y que pueden llevar o no incrustadas piedras preciosas de origen biológico o mineral, tanto si están engastadas como si no. También se considera a cualquier objeto ornamental o de uso doméstico elaborado con los materiales enumerados en el párrafo anterior. - El ASEGURADO deberá presentar una relación detallada, a ser actualizada mínimo cada dos años, de los bienes cuyo valor unitario excedan los S/ 5,000. En caso de siniestro, esta relación de bienes es el sustento de la pre-existencia de cada bien declarado. En caso de no cumplir con lo anterior o para bienes afectados no incluidos en la relación presentada, el Asegurado deberá demostrarnos la pre-existencia de los bienes afectados en el siniestro, a través de comprobantes de pago y/o constancia visual (fotografías, video, manuales de uso o similares) en donde se muestre el artículo en el interior del Inmueble asegurado o a la persona usando dicho artículo. - En caso de robo: Se mantiene la exigencia de la denuncia policial, pero se manejará a discreción cada caso hasta por un monto máximo de siniestro de S/ 30,000, siniestros por encima de este monto deberán presentar denuncia policial de manera obligatoria. - Las asistencias están disponibles los 365 días del año en las siguientes ciudades: • Lima Metropolitana exceptuando Ancón, Punta Hermosa, San Bartolo, Santa María y Pucusana. • Trujillo: En los distritos de Trujillo, Victor Larco, Moche y Huanchaco. • Chiclayo: En los distritos de Chiclayo, La Victoria, José Leonardo Ortiz, Pimentel. • Piura: En los distritos de Piura, Castilla, Catacaos. • Arequipa: En los distritos de Arequipa (Cercado), Yanahuara, Cayma, Sachaca, José Luis Bustamante y Rivero, Cerro Colorado. • Cusco: En los distritos de Cusco, San Jerónimo, San Sebastián, Santiago, Wanchaq. Aplican y deben aparecer tanto para a primer riesgo como para valor total
C109: Exlusiones: | I109: OK
C110: Tenga en cuenta que no pagaremos la reparación del desperfecto ni del bien que originó el daño, como tampoco ninguna pérdida o daño proveniente o que sean causa de, o en conexión con, o atribuibles principalmente a: a) Dolo, culpa grave o negligencia inexcusable del CONTRATANTE o de USTED y/o del BENEFICIARIO y/o ENDOSATARIO o de los familiares de cualquiera de ellos, o de sus dependientes, especialmente de los responsables de la seguridad de los BIENES asegurados. b) Guerra, Guerra Civil, invasión, acto de enemigo extranjero, hostilidades u operaciones de guerra, declarada o no. c) Desgaste o deterioro paulatino o fatiga de material, causado por, o resultado de, el uso y funcionamiento del bien; uso o deterioro gradual; deficiencias de rendimiento o capacidad; polución, contaminación; corrosión, erosión; herrumbre u oxidación; hongos, moho húmedo o seco, combustión espontánea, fermentación; humedad, sequedad, smog o cambios de temperatura; asentamiento o contracción o expansión de edificios o cimientos; la calefacción o la desecación a que hubieran sido sometidos los objetos que forman parte de la Materia Asegurada. d) Hundimientos, desplazamientos, agrietamientos o asentamientos de muros, pisos, techos, pavimentos, cimientos, muros de contención. Sin embargo, si estos daños son causados por los eventos de Terremoto, Temblor, Erupción Volcánica o Maremoto para los cuales se haya contratado amparo bajo la presente póliza, no se aplicará esta exclusión. e) Todo gasto o costo para implementar modificaciones o mejoras, o por mantenimiento, o para hacer otras reparaciones o arreglos, en el INMUEBLE y/o BIENES dañados o afectados; así como los gastos o costos de cualquier reparación provisional, a menos que constituyan, a la vez, parte de los gastos de la reparación definitiva amparada por la póliza. f) Valor atribuido a los BIENES por razones sentimentales o simbólicas, por afición, por antigüedad, o por exclusividad. g) Pérdida o daño ocurrido cuando el INMUEBLE esté deshabitado y/o cuando los BIENES se hallen en el INMUEBLE deshabitado; en ambos casos durante más de noventa (90) días consecutivos. Las demás exclusiones se encuentran en el acápite 3 de las Condiciones Generales de la Póliza. Aplican exclusiones específicas a la cobertura que se contrate, detalladas en su respectiva Cláusula Adicional. Bienes excluidos: a) INMUEBLE y/o BIENES con cualquier actividad o giro diferente al de casa habitación. b) Animales vivos de cualquier tipo. c) Plantaciones, cultivos, cosechas de cualquier tipo, invernaderos, bosques, selvas, monte bajo, praderas, pampas, árboles, parques, prados, jardines naturales y ornamentales, agua. d) INMUEBLES y/o BIENES en proceso de construcción, reconstrucción, montaje o desmontaje. e) Vehículos motorizados con una placa de rodaje, equipos flotantes o submarinos, aeronaves o artefactos aéreos, embarcaciones, naves acuáticas; de cualquier tipo y tamaño. f) BIENES de cualquier tipo que sean propiedad de terceros aun cuando dichos BIENES se encuentren bajo custodia y/o posesión del Asegurado. g) Material pirotécnico, explosivos, combustibles, mechas, fulminantes, detonadores y similares. h) BIENES situados o instalados u operando o trabajando o siendo usados en él, o a las orillas del, mar, río, lago o laguna, en subterráneos, o debajo del nivel de la superficie terrestre. i) Dinero en efectivo, títulos valores. j) Cualquier tipo de contenido o bien para fines comerciales, de la profesión u ocupación o de negocios de USTED, de cualquier miembro de su familia, por medio de los cuales obtengan un lucro.

Sheet CotizacionInmuebleyBienes (hidden)
C1: ="Cotización Seguro de Hogar Flex " & configuracion!$K$2 -> Cotización Seguro de Hogar Flex Enero 2025
C3: Vigencia de la cotización | D3: =TEXT(TODAY(),"dd/mm/yyyy") & " - " & TEXT(TODAY()+15,"dd/mm/yyyy") -> 25/03/2025 - 09/04/2025
C4: Fecha inicio de Vigencia | D4: =Cotizador!$L$6 -> 00:00:00
C5: Canal | D5: =Cotizador!$G$10 -> Corredor
C6: Agente | D6: =Cotizador!R$10 -> 0
C8: Datos del Contratante
C9: Nombre del Contratante | D9: =Cotizador!$G$15 & " " & Cotizador!$M$15& " " & Cotizador!$R$15 -> 
C10: Tipo de documento | D10: =Cotizador!$G$14&" " &Cotizador!$M$14 -> 
F11: Descuento
C12: Planes de Pago Prima | F12: =Cotizador!$M$40 -> 0
C13: Débito automático | D13: Valores de la Cuota
C14: Plan de pago | D14: Prima Comercial | E14: IGV | F14: Prima Total
C15: Prima anual + IGV sin intereses: | D15: =IF(Cotizador!$G$54=0,"",Cotizador!$G$54) ->  | E15: =IF(Cotizador!$G$55=0,"",Cotizador!$G$55) ->  | F15: =IF(Cotizador!$G$56=0,"",Cotizador!$G$56) -> 
C16: Prima anual + IGV sin intereses: | D16: =IF(Cotizador!$L$54=0,"",Cotizador!$L$54) ->  | E16: =IF(Cotizador!$L$55=0,"",Cotizador!$L$55) ->  | F16: =IF(Cotizador!$L$56=0,"",Cotizador!$L$56) -> 
C17: =IF(Cotizador!$I$61="X",Cotizador!$B$61,IF(Cotizador!$I$62="X",Cotizador!$B$62,IF(Cotizador!$I$63="X",Cotizador!$B$63,IF(Cotizador!$I$64="X",Cotizador!$B$64,IF(Cotizador!$I$66="X",Cotizador!$B$66,IF(Cotizador!$I$67="X",Cotizador!$B$67,IF(Cotizador!$I$68="X",Cotizador!$B$68,IF(Cotizador!$I$69="X",Cotizador!$B$69,"")))))))) ->  | D17: =IFERROR(F17/1.18,"") ->  | E17: =IFERROR(F17-D17,"") ->  | F17: =IF(Cotizador!$I$61="X",Cotizador!$J$61,IF(Cotizador!$I$62="X",Cotizador!$J$62,IF(Cotizador!$I$63="X",Cotizador!$J$63,IF(Cotizador!$I$64="X",Cotizador!$J$64,IF(Cotizador!$I$66="X",Cotizador!$J$66,IF(Cotizador!$I$67="X",Cotizador!$J$67,IF(Cotizador!$I$68="X",Cotizador!$J$68,IF(Cotizador!$I$69="X",Cotizador!$J$69,"")))))))) -> 
C18: Materia Asegurada | D18: =IF(Cotizador!$H$29="X",Cotizador!$G$29,IF(Cotizador!$K$29="X",Cotizador!$J$29,IF(Cotizador!$O$29="X",Cotizador!$M$29))) -> FALSE
C20: Datos del Inmueble asegurado
C21: Dirección | D21: =Cotizador!$G$22 & " " & Cotizador!G23 -> 
C22: Departamento | D22: =IF(Cotizador!$L$26=0,"",Cotizador!$L$26) -> 
C23: Provincia | D23: =IF(Cotizador!$G$26=0,"",Cotizador!$G$26) -> 
C24: Distrito | D24: =IF(Cotizador!$G$25=0,"",Cotizador!$G$25) -> 
C25: Tipo de Inmueble | D25: =IF(Cotizador!$E$34="X",Cotizador!$B$34,IF(Cotizador!$E$35="X",Cotizador!$B$35,"")) -> 
C27: Modalidad de Aseguramiento | D27: =IF(Cotizador!$H$31="X",Cotizador!$G$31,IF(Cotizador!$K$31="X",Cotizador!$J$31,"")) -> 
C29: Plan contratado | D29: =IF(Cotizador!$G$29="PLAN BÁSICO","Plan Básico",IF(Cotizador!$G$29="PLAN FULL","Plan Full","Personalizado")) -> Personalizado
C31: Sumas Aseguradas
C32: Suma Asegurada Inmueble | D32: =Cotizador!$G$40 -> 0 | E32: Valor Declarado Inmueble | F32: =Cotizador!$G$38 -> 0
C33: Suma Asegurada Bienes | D33: =Cotizador!G41 -> 0 | E33: Valor Declarado Bienes | F33: =Cotizador!$G$39 -> 0
C34: Suma Asegurada Total (Inmueble + Bienes) | D34: =SUM(D32:D33) -> 0
C36: COBERTURAS (INMUEBLE Y BIENES) | E36: Límites asegurados por vigencia, hasta | F36: Límites asegurados por vigencia, hasta | G36: Prima Comercial | I36: OK
C37: Cobertura principal | E37: INMUEBLE | F37: BIENES
A38: =IF(LEN(B38)=0,"hide","") ->  | B38: =IF('PRIMER RIESGO INMUEBLE+BIENES'!B12=0,"",'PRIMER RIESGO INMUEBLE+BIENES'!B12) -> X | C38: Incendio y/o rayo, explosión, incendio en aparatos eléctricos. Daños por agua, daños por humo, impacto de vehículos y/o aeronaves o daños por riesgos políticos y sociales | E38: ='PRIMER RIESGO INMUEBLE+BIENES'!F12 -> 200000 | F38: ='PRIMER RIESGO INMUEBLE+BIENES'!G12 -> 10000 | G38: ='PRIMER RIESGO INMUEBLE+BIENES'!H12 -> 114.8605
C39: Coberturas adicionales
A40: =IF(LEN(B40)=0,"hide","") ->  | B40: =IF('PRIMER RIESGO INMUEBLE+BIENES'!B14=0,"",'PRIMER RIESGO INMUEBLE+BIENES'!B14) -> X | C40: Terremoto, temblor, maremoto, Inundaciones y riesgos de la naturaleza | E40: ='PRIMER RIESGO INMUEBLE+BIENES'!F14 -> 200000 | F40: ='PRIMER RIESGO INMUEBLE+BIENES'!G14 -> 10000 | G40: ='PRIMER RIESGO INMUEBLE+BIENES'!H14 -> 447.79
A41: =IF(LEN(B40)=0,"hide","") ->  | E41: Suma asegurada que forma parte de la cobertura principal | F41: Suma asegurada que forma parte de la cobertura principal
A42: =IF(LEN(B42)=0,"hide","") ->  | B42: =IF('PRIMER RIESGO INMUEBLE+BIENES'!B16=0,"",'PRIMER RIESGO INMUEBLE+BIENES'!B16) -> X | C42: Responsabilidad civil frente a terceros | E42: ='PRIMER RIESGO INMUEBLE+BIENES'!F16 -> 200000 | F42: ='PRIMER RIESGO INMUEBLE+BIENES'!G16 -> - | G42: ='PRIMER RIESGO INMUEBLE+BIENES'!H16 -> 2.03
A43: =IF(LEN(B42)=0,"hide","") ->  | E43: =coberturasyClausulas!$J$64 -> máximo US$ 200,000
A44: =IF(LEN(B44)=0,"hide","") ->  | B44: =IF('PRIMER RIESGO INMUEBLE+BIENES'!B18=0,"",'PRIMER RIESGO INMUEBLE+BIENES'!B18) -> X | C44: Rotura accidental de vidrio y/o cristales | E44: ='PRIMER RIESGO INMUEBLE+BIENES'!F18 -> US$ 3,000 | G44: ='PRIMER RIESGO INMUEBLE+BIENES'!H18 -> 4.46
A45: =IF(LEN(B44)=0,"hide","") ->  | E45: Suma asegurada que forma parte de la cobertura principal
A46: =IF(LEN(B46)=0,"hide","") ->  | B46: =IF('PRIMER RIESGO INMUEBLE+BIENES'!B20=0,"",'PRIMER RIESGO INMUEBLE+BIENES'!B20) -> X | C46: Robo o intento de robo de instalaciones fijas | E46: ='PRIMER RIESGO INMUEBLE+BIENES'!F20 -> 20% de la suma asegurada de inmueble, máximo US$ 5,000 , suma asegurada que forma parte de la cobertura principal | G46: ='PRIMER RIESGO INMUEBLE+BIENES'!H20 -> 0.36
A47: =IF(LEN(B47)=0,"hide","") ->  | B47: =IF('PRIMER RIESGO INMUEBLE+BIENES'!B21=0,"",'PRIMER RIESGO INMUEBLE+BIENES'!B21) -> X | C47: Robo y/o daños por intento de robo (dentro y fuera de la vivienda a nivel nacional) | E47: ='PRIMER RIESGO INMUEBLE+BIENES'!F21 -> - | F47: ='PRIMER RIESGO INMUEBLE+BIENES'!G21 -> 10000 | G47: ='PRIMER RIESGO INMUEBLE+BIENES'!H21 -> 45.25
B48: =IF('PRIMER RIESGO INMUEBLE+BIENES'!B22=0,"",'PRIMER RIESGO INMUEBLE+BIENES'!B22) -> X | C48: Robo y/o daños por intento de robo de joyas, platería, relojes, obras de arte, cámaras fotográficas o de video, laptops y bicicletas dentro de la vivienda o que estén siendo portados fuera de la vivienda. | E48: ='PRIMER RIESGO INMUEBLE+BIENES'!F22 -> - | F48: ='PRIMER RIESGO INMUEBLE+BIENES'!G22 -> USD 10,000, sublímite de la cobertura de Robo | G48: ='PRIMER RIESGO INMUEBLE+BIENES'!H22 -> 4.37
B49: =IF('PRIMER RIESGO INMUEBLE+BIENES'!B23=0,"",'PRIMER RIESGO INMUEBLE+BIENES'!B23) -> X | C49: Hurto | E49: ='PRIMER RIESGO INMUEBLE+BIENES'!F23 -> - | F49: ='PRIMER RIESGO INMUEBLE+BIENES'!G23 -> US$ 3,000 , sublímite de la cobertura de Robo | G49: ='PRIMER RIESGO INMUEBLE+BIENES'!H23 -> 4.96
A50: hide | B50: =IF('PRIMER RIESGO INMUEBLE+BIENES'!B24=0,"",'PRIMER RIESGO INMUEBLE+BIENES'!B24) ->  | C50: Deshonestidad de trabajadores del hogar | E50: ='PRIMER RIESGO INMUEBLE+BIENES'!F24 -> - | F50: ='PRIMER RIESGO INMUEBLE+BIENES'!G24 -> US$ 5,000 por evento, máximo 3 eventos por vigencia de la póliza, sublímite de la cobertura de Robo | G50: ='PRIMER RIESGO INMUEBLE+BIENES'!H24 -> 0
A51: hide | B51: =IF('PRIMER RIESGO INMUEBLE+BIENES'!B25=0,"",'PRIMER RIESGO INMUEBLE+BIENES'!B25) ->  | C51: Reembolso de gastos médicos por accidentes de trabajadores del hogar, ocurridos dentro del inmueble | E51: ='PRIMER RIESGO INMUEBLE+BIENES'!F25 -> US$ 5,000 por evento, máximo 3 eventos por vigencia de la póliza | F51: Hasta US$ 5,000 / S/ 15,000 por evento, máximo 3 eventos por vigencia de la póliza | G51: ='PRIMER RIESGO INMUEBLE+BIENES'!H25 -> 0
A52: hide | B52: =IF('PRIMER RIESGO INMUEBLE+BIENES'!B26=0,"",'PRIMER RIESGO INMUEBLE+BIENES'!B26) ->  | C52: Gastos de arrendamiento de vivienda temporal a reembolso | E52: ='PRIMER RIESGO INMUEBLE+BIENES'!F26 -> US$ 2,000 mensuales, máximo 6 meses por vigencia de la póliza, suma asegurada que forma parte de la cobertura principal | F52: Hasta US$ 5,000 / S/ 15,000 por evento, máximo 3 eventos por vigencia de la póliza | G52: ='PRIMER RIESGO INMUEBLE+BIENES'!H26 -> 0
A53: hide | B53: =IF('PRIMER RIESGO INMUEBLE+BIENES'!B27=0,"",'PRIMER RIESGO INMUEBLE+BIENES'!B27) ->  | C53: Alquiler no percibido por inmueble inhabitable temporalmente (aplica solo para el arrendador) | E53: ='PRIMER RIESGO INMUEBLE+BIENES'!F27 -> US$ 2,000 mensuales, máximo 6 meses por vigencia de la póliza, suma asegurada que forma parte de la cobertura principal | F53: Hasta US$ 5,000 / S/ 15,000 por evento, máximo 3 eventos por vigencia de la póliza | G53: ='PRIMER RIESGO INMUEBLE+BIENES'!H27 -> 0
B54: =IF('PRIMER RIESGO INMUEBLE+BIENES'!B28=0,"",'PRIMER RIESGO INMUEBLE+BIENES'!B28) -> X | C54: Gastos extraordinarios: remoción de escombros, honorarios profesionales y construcción de documentos y modelos | E54: ='PRIMER RIESGO INMUEBLE+BIENES'!F28 -> 20% de la suma asegurada de inmueble y/o bienes, suma asegurada que forma parte de la cobertura principal | F54: Hasta US$ 5,000 / S/ 15,000 por evento, máximo 3 eventos por vigencia de la póliza | G54: ='PRIMER RIESGO INMUEBLE+BIENES'!H28 -> 0
A55: =IF(LEN($B$55)=0,"hide","") ->  | B55: =IF('PRIMER RIESGO INMUEBLE+BIENES'!B29=0,"",'PRIMER RIESGO INMUEBLE+BIENES'!B29) -> X | C55: Asistencias | I55: OK
A56: =IF(LEN($B$55)=0,"hide","") ->  | C56: ='PRIMER RIESGO INMUEBLE+BIENES'!D30 -> Envío y pago de Cerrajero por emergencia | E56: ='PRIMER RIESGO INMUEBLE+BIENES'!F30 -> Hasta US$ 300 por evento, Máximo de 3 eventos | G56: ='PRIMER RIESGO INMUEBLE+BIENES'!H30 -> 5.75
A57: =IF(LEN($B$55)=0,"hide","") ->  | C57: ='PRIMER RIESGO INMUEBLE+BIENES'!D31 -> Envío y pago de Gasfitero por emergencia | E57: ='PRIMER RIESGO INMUEBLE+BIENES'!F31 -> Hasta US$ 300 por evento, Máximo de 3 eventos
A58: =IF(LEN($B$55)=0,"hide","") ->  | C58: ='PRIMER RIESGO INMUEBLE+BIENES'!D32 -> Envío y pago de Electricista por emergencia | E58: ='PRIMER RIESGO INMUEBLE+BIENES'!F32 -> Hasta US$ 300 por evento, Máximo de 3 eventos
C59: ='PRIMER RIESGO INMUEBLE+BIENES'!D33 -> Envío y pago de Vidriero por emergencia | E59: ='PRIMER RIESGO INMUEBLE+BIENES'!F33 -> Hasta US$ 300 por evento, Máximo de 3 eventos
C60: ='PRIMER RIESGO INMUEBLE+BIENES'!D34 -> Limpieza del inmueble asegurado a consecuencia de un siniestro | E60: ='PRIMER RIESGO INMUEBLE+BIENES'!F34 -> Hasta US$ 500 por evento, Máximo de 3 eventos
C61: ='PRIMER RIESGO INMUEBLE+BIENES'!D35 -> Servicio de Lavado de estores, roller, alfombras | E61: ='PRIMER RIESGO INMUEBLE+BIENES'!F35 -> Hasta US$ 80 por evento, máximo de 1 evento, cubriendo la limpieza de una pieza.
C62: ='PRIMER RIESGO INMUEBLE+BIENES'!D36 -> Servicio de Lavado de colchón | E62: ='PRIMER RIESGO INMUEBLE+BIENES'!F36 -> Hasta US$ 80 por evento, máximo de 1 evento, cubriendo la limpieza de una pieza.
C63: ='PRIMER RIESGO INMUEBLE+BIENES'!D37 -> Masajes relajantes a domicilio durante 1 hora | E63: ='PRIMER RIESGO INMUEBLE+BIENES'!F37 -> Hasta US$ 80 por evento, máximo de 1 evento, cubriendo la limpieza de una pieza.
C64: ='PRIMER RIESGO INMUEBLE+BIENES'!D38 -> Mozo a domicilio | E64: ='PRIMER RIESGO INMUEBLE+BIENES'!F38 -> Hasta máximo de 3 eventos al año, con servicio una vez al mes.
C65: ='PRIMER RIESGO INMUEBLE+BIENES'!D39 -> Mantenimiento Preventivo de Línea Blanca | E65: ='PRIMER RIESGO INMUEBLE+BIENES'!F39 -> Hasta US$ 75 por evento, máximo de 3 eventos, cubriendo la revisión de un equipo.
C66: ='PRIMER RIESGO INMUEBLE+BIENES'!D40 -> Orientación telefónica veterinaria para perros las 24H | E66: ='PRIMER RIESGO INMUEBLE+BIENES'!F40 -> Sin límite
C67: ='PRIMER RIESGO INMUEBLE+BIENES'!D41 -> Hospedaje de perros | E67: ='PRIMER RIESGO INMUEBLE+BIENES'!F41 -> Hasta máximo de 3 eventos. Se considera 1 día de hospedaje por evento.
C68: Deducibles: Aplicables por evento/pérdida, en caso de discrepancia prevalece el mayor | I68: OK
A69: =IF(LEN(B69)=0,"hide","") ->  | B69: =IF('PRIMER RIESGO INMUEBLE+BIENES'!B43=0,"",'PRIMER RIESGO INMUEBLE+BIENES'!B43) -> X | C69: Terremoto / Maremoto | E69: ='PRIMER RIESGO INMUEBLE+BIENES'!F43 -> Hasta el 1% del límite asegurado, mínimo US$ 200
B70: =IF('PRIMER RIESGO INMUEBLE+BIENES'!B44=0,"",'PRIMER RIESGO INMUEBLE+BIENES'!B44) -> X | C70: Otros Riesgos de la Naturaleza (entre ellos lluvia, inundación, otros) | E70: ='PRIMER RIESGO INMUEBLE+BIENES'!F44 -> Hasta 10% del monto indemnizable, mínimo US$ 200
B71: =IF('PRIMER RIESGO INMUEBLE+BIENES'!B45=0,"",'PRIMER RIESGO INMUEBLE+BIENES'!B45) -> X | C71: Daños por agua | E71: ='PRIMER RIESGO INMUEBLE+BIENES'!F45 -> Hasta 10% del monto indemnizable, mínimo US$ 200
B72: =IF('PRIMER RIESGO INMUEBLE+BIENES'!B46=0,"",'PRIMER RIESGO INMUEBLE+BIENES'!B46) -> X | C72: Riesgos políticos y sociales | E72: ='PRIMER RIESGO INMUEBLE+BIENES'!F46 -> Hasta 10% del monto indemnizable, mínimo US$ 200
B73: =IF('PRIMER RIESGO INMUEBLE+BIENES'!B47=0,"",'PRIMER RIESGO INMUEBLE+BIENES'!B47) -> X | C73: Responsabilidad civil frente a terceros | E73: ='PRIMER RIESGO INMUEBLE+BIENES'!F47 -> Hasta 10% del monto indemnizable, mínimo US$ 200
B74: =IF('PRIMER RIESGO INMUEBLE+BIENES'!B48=0,"",'PRIMER RIESGO INMUEBLE+BIENES'!B48) -> X | C74: Rotura accidental de vidrio y/o cristales | E74: ='PRIMER RIESGO INMUEBLE+BIENES'!F48 -> Hasta 10% del monto indemnizable, mínimo US$ 200
B75: =IF('PRIMER RIESGO INMUEBLE+BIENES'!B49=0,"",'PRIMER RIESGO INMUEBLE+BIENES'!B49) -> X | C75: Robo o intento de robo de instalaciones fijas | E75: ='PRIMER RIESGO INMUEBLE+BIENES'!F49 -> Hasta 10% del monto indemnizable, mínimo US$ 200
B76: =IF('PRIMER RIESGO INMUEBLE+BIENES'!B50=0,"",'PRIMER RIESGO INMUEBLE+BIENES'!B50) -> X | C76: Robo y/o daños por intento de robo | E76: ='PRIMER RIESGO INMUEBLE+BIENES'!F50 -> Hasta 10% del monto indemnizable, mínimo US$ 200
B77: =IF('PRIMER RIESGO INMUEBLE+BIENES'!B51=0,"",'PRIMER RIESGO INMUEBLE+BIENES'!B51) -> X | C77: Hurto | E77: ='PRIMER RIESGO INMUEBLE+BIENES'!F51 -> Hasta 10% del monto indemnizable, mínimo US$ 200
A78: hide | B78: =IF('PRIMER RIESGO INMUEBLE+BIENES'!B52=0,"",'PRIMER RIESGO INMUEBLE+BIENES'!B52) ->  | C78: Deshonestidad de trabajadores del hogar | E78: ='PRIMER RIESGO INMUEBLE+BIENES'!F52 -> Hasta 10% del monto indemnizable, mínimo US$ 200
B79: =IF('PRIMER RIESGO INMUEBLE+BIENES'!B53=0,"",'PRIMER RIESGO INMUEBLE+BIENES'!B53) -> X | C79: Demás coberturas | E79: ='PRIMER RIESGO INMUEBLE+BIENES'!F53 -> Sin deducible
C82: Importante: | I82: OK
C83: Si se encuentran discrepancias entre la presente cotización y los términos de la póliza, prevalecerán las condiciones de esta última.
C84: La presente cotización es válida por un plazo de 30 días calendarios contados a partir de la fecha de recepción de la misma. Luego de vencido dicho plazo la oferta contenida en la presente cotización quedará sin efecto legal alguno entre las partes.
C85: Se deja constancia expresa que, a potestad de la Compañía, la aceptación final del riesgo por parte de esta queda sujeta a la realización de la inspección, por parte de nuestro Departamento de Ingeniería o la persona autorizada para tal efecto, para verificar el efectivo estado del riesgo, así como el estricto cumplimiento por parte del Asegurado de las garantías que a mérito de dicha inspección establezca el Departamento de Ingeniería de la Compañía.
C87: Consideraciones: | I87: OK
C88: - La forma de entrega de la póliza es electrónica. - La forma de pago de la póliza es solo con afiliación al débito automático a una tarjeta de crédito o a una cuenta bancaria. - La modalidad de aseguramiento que brinda este plan de seguros es a valor total. - La cobertura principal comprende además cualquier otro riesgo, súbito e imprevisto, que no esté excluido explícitamente en las exclusiones de las Condiciones Generales y/o Cláusulas Adicionales de la Póliza. - Las coberturas señaladas en Coberturas Adicionales forman parte de la suma asegurada de la Cobertura Principal, es decir, cada indemnización que le paguemos por las coberturas adicionales, reducirá la suma asegurada de la cobertura principal, a excepción de la cobertura adicional Responsabilidad civil frente a terceros, la cual es independiente a la suma asegurada de la cobertura principal. - La cobertura de la póliza en cuanto a pérdida o daños causados por agua que inunde, descargue o derrame de cualquier instalación de agua o desagüe de otros elementos líquidos; no comprenderá el costo de reparar el desperfecto que originó tal pérdida o daño. - Este seguro no otorga cobertura cuando en el inmueble se realiza cualquier actividad o giro comercial diferente al de casa habitación. - Este seguro se renovará automáticamente, es decir, en las mismas condiciones vigentes en el periodo anterior. - Para la cobertura de Robo y/o daños por intento de robo de Joyas y platería se define lo siguiente: Objetos y/o adornos de uso personal elaborados en oro, plata, platino, perlas y que pueden llevar o no incrustadas piedras preciosas de origen biológico o mineral, tanto si están engastadas como si no. También se considera a cualquier objeto ornamental o de uso doméstico elaborado con los materiales enumerados en el párrafo anterior. - El ASEGURADO deberá presentar una relación detallada, a ser actualizada mínimo cada dos años, de los bienes cuyo valor unitario excedan los S/ 5,000. En caso de siniestro, esta relación de bienes es el sustento de la pre-existencia de cada bien declarado. En caso de no cumplir con lo anterior o para bienes afectados no incluidos en la relación presentada, el Asegurado deberá demostrarnos la pre-existencia de los bienes afectados en el siniestro, a través de comprobantes de pago y/o constancia visual (fotografías, video, manuales de uso o similares) en donde se muestre el artículo en el interior del Inmueble asegurado o a la persona usando dicho artículo. - En caso de robo: Se mantiene la exigencia de la denuncia policial, pero se manejará a discreción cada caso hasta por un monto máximo de siniestro de S/ 30,000, siniestros por encima de este monto deberán presentar denuncia policial de manera obligatoria. - Las asistencias están disponibles los 365 días del año en las siguientes ciudades: • Lima Metropolitana exceptuando Ancón, Punta Hermosa, San Bartolo, Santa María y Pucusana. • Trujillo: En los distritos de Trujillo, Victor Larco, Moche y Huanchaco. • Chiclayo: En los distritos de Chiclayo, La Victoria, José Leonardo Ortiz, Pimentel. • Piura: En los distritos de Piura, Castilla, Catacaos. • Arequipa: En los distritos de Arequipa (Cercado), Yanahuara, Cayma, Sachaca, José Luis Bustamante y Rivero, Cerro Colorado. • Cusco: En los distritos de Cusco, San Jerónimo, San Sebastián, Santiago, Wanchaq. Aplican y deben aparecer tanto para a primer riesgo como para valor total
C120: Exlusiones: | I120: OK
C121: Tenga en cuenta que no pagaremos la reparación del desperfecto ni del bien que originó el daño, como tampoco ninguna pérdida o daño proveniente o que sean causa de, o en conexión con, o atribuibles principalmente a: a) Dolo, culpa grave o negligencia inexcusable del CONTRATANTE o de USTED y/o del BENEFICIARIO y/o ENDOSATARIO o de los familiares de cualquiera de ellos, o de sus dependientes, especialmente de los responsables de la seguridad de los BIENES asegurados. b) Guerra, Guerra Civil, invasión, acto de enemigo extranjero, hostilidades u operaciones de guerra, declarada o no. c) Desgaste o deterioro paulatino o fatiga de material, causado por, o resultado de, el uso y funcionamiento del bien; uso o deterioro gradual; deficiencias de rendimiento o capacidad; polución, contaminación; corrosión, erosión; herrumbre u oxidación; hongos, moho húmedo o seco, combustión espontánea, fermentación; humedad, sequedad, smog o cambios de temperatura; asentamiento o contracción o expansión de edificios o cimientos; la calefacción o la desecación a que hubieran sido sometidos los objetos que forman parte de la Materia Asegurada. d) Hundimientos, desplazamientos, agrietamientos o asentamientos de muros, pisos, techos, pavimentos, cimientos, muros de contención. Sin embargo, si estos daños son causados por los eventos de Terremoto, Temblor, Erupción Volcánica o Maremoto para los cuales se haya contratado amparo bajo la presente póliza, no se aplicará esta exclusión. e) Todo gasto o costo para implementar modificaciones o mejoras, o por mantenimiento, o para hacer otras reparaciones o arreglos, en el INMUEBLE y/o BIENES dañados o afectados; así como los gastos o costos de cualquier reparación provisional, a menos que constituyan, a la vez, parte de los gastos de la reparación definitiva amparada por la póliza. f) Valor atribuido a los BIENES por razones sentimentales o simbólicas, por afición, por antigüedad, o por exclusividad. g) Pérdida o daño ocurrido cuando el INMUEBLE esté deshabitado y/o cuando los BIENES se hallen en el INMUEBLE deshabitado; en ambos casos durante más de noventa (90) días consecutivos. Las demás exclusiones se encuentran en el acápite 3 de las Condiciones Generales de la Póliza. Aplican exclusiones específicas a la cobertura que se contrate, detalladas en su respectiva Cláusula Adicional. Bienes excluidos: a) INMUEBLE y/o BIENES con cualquier actividad o giro diferente al de casa habitación. b) Animales vivos de cualquier tipo. c) Plantaciones, cultivos, cosechas de cualquier tipo, invernaderos, bosques, selvas, monte bajo, praderas, pampas, árboles, parques, prados, jardines naturales y ornamentales, agua. d) INMUEBLES y/o BIENES en proceso de construcción, reconstrucción, montaje o desmontaje. e) Vehículos motorizados con una placa de rodaje, equipos flotantes o submarinos, aeronaves o artefactos aéreos, embarcaciones, naves acuáticas; de cualquier tipo y tamaño. f) BIENES de cualquier tipo que sean propiedad de terceros aun cuando dichos BIENES se encuentren bajo custodia y/o posesión del Asegurado. g) Material pirotécnico, explosivos, combustibles, mechas, fulminantes, detonadores y similares. h) BIENES situados o instalados u operando o trabajando o siendo usados en él, o a las orillas del, mar, río, lago o laguna, en subterráneos, o debajo del nivel de la superficie terrestre. i) Dinero en efectivo, títulos valores. j) Cualquier tipo de contenido o bien para fines comerciales, de la profesión u ocupación o de negocios de USTED, de cualquier miembro de su familia, por medio de los cuales obtengan un lucro.

Sheet CotizacionInmuebleVT (hidden)
C1: ="Cotización Seguro de Hogar Flex " & configuracion!$K$2 -> Cotización Seguro de Hogar Flex Enero 2025
C3: Vigencia de la cotización | D3: =TEXT(TODAY(),"dd/mm/yyyy") & " - " & TEXT(TODAY()+15,"dd/mm/yyyy") -> 25/03/2025 - 09/04/2025
C4: Fecha inicio de Vigencia | D4: =Cotizador!$L$6 -> 00:00:00
C5: Canal | D5: =Cotizador!$G$10 -> Corredor
C6: Agente | D6: =Cotizador!R$10 -> 0
C8: Datos del Contratante
C9: Nombre del Contratante | D9: =Cotizador!$G$15 & " " & Cotizador!$M$15& " " & Cotizador!$R$15 -> 
C10: Tipo de documento | D10: =Cotizador!$G$14&" " &Cotizador!$M$14 -> 
F11: Descuento
C12: Planes de Pago Prima | F12: =Cotizador!$M$40 -> 0
C13: Débito automático | D13: Valores de la Cuota
C14: Plan de pago | D14: Prima Comercial | E14: IGV | F14: Prima Total
C15: Prima anual + IGV sin intereses: | D15: =IF(Cotizador!$G$54=0,"",Cotizador!$G$54) ->  | E15: =IF(Cotizador!$G$55=0,"",Cotizador!$G$55) ->  | F15: =IF(Cotizador!$G$56=0,"",Cotizador!$G$56) -> 
C16: Prima anual + IGV sin intereses: | D16: =IF(Cotizador!$L$54=0,"",Cotizador!$L$54) ->  | E16: =IF(Cotizador!$L$55=0,"",Cotizador!$L$55) ->  | F16: =IF(Cotizador!$L$56=0,"",Cotizador!$L$56) -> 
C17: =IF(Cotizador!$I$61="X",Cotizador!$B$61,IF(Cotizador!$I$62="X",Cotizador!$B$62,IF(Cotizador!$I$63="X",Cotizador!$B$63,IF(Cotizador!$I$64="X",Cotizador!$B$64,IF(Cotizador!$I$66="X",Cotizador!$B$66,IF(Cotizador!$I$67="X",Cotizador!$B$67,IF(Cotizador!$I$68="X",Cotizador!$B$68,IF(Cotizador!$I$69="X",Cotizador!$B$69,"")))))))) ->  | D17: =IFERROR(F17/1.18,"") ->  | E17: =IFERROR(F17-D17,"") ->  | F17: =IF(Cotizador!$I$61="X",Cotizador!$J$61,IF(Cotizador!$I$62="X",Cotizador!$J$62,IF(Cotizador!$I$63="X",Cotizador!$J$63,IF(Cotizador!$I$64="X",Cotizador!$J$64,IF(Cotizador!$I$66="X",Cotizador!$J$66,IF(Cotizador!$I$67="X",Cotizador!$J$67,IF(Cotizador!$I$68="X",Cotizador!$J$68,IF(Cotizador!$I$69="X",Cotizador!$J$69,"")))))))) -> 
C18: Materia Asegurada | D18: =IF(Cotizador!$H$29="X",Cotizador!$G$29,IF(Cotizador!$K$29="X",Cotizador!$J$29,IF(Cotizador!$O$29="X",Cotizador!$M$29))) -> FALSE
C20: Datos del Inmueble asegurado
C21: Dirección | D21: =Cotizador!$G$22 & " " & Cotizador!G23 -> 
C22: Departamento | D22: =IF(Cotizador!$L$26=0,"",Cotizador!$L$26) -> 
C23: Provincia | D23: =IF(Cotizador!$G$26=0,"",Cotizador!$G$26) -> 
C24: Distrito | D24: =IF(Cotizador!$G$25=0,"",Cotizador!$G$25) -> 
C25: Tipo de Inmueble | D25: =IF(Cotizador!$E$34="X",Cotizador!$B$34,IF(Cotizador!$E$35="X",Cotizador!$B$35,"")) -> 
C27: Modalidad de Aseguramiento | D27: =IF(Cotizador!$H$31="X",Cotizador!$G$31,IF(Cotizador!$K$31="X",Cotizador!$J$31,"")) -> 
C29: Plan contratado | D29: =IF(Cotizador!$G$29="PLAN BÁSICO","Plan Básico",IF(Cotizador!$G$29="PLAN FULL","Plan Full","Personalizado")) -> Personalizado
C31: Suma Asegurada
C32: Suma Asegurada Inmueble | D32: =Cotizador!$G$40 -> 0 | E32: Valor Declarado Inmueble | F32: =Cotizador!$G$38 -> 0
C33: Suma Asegurada Bienes | D33: =Cotizador!G41 -> 0
C34: Suma Asegurada Total (Inmueble + Bienes) | D34: =SUM(D32:D33) -> 0
C36: COBERTURAS (solo INMUEBLE) | E36: Límites asegurados por vigencia | F36: Prima Comercial | I36: OK
C37: Cobertura principal
A38: =IF(LEN(B38)=0,"hide","") ->  | B38: =IF('VALOR TOTAL INMUEBLE'!B12=0,"",'VALOR TOTAL INMUEBLE'!B12) -> X | C38: Incendio y/o rayo, explosión, incendio en aparatos eléctricos. Daños por agua, daños por humo, impacto de vehículos y/o aeronaves o daños por riesgos políticos y sociales | E38: ='VALOR TOTAL INMUEBLE'!F12 -> 0 | F38: ='VALOR TOTAL INMUEBLE'!G12 -> 51.5
A39: =IF(AND(A40="hide",A41="hide",A42="hide",A43="hide",A44="hide",A45="hide",A46="hide",A47="hide",A48="hide",A49="hide"),"hide","") ->  | C39: Coberturas adicionales
A40: =IF(LEN(B40)=0,"hide","") -> hide | B40: =IF('VALOR TOTAL INMUEBLE'!B14=0,"",'VALOR TOTAL INMUEBLE'!B14) ->  | C40: Terremoto, temblor, maremoto, Inundaciones y riesgos de la naturaleza | E40: ='VALOR TOTAL INMUEBLE'!F14 -> 0 | F40: ='VALOR TOTAL INMUEBLE'!G14 -> 0
A41: =IF(LEN(B40)=0,"hide","") -> hide | B41: =IF('PRIMER RIESGO INMUEBLE'!B15=0,"",'PRIMER RIESGO INMUEBLE'!B15) ->  | E41: ='VALOR TOTAL INMUEBLE'!F15 -> Suma asegurada que forma parte de la cobertura principal
A42: =IF(LEN(B42)=0,"hide","") -> hide | B42: =IF('VALOR TOTAL INMUEBLE'!B16=0,"",'VALOR TOTAL INMUEBLE'!B16) ->  | C42: Responsabilidad civil frente a terceros | E42: ='VALOR TOTAL INMUEBLE'!F16 -> 0 | F42: ='VALOR TOTAL INMUEBLE'!G16 -> 0
A43: =IF(LEN(B42)=0,"hide","") -> hide | B43: =IF('PRIMER RIESGO INMUEBLE'!B17=0,"",'PRIMER RIESGO INMUEBLE'!B17) ->  | E43: ='VALOR TOTAL INMUEBLE'!F17 -> máximo US$ 200,000
A44: =IF(LEN(B44)=0,"hide","") -> hide | B44: =IF('VALOR TOTAL INMUEBLE'!B18=0,"",'VALOR TOTAL INMUEBLE'!B18) ->  | C44: Rotura accidental de vidrio y/o cristales | E44: ='VALOR TOTAL INMUEBLE'!F18 -> Hasta US$ 3,000 ,suma asegurada que forma parte de la cobertura principal | F44: ='VALOR TOTAL INMUEBLE'!G18 -> 0
A45: =IF(LEN(B45)=0,"hide","") -> hide | B45: =IF('VALOR TOTAL INMUEBLE'!B19=0,"",'VALOR TOTAL INMUEBLE'!B19) ->  | C45: Robo o intento de robo de instalaciones fijas | E45: ='VALOR TOTAL INMUEBLE'!F19 -> Hasta el 20% de la suma asegurada de inmueble, máximo US$ 5,000 ,suma asegurada que forma parte de la cobertura principal | F45: ='VALOR TOTAL INMUEBLE'!G19 -> 0
A46: =IF(LEN(B46)=0,"hide","") -> hide | B46: =IF('VALOR TOTAL INMUEBLE'!B20=0,"",'VALOR TOTAL INMUEBLE'!B20) ->  | C46: Reembolso de gastos médicos por accidentes de trabajadores del hogar, ocurridos dentro del inmueble | E46: ='VALOR TOTAL INMUEBLE'!F20 -> Hasta US$ 5,000 por evento, máximo 3 eventos por vigencia de la póliza | F46: ='VALOR TOTAL INMUEBLE'!G20 -> 0
A47: hide | B47: =IF('VALOR TOTAL INMUEBLE'!B21=0,"",'VALOR TOTAL INMUEBLE'!B21) ->  | C47: Gastos de arrendamiento de vivienda temporal a reembolso | E47: ='VALOR TOTAL INMUEBLE'!F21 -> Hasta US$ 2,000 mensuales, máximo 6 meses por vigencia de la póliza, suma asegurada que forma parte de la cobertura principal | F47: ='VALOR TOTAL INMUEBLE'!G21 -> 0
A48: hide | B48: =IF('VALOR TOTAL INMUEBLE'!B22=0,"",'VALOR TOTAL INMUEBLE'!B22) ->  | C48: Alquiler no percibido por inmueble inhabitable temporalmente | E48: ='VALOR TOTAL INMUEBLE'!F22 -> Hasta US$ 2,000 mensuales, máximo 6 meses por vigencia de la póliza, suma asegurada que forma parte de la cobertura principal | F48: ='VALOR TOTAL INMUEBLE'!G22 -> 0
A49: =IF(LEN(B49)=0,"hide","") ->  | B49: =IF('VALOR TOTAL INMUEBLE'!B23=0,"",'VALOR TOTAL INMUEBLE'!B23) -> X | C49: Gastos extraordinarios: remoción de escombros, honorarios profesionales y construcción de documentos y modelos | E49: ='VALOR TOTAL INMUEBLE'!F23 -> Hasta el 20% de la suma asegurada de Inmueble, suma asegurada que forma parte de la cobertura principal | F49: ='VALOR TOTAL INMUEBLE'!G23 -> 0
A50: =IF(LEN($B$50)=0,"hide","") -> hide | B50: =IF('VALOR TOTAL INMUEBLE'!B24=0,"",'VALOR TOTAL INMUEBLE'!B24) ->  | C50: Asistencias | I50: OK
A51: =IF(LEN($B$50)=0,"hide","") -> hide | C51: ='VALOR TOTAL INMUEBLE'!D25 -> Envío y pago de Cerrajero por emergencia las 24H | E51: ='VALOR TOTAL INMUEBLE'!F25 -> Hasta US$ 300 por evento, Máximo de 3 eventos | F51: ='PRIMER RIESGO INMUEBLE'!G25 -> 0
A52: =IF(LEN($B$50)=0,"hide","") -> hide | C52: ='VALOR TOTAL INMUEBLE'!D26 -> Envío y pago de Gasfitero por emergencia las 24H | E52: ='VALOR TOTAL INMUEBLE'!F26 -> Hasta US$ 300 por evento, Máximo de 3 eventos
A53: hide | C53: ='VALOR TOTAL INMUEBLE'!D27 -> Envío y pago de Electricista por emergencia las 24H | E53: ='VALOR TOTAL INMUEBLE'!F27 -> Hasta US$ 300 por evento, Máximo de 3 eventos
A54: hide | C54: ='VALOR TOTAL INMUEBLE'!D28 -> Envío y pago de Vidriero por emergencia las 24H | E54: ='VALOR TOTAL INMUEBLE'!F28 -> Hasta US$ 300 por evento, Máximo de 3 eventos
A55: =IF(LEN($B$50)=0,"hide","") -> hide | C55: ='VALOR TOTAL INMUEBLE'!D29 -> Limpieza del inmueble asegurado a consecuencia de un siniestro | E55: ='VALOR TOTAL INMUEBLE'!F29 -> Hasta US$ 500 por evento, Máximo de 3 eventos
A56: hide | C56: ='VALOR TOTAL INMUEBLE'!D30 -> Servicio de Lavado de estores, roller, alfombras | E56: ='VALOR TOTAL INMUEBLE'!F30 -> Hasta US$ 80 por evento, máximo de 1 evento, cubriendo la limpieza de una pieza.
A57: hide | C57: ='VALOR TOTAL INMUEBLE'!D31 -> Servicio de Lavado de colchón | E57: ='VALOR TOTAL INMUEBLE'!F31 -> Hasta US$ 80 por evento, máximo de 1 evento, cubriendo la limpieza de una pieza.
A58: hide | C58: ='VALOR TOTAL INMUEBLE'!D32 -> Masajes relajantes a domicilio durante 1 hora | E58: ='VALOR TOTAL INMUEBLE'!F32 -> Hasta US$ 80 por evento, máximo de 1 evento, cubriendo la limpieza de una pieza.
A59: hide | C59: ='VALOR TOTAL INMUEBLE'!D33 -> Mozo a domicilio | E59: ='VALOR TOTAL INMUEBLE'!F33 -> Hasta máximo de 3 eventos al año, con servicio una vez al mes.
A60: hide | C60: ='VALOR TOTAL INMUEBLE'!D34 -> Mantenimiento Preventivo de Línea Blanca | E60: ='VALOR TOTAL INMUEBLE'!F34 -> Hasta US$ 75 por evento, máximo de 3 eventos, cubriendo la revisión de un equipo.
A61: hide | C61: ='VALOR TOTAL INMUEBLE'!D35 -> Orientación telefónica veterinaria para perros las 24H | E61: ='VALOR TOTAL INMUEBLE'!F35 -> Sin límite
A62: hide | C62: ='VALOR TOTAL INMUEBLE'!D36 -> Hospedaje de perros | E62: ='VALOR TOTAL INMUEBLE'!F36 -> Hasta máximo de 3 eventos. Se considera 1 día de hospedaje por evento.
C63: Deducibles: Aplicables por evento/pérdida, en caso de discrepancia prevalece el mayor | I63: OK
A64: =IF(LEN(B64)=0,"hide","") -> hide | B64: =IF('VALOR TOTAL INMUEBLE'!B38=0,"",'VALOR TOTAL INMUEBLE'!B38) ->  | C64: Terremoto / Maremoto | E64: ='VALOR TOTAL INMUEBLE'!F38 -> Hasta el 1% del límite asegurado, mínimo US$ 200
A65: =IF(LEN(B65)=0,"hide","") -> hide | B65: =IF('VALOR TOTAL INMUEBLE'!B39=0,"",'VALOR TOTAL INMUEBLE'!B39) ->  | C65: Otros Riesgos de la Naturaleza (entre ellos lluvia, inundación, otros) | E65: ='VALOR TOTAL INMUEBLE'!F39 -> Hasta 10% del monto indemnizable, mínimo US$ 200
B66: =IF('VALOR TOTAL INMUEBLE'!B40=0,"",'VALOR TOTAL INMUEBLE'!B40) -> X | C66: Daños por agua | E66: ='VALOR TOTAL INMUEBLE'!F40 -> Hasta 10% del monto indemnizable, mínimo US$ 200
B67: =IF('VALOR TOTAL INMUEBLE'!B41=0,"",'VALOR TOTAL INMUEBLE'!B41) -> X | C67: Riesgos políticos y sociales | E67: ='VALOR TOTAL INMUEBLE'!F41 -> Hasta 10% del monto indemnizable, mínimo US$ 200
A68: hide | B68: =IF('VALOR TOTAL INMUEBLE'!B42=0,"",'VALOR TOTAL INMUEBLE'!B42) ->  | C68: Responsabilidad civil frente a terceros | E68: ='VALOR TOTAL INMUEBLE'!F42 -> Hasta 10% del monto indemnizable, mínimo US$ 200
A69: hide | B69: =IF('VALOR TOTAL INMUEBLE'!B43=0,"",'VALOR TOTAL INMUEBLE'!B43) ->  | C69: Rotura accidental de vidrio y/o cristales | E69: ='VALOR TOTAL INMUEBLE'!F43 -> Hasta 10% del monto indemnizable, mínimo US$ 200
A70: hide | B70: =IF('VALOR TOTAL INMUEBLE'!B44=0,"",'VALOR TOTAL INMUEBLE'!B44) ->  | C70: Robo o intento de robo de instalaciones fijas | E70: ='VALOR TOTAL INMUEBLE'!F44 -> Hasta 10% del monto indemnizable, mínimo US$ 200
A71: hide | B71: =IF('VALOR TOTAL INMUEBLE'!B45=0,"",'VALOR TOTAL INMUEBLE'!B45) ->  | C71: Demás coberturas | E71: ='VALOR TOTAL INMUEBLE'!F45 -> Sin deducible
C74: Importante: | I74: OK
C75: Si se encuentran discrepancias entre la presente cotización y los términos de la póliza, prevalecerán las condiciones de esta última.
C76: La presente cotización es válida por un plazo de 30 días calendarios contados a partir de la fecha de recepción de la misma. Luego de vencido dicho plazo la oferta contenida en la presente cotización quedará sin efecto legal alguno entre las partes.
C77: Se deja constancia expresa que, a potestad de la Compañía, la aceptación final del riesgo por parte de esta queda sujeta a la realización de la inspección, por parte de nuestro Departamento de Ingeniería o la persona autorizada para tal efecto, para verificar el efectivo estado del riesgo, así como el estricto cumplimiento por parte del Asegurado de las garantías que a mérito de dicha inspección establezca el Departamento de Ingeniería de la Compañía.
C79: Consideraciones: | I79: OK
C80: - La forma de entrega de la póliza es electrónica. - La forma de pago de la póliza es solo con afiliación al débito automático a una tarjeta de crédito o a una cuenta bancaria. - La modalidad de aseguramiento que brinda este plan de seguros es a valor total. - La cobertura principal comprende además cualquier otro riesgo, súbito e imprevisto, que no esté excluido explícitamente en las exclusiones de las Condiciones Generales y/o Cláusulas Adicionales de la Póliza. - Las coberturas señaladas en Coberturas Adicionales forman parte de la suma asegurada de la Cobertura Principal, es decir, cada indemnización que le paguemos por las coberturas adicionales, reducirá la suma asegurada de la cobertura principal, a excepción de la cobertura adicional Responsabilidad civil frente a terceros, la cual es independiente a la suma asegurada de la cobertura principal. - La cobertura de la póliza en cuanto a pérdida o daños causados por agua que inunde, descargue o derrame de cualquier instalación de agua o desagüe de otros elementos líquidos; no comprenderá el costo de reparar el desperfecto que originó tal pérdida o daño. - Este seguro no otorga cobertura cuando en el inmueble se realiza cualquier actividad o giro comercial diferente al de casa habitación. - Este seguro se renovará automáticamente, es decir, en las mismas condiciones vigentes en el periodo anterior. - Para la cobertura de Robo y/o daños por intento de robo de Joyas y platería se define lo siguiente: Objetos y/o adornos de uso personal elaborados en oro, plata, platino, perlas y que pueden llevar o no incrustadas piedras preciosas de origen biológico o mineral, tanto si están engastadas como si no. También se considera a cualquier objeto ornamental o de uso doméstico elaborado con los materiales enumerados en el párrafo anterior. - El ASEGURADO deberá presentar una relación detallada, a ser actualizada mínimo cada dos años, de los bienes cuyo valor unitario excedan los S/ 5,000. En caso de siniestro, esta relación de bienes es el sustento de la pre-existencia de cada bien declarado. En caso de no cumplir con lo anterior o para bienes afectados no incluidos en la relación presentada, el Asegurado deberá demostrarnos la pre-existencia de los bienes afectados en el siniestro, a través de comprobantes de pago y/o constancia visual (fotografías, video, manuales de uso o similares) en donde se muestre el artículo en el interior del Inmueble asegurado o a la persona usando dicho artículo. - En caso de robo: Se mantiene la exigencia de la denuncia policial, pero se manejará a discreción cada caso hasta por un monto máximo de siniestro de S/ 30,000, siniestros por encima de este monto deberán presentar denuncia policial de manera obligatoria. - Las asistencias están disponibles los 365 días del año en las siguientes ciudades: • Lima Metropolitana exceptuando Ancón, Punta Hermosa, San Bartolo, Santa María y Pucusana. • Trujillo: En los distritos de Trujillo, Victor Larco, Moche y Huanchaco. • Chiclayo: En los distritos de Chiclayo, La Victoria, José Leonardo Ortiz, Pimentel. • Piura: En los distritos de Piura, Castilla, Catacaos. • Arequipa: En los distritos de Arequipa (Cercado), Yanahuara, Cayma, Sachaca, José Luis Bustamante y Rivero, Cerro Colorado. • Cusco: En los distritos de Cusco, San Jerónimo, San Sebastián, Santiago, Wanchaq. Aplican y deben aparecer tanto para a primer riesgo como para valor total
C112: Exlusiones: | I112: OK
C113: Tenga en cuenta que no pagaremos la reparación del desperfecto ni del bien que originó el daño, como tampoco ninguna pérdida o daño proveniente o que sean causa de, o en conexión con, o atribuibles principalmente a: a) Dolo, culpa grave o negligencia inexcusable del CONTRATANTE o de USTED y/o del BENEFICIARIO y/o ENDOSATARIO o de los familiares de cualquiera de ellos, o de sus dependientes, especialmente de los responsables de la seguridad de los BIENES asegurados. b) Guerra, Guerra Civil, invasión, acto de enemigo extranjero, hostilidades u operaciones de guerra, declarada o no. c) Desgaste o deterioro paulatino o fatiga de material, causado por, o resultado de, el uso y funcionamiento del bien; uso o deterioro gradual; deficiencias de rendimiento o capacidad; polución, contaminación; corrosión, erosión; herrumbre u oxidación; hongos, moho húmedo o seco, combustión espontánea, fermentación; humedad, sequedad, smog o cambios de temperatura; asentamiento o contracción o expansión de edificios o cimientos; la calefacción o la desecación a que hubieran sido sometidos los objetos que forman parte de la Materia Asegurada. d) Hundimientos, desplazamientos, agrietamientos o asentamientos de muros, pisos, techos, pavimentos, cimientos, muros de contención. Sin embargo, si estos daños son causados por los eventos de Terremoto, Temblor, Erupción Volcánica o Maremoto para los cuales se haya contratado amparo bajo la presente póliza, no se aplicará esta exclusión. e) Todo gasto o costo para implementar modificaciones o mejoras, o por mantenimiento, o para hacer otras reparaciones o arreglos, en el INMUEBLE y/o BIENES dañados o afectados; así como los gastos o costos de cualquier reparación provisional, a menos que constituyan, a la vez, parte de los gastos de la reparación definitiva amparada por la póliza. f) Valor atribuido a los BIENES por razones sentimentales o simbólicas, por afición, por antigüedad, o por exclusividad. g) Pérdida o daño ocurrido cuando el INMUEBLE esté deshabitado y/o cuando los BIENES se hallen en el INMUEBLE deshabitado; en ambos casos durante más de noventa (90) días consecutivos. Las demás exclusiones se encuentran en el acápite 3 de las Condiciones Generales de la Póliza. Aplican exclusiones específicas a la cobertura que se contrate, detalladas en su respectiva Cláusula Adicional. Bienes excluidos: a) INMUEBLE y/o BIENES con cualquier actividad o giro diferente al de casa habitación. b) Animales vivos de cualquier tipo. c) Plantaciones, cultivos, cosechas de cualquier tipo, invernaderos, bosques, selvas, monte bajo, praderas, pampas, árboles, parques, prados, jardines naturales y ornamentales, agua. d) INMUEBLES y/o BIENES en proceso de construcción, reconstrucción, montaje o desmontaje. e) Vehículos motorizados con una placa de rodaje, equipos flotantes o submarinos, aeronaves o artefactos aéreos, embarcaciones, naves acuáticas; de cualquier tipo y tamaño. f) BIENES de cualquier tipo que sean propiedad de terceros aun cuando dichos BIENES se encuentren bajo custodia y/o posesión del Asegurado. g) Material pirotécnico, explosivos, combustibles, mechas, fulminantes, detonadores y similares. h) BIENES situados o instalados u operando o trabajando o siendo usados en él, o a las orillas del, mar, río, lago o laguna, en subterráneos, o debajo del nivel de la superficie terrestre. i) Dinero en efectivo, títulos valores. j) Cualquier tipo de contenido o bien para fines comerciales, de la profesión u ocupación o de negocios de USTED, de cualquier miembro de su familia, por medio de los cuales obtengan un lucro.

Sheet CotizacionBienesVT (hidden)
C1: ="Cotización Seguro de Hogar Flex " & configuracion!$K$2 -> Cotización Seguro de Hogar Flex Enero 2025
C3: Vigencia de la cotización | D3: =TEXT(TODAY(),"dd/mm/yyyy") & " - " & TEXT(TODAY()+15,"dd/mm/yyyy") -> 25/03/2025 - 09/04/2025
C4: Fecha inicio de Vigencia | D4: =Cotizador!$L$6 -> 00:00:00
C5: Canal | D5: =Cotizador!$G$10 -> Corredor
C6: Agente | D6: =Cotizador!R$10 -> 0
C8: Datos del Contratante
C9: Nombre del Contratante | D9: =Cotizador!$G$15 & " " & Cotizador!$M$15& " " & Cotizador!$R$15 -> 
C10: Tipo de documento | D10: =Cotizador!$G$14&" " &Cotizador!$M$14 -> 
F11: Descuento
C12: Planes de Pago Prima | F12: =Cotizador!$M$40 -> 0
C13: Débito automático | D13: Valores de la Cuota
C14: Plan de pago | D14: Prima Comercial | E14: IGV | F14: Prima Total
C15: Prima anual + IGV sin intereses (referencial): | D15: =IF(Cotizador!$G$54=0,"",Cotizador!$G$54) ->  | E15: =IF(Cotizador!$G$55=0,"",Cotizador!$G$55) ->  | F15: =IF(Cotizador!$G$56=0,"",Cotizador!$G$56) -> 
C16: Prima anual + IGV sin intereses con descuento 15% (final): | D16: =IF(Cotizador!$L$54=0,"",Cotizador!$L$54) ->  | E16: =IF(Cotizador!$L$55=0,"",Cotizador!$L$55) ->  | F16: =IF(Cotizador!$L$56=0,"",Cotizador!$L$56) -> 
C17: =IF(Cotizador!$I$61="X",Cotizador!$B$61,IF(Cotizador!$I$62="X",Cotizador!$B$62,IF(Cotizador!$I$63="X",Cotizador!$B$63,IF(Cotizador!$I$64="X",Cotizador!$B$64,IF(Cotizador!$I$66="X",Cotizador!$B$66,IF(Cotizador!$I$67="X",Cotizador!$B$67,IF(Cotizador!$I$68="X",Cotizador!$B$68,IF(Cotizador!$I$69="X",Cotizador!$B$69,"")))))))) ->  | D17: =IFERROR(F17/1.18,"") ->  | E17: =IFERROR(F17-D17,"") ->  | F17: =IF(Cotizador!$I$61="X",Cotizador!$L$61,IF(Cotizador!$I$62="X",Cotizador!$L$62,IF(Cotizador!$I$63="X",Cotizador!$L$63,IF(Cotizador!$I$64="X",Cotizador!$L$64,IF(Cotizador!$I$66="X",Cotizador!$L$66,IF(Cotizador!$I$67="X",Cotizador!$L$67,IF(Cotizador!$I$68="X",Cotizador!$L$68,IF(Cotizador!$I$69="X",Cotizador!$L$69,"")))))))) -> 
C18: Materia Asegurada | D18: =IF(Cotizador!$H$29="X",Cotizador!$G$29,IF(Cotizador!$K$29="X",Cotizador!$J$29,IF(Cotizador!$O$29="X",Cotizador!$M$29))) -> FALSE
C20: Datos del Inmueble asegurado
C21: Dirección | D21: =Cotizador!$G$22 & " " & Cotizador!G23 -> 
C22: Departamento | D22: =IF(Cotizador!$L$26=0,"",Cotizador!$L$26) -> 
C23: Provincia | D23: =IF(Cotizador!$G$26=0,"",Cotizador!$G$26) -> 
C24: Distrito | D24: =IF(Cotizador!$G$25=0,"",Cotizador!$G$25) -> 
C25: Tipo de Inmueble | D25: =IF(Cotizador!$E$34="X",Cotizador!$B$34,IF(Cotizador!$E$35="X",Cotizador!$B$35,"")) -> 
C27: Modalidad de Aseguramiento | D27: =IF(Cotizador!$H$31="X",Cotizador!$G$31,IF(Cotizador!$K$31="X",Cotizador!$J$31,"")) -> 
C29: Plan contratado | D29: =IF(Cotizador!$G$29="PLAN BÁSICO","Plan Básico",IF(Cotizador!$G$29="PLAN FULL","Plan Full","Personalizado")) -> Personalizado
C31: Suma Asegurada
C32: Suma Asegurada Inmueble | D32: =Cotizador!$G$40 -> 0
C33: Suma Asegurada Bienes | D33: =Cotizador!G41 -> 0 | E33: Valor Declarado Bienes | F33: =Cotizador!$G$39 -> 0
C34: Suma Asegurada Total (Inmueble + Bienes) | D34: =SUM(D32:D33) -> 0
C36: COBERTURAS (solo BIENES) | E36: Límites asegurados por vigencia | F36: Prima Comercial | I36: OK
C37: Cobertura principal
A38: =IF(LEN(B38)=0,"hide","") ->  | B38: =IF('VALOR TOTAL BIENES'!B12=0,"",'VALOR TOTAL BIENES'!B12) -> X | C38: Incendio y/o rayo, explosión, incendio en aparatos eléctricos. Daños por agua, daños por humo, impacto de vehículos y/o aeronaves o daños por riesgos políticos y sociales | E38: ='VALOR TOTAL BIENES'!F12 -> 0 | F38: ='VALOR TOTAL BIENES'!G12 -> 51.5
A39: =IF(AND(A40="hide",A41="hide",A42="hide",A43="hide",A44="hide",A45="hide",A46="hide"),"hide","") ->  | C39: Coberturas adicionales
A40: =IF(LEN(B40)=0,"hide","") -> hide | B40: =IF('VALOR TOTAL BIENES'!B14=0,"",'VALOR TOTAL BIENES'!B14) ->  | C40: Robo y/o daños por intento de robo (dentro y fuera de la vivienda a nivel nacional) | E40: ='VALOR TOTAL BIENES'!F14 -> 0 | F40: ='VALOR TOTAL BIENES'!G14 -> 0
A41: =IF(LEN(B41)=0,"hide","") -> hide | B41: =IF('VALOR TOTAL BIENES'!B15=0,"",'VALOR TOTAL BIENES'!B15) ->  | C41: Robo y/o daños por intento de robo de joyas, platería, relojes, obras de arte, cámaras fotográficas o de video, laptops y bicicletas dentro de la vivienda o que estén siendo portados fuera de la vivienda. | E41: ='VALOR TOTAL BIENES'!F15 -> USD 10,000, sublímite de la cobertura de Robo | F41: ='VALOR TOTAL BIENES'!G15 -> 0
A42: =IF(LEN(B42)=0,"hide","") -> hide | B42: =IF('VALOR TOTAL BIENES'!B16=0,"",'VALOR TOTAL BIENES'!B16) ->  | C42: Terremoto, temblor, maremoto, Inundaciones y riesgos de la naturaleza | E42: ='VALOR TOTAL BIENES'!F16 -> 0 | F42: ='VALOR TOTAL BIENES'!G16 -> 0
A43: =IF(LEN(B42)=0,"hide","") -> hide | E43: ='VALOR TOTAL BIENES'!F17 -> Suma asegurada que forma parte de la cobertura principal | F43: ='VALOR TOTAL BIENES'!G17 -> 0
A44: =IF(LEN(B44)=0,"hide","") -> hide | B44: =IF('VALOR TOTAL BIENES'!B18=0,"",'VALOR TOTAL BIENES'!B18) ->  | C44: Hurto | E44: ='VALOR TOTAL BIENES'!F18 -> Hasta US$ 3,000 , sublímite de la cobertura de Robo | F44: ='VALOR TOTAL BIENES'!G18 -> 0
A45: =IF(LEN(B45)=0,"hide","") -> hide | B45: =IF('VALOR TOTAL BIENES'!B19=0,"",'VALOR TOTAL BIENES'!B19) ->  | C45: Deshonestidad de trabajadores del hogar | E45: ='VALOR TOTAL BIENES'!F19 -> Hasta US$ 5,000 por evento, máximo 3 eventos por vigencia de la póliza, sublímite de la cobertura de Robo | F45: ='VALOR TOTAL BIENES'!G19 -> 0
A46: =IF(LEN(B46)=0,"hide","") ->  | B46: =IF('VALOR TOTAL BIENES'!B20=0,"",'VALOR TOTAL BIENES'!B20) -> X | C46: Gastos extraordinarios: remoción de escombros, honorarios profesionales y construcción de documentos y modelos | E46: ='VALOR TOTAL BIENES'!F20 -> Hasta el 20% de la suma asegurada de bienes, suma asegurada que forma parte de la cobertura principal | F46: ='VALOR TOTAL BIENES'!G20 -> 0
A47: =IF(LEN($B$47)=0,"hide","") -> hide | B47: =IF('VALOR TOTAL BIENES'!B21=0,"",'VALOR TOTAL BIENES'!B21) ->  | C47: Asistencias | I47: OK
A48: =IF(LEN($B$47)=0,"hide","") -> hide | C48: ='VALOR TOTAL BIENES'!D22 -> Envío y pago de Cerrajero por emergencia | E48: ='VALOR TOTAL BIENES'!F22 -> Hasta US$ 300 por evento, Máximo de 3 eventos | F48: ='VALOR TOTAL BIENES'!G22 -> 0
A49: =IF(LEN($B$47)=0,"hide","") -> hide | C49: ='VALOR TOTAL BIENES'!D23 -> Envío y pago de Gasfitero por emergencia | E49: ='VALOR TOTAL BIENES'!F23 -> Hasta US$ 300 por evento, Máximo de 3 eventos
A50: hide | C50: ='VALOR TOTAL BIENES'!D24 -> Envío y pago de Electricista por emergencia | E50: ='VALOR TOTAL BIENES'!F24 -> Hasta US$ 300 por evento, Máximo de 3 eventos
A51: hide | C51: ='VALOR TOTAL BIENES'!D25 -> Envío y pago de Vidriero por emergencia | E51: ='VALOR TOTAL BIENES'!F25 -> Hasta US$ 300 por evento, Máximo de 3 eventos
A52: hide | C52: ='VALOR TOTAL BIENES'!D26 -> Limpieza del inmueble asegurado a consecuencia de un siniestro | E52: ='VALOR TOTAL BIENES'!F26 -> Hasta US$ 500 por evento, Máximo de 3 eventos
A53: hide | C53: ='VALOR TOTAL BIENES'!D27 -> Servicio de Lavado de estores, roller, alfombras | E53: ='VALOR TOTAL BIENES'!F27 -> Hasta US$ 80 por evento, máximo de 1 evento, cubriendo la limpieza de una pieza.
A54: hide | C54: ='VALOR TOTAL BIENES'!D28 -> Servicio de Lavado de colchón | E54: ='VALOR TOTAL BIENES'!F28 -> Hasta US$ 80 por evento, máximo de 1 evento, cubriendo la limpieza de una pieza.
A55: hide | C55: ='VALOR TOTAL BIENES'!D29 -> Masajes relajantes a domicilio durante 1 hora | E55: ='VALOR TOTAL BIENES'!F29 -> Hasta US$ 80 por evento, máximo de 1 evento, cubriendo la limpieza de una pieza.
A56: hide | C56: ='VALOR TOTAL BIENES'!D30 -> Mozo a domicilio | E56: ='VALOR TOTAL BIENES'!F30 -> Hasta máximo de 3 eventos al año, con servicio una vez al mes.
A57: hide | C57: ='VALOR TOTAL BIENES'!D31 -> Mantenimiento Preventivo de Línea Blanca | E57: ='VALOR TOTAL BIENES'!F31 -> Hasta US$ 75 por evento, máximo de 3 eventos, cubriendo la revisión de un equipo.
A58: hide | C58: ='VALOR TOTAL BIENES'!D32 -> Orientación telefónica veterinaria para perros las 24H | E58: ='VALOR TOTAL BIENES'!F32 -> Sin límite
A59: hide | C59: ='VALOR TOTAL BIENES'!D33 -> Hospedaje de perros | E59: ='VALOR TOTAL BIENES'!F33 -> Hasta máximo de 3 eventos. Se considera 1 día de hospedaje por evento.
C60: Deducibles: Aplicables por evento/pérdida, en caso de discrepancia prevalece el mayor
A61: =IF(LEN(B61)=0,"hide","") -> hide | B61: =IF('VALOR TOTAL BIENES'!B35=0,"",'VALOR TOTAL BIENES'!B35) ->  | C61: Robo y/o daños por intento de robo | E61: ='VALOR TOTAL BIENES'!F35 -> Hasta 10% del monto indemnizable, mínimo US$ 200
A62: hide | B62: =IF('VALOR TOTAL BIENES'!B36=0,"",'VALOR TOTAL BIENES'!B36) ->  | C62: Hurto | E62: ='VALOR TOTAL BIENES'!F36 -> Hasta 10% del monto indemnizable, mínimo US$ 200
A63: hide | B63: =IF('VALOR TOTAL BIENES'!B37=0,"",'VALOR TOTAL BIENES'!B37) ->  | C63: Deshonestidad de trabajadores del hogar | E63: ='VALOR TOTAL BIENES'!F37 -> Hasta 10% del monto indemnizable, mínimo US$ 200
A64: hide | B64: =IF('VALOR TOTAL BIENES'!B38=0,"",'VALOR TOTAL BIENES'!B38) ->  | C64: Terremoto / Maremoto | E64: ='VALOR TOTAL BIENES'!F38 -> Hasta el 1% del límite asegurado, mínimo US$ 200
A65: hide | B65: =IF('VALOR TOTAL BIENES'!B39=0,"",'VALOR TOTAL BIENES'!B39) ->  | C65: Otros Riesgos de la Naturaleza (entre ellos lluvia, inundación, otros) | E65: ='VALOR TOTAL BIENES'!F39 -> Hasta 10% del monto indemnizable, mínimo US$ 200
B66: =IF('VALOR TOTAL BIENES'!B40=0,"",'VALOR TOTAL BIENES'!B40) -> X | C66: Daños por agua | E66: ='VALOR TOTAL BIENES'!F40 -> Hasta 10% del monto indemnizable, mínimo US$ 200
B67: =IF('VALOR TOTAL BIENES'!B41=0,"",'VALOR TOTAL BIENES'!B41) -> X | C67: Riesgos políticos y sociales | E67: ='VALOR TOTAL BIENES'!F41 -> Hasta 10% del monto indemnizable, mínimo US$ 200
A68: =IF(LEN(B68)=0,"hide","") -> hide | B68: =IF('VALOR TOTAL BIENES'!B42=0,"",'VALOR TOTAL BIENES'!B42) ->  | C68: Demás coberturas | E68: ='VALOR TOTAL BIENES'!F42 -> Sin deducible
C71: Importante: | I71: OK
C72: Si se encuentran discrepancias entre la presente cotización y los términos de la póliza, prevalecerán las condiciones de esta última.
C73: La presente cotización es válida por un plazo de 30 días calendarios contados a partir de la fecha de recepción de la misma. Luego de vencido dicho plazo la oferta contenida en la presente cotización quedará sin efecto legal alguno entre las partes.
C74: Se deja constancia expresa que, a potestad de la Compañía, la aceptación final del riesgo por parte de esta queda sujeta a la realización de la inspección, por parte de nuestro Departamento de Ingeniería o la persona autorizada para tal efecto, para verificar el efectivo estado del riesgo, así como el estricto cumplimiento por parte del Asegurado de las garantías que a mérito de dicha inspección establezca el Departamento de Ingeniería de la Compañía.
C76: Consideraciones: | I76: OK
C77: - La forma de entrega de la póliza es electrónica. - La forma de pago de la póliza es solo con afiliación al débito automático a una tarjeta de crédito o a una cuenta bancaria. - La modalidad de aseguramiento que brinda este plan de seguros es a valor total. - La cobertura principal comprende además cualquier otro riesgo, súbito e imprevisto, que no esté excluido explícitamente en las exclusiones de las Condiciones Generales y/o Cláusulas Adicionales de la Póliza. - Las coberturas señaladas en Coberturas Adicionales forman parte de la suma asegurada de la Cobertura Principal, es decir, cada indemnización que le paguemos por las coberturas adicionales, reducirá la suma asegurada de la cobertura principal, a excepción de la cobertura adicional Responsabilidad civil frente a terceros, la cual es independiente a la suma asegurada de la cobertura principal. - La cobertura de la póliza en cuanto a pérdida o daños causados por agua que inunde, descargue o derrame de cualquier instalación de agua o desagüe de otros elementos líquidos; no comprenderá el costo de reparar el desperfecto que originó tal pérdida o daño. - Este seguro no otorga cobertura cuando en el inmueble se realiza cualquier actividad o giro comercial diferente al de casa habitación. - Este seguro se renovará automáticamente, es decir, en las mismas condiciones vigentes en el periodo anterior. - Para la cobertura de Robo y/o daños por intento de robo de Joyas y platería se define lo siguiente: Objetos y/o adornos de uso personal elaborados en oro, plata, platino, perlas y que pueden llevar o no incrustadas piedras preciosas de origen biológico o mineral, tanto si están engastadas como si no. También se considera a cualquier objeto ornamental o de uso doméstico elaborado con los materiales enumerados en el párrafo anterior. - El ASEGURADO deberá presentar una relación detallada, a ser actualizada mínimo cada dos años, de los bienes cuyo valor unitario excedan los S/ 5,000. En caso de siniestro, esta relación de bienes es el sustento de la pre-existencia de cada bien declarado. En caso de no cumplir con lo anterior o para bienes afectados no incluidos en la relación presentada, el Asegurado deberá demostrarnos la pre-existencia de los bienes afectados en el siniestro, a través de comprobantes de pago y/o constancia visual (fotografías, video, manuales de uso o similares) en donde se muestre el artículo en el interior del Inmueble asegurado o a la persona usando dicho artículo. - En caso de robo: Se mantiene la exigencia de la denuncia policial, pero se manejará a discreción cada caso hasta por un monto máximo de siniestro de S/ 30,000, siniestros por encima de este monto deberán presentar denuncia policial de manera obligatoria. - Las asistencias están disponibles los 365 días del año en las siguientes ciudades: • Lima Metropolitana exceptuando Ancón, Punta Hermosa, San Bartolo, Santa María y Pucusana. • Trujillo: En los distritos de Trujillo, Victor Larco, Moche y Huanchaco. • Chiclayo: En los distritos de Chiclayo, La Victoria, José Leonardo Ortiz, Pimentel. • Piura: En los distritos de Piura, Castilla, Catacaos. • Arequipa: En los distritos de Arequipa (Cercado), Yanahuara, Cayma, Sachaca, José Luis Bustamante y Rivero, Cerro Colorado. • Cusco: En los distritos de Cusco, San Jerónimo, San Sebastián, Santiago, Wanchaq. Aplican y deben aparecer tanto para a primer riesgo como para valor total
C109: Exlusiones: | I109: OK
C110: Tenga en cuenta que no pagaremos la reparación del desperfecto ni del bien que originó el daño, como tampoco ninguna pérdida o daño proveniente o que sean causa de, o en conexión con, o atribuibles principalmente a: a) Dolo, culpa grave o negligencia inexcusable del CONTRATANTE o de USTED y/o del BENEFICIARIO y/o ENDOSATARIO o de los familiares de cualquiera de ellos, o de sus dependientes, especialmente de los responsables de la seguridad de los BIENES asegurados. b) Guerra, Guerra Civil, invasión, acto de enemigo extranjero, hostilidades u operaciones de guerra, declarada o no. c) Desgaste o deterioro paulatino o fatiga de material, causado por, o resultado de, el uso y funcionamiento del bien; uso o deterioro gradual; deficiencias de rendimiento o capacidad; polución, contaminación; corrosión, erosión; herrumbre u oxidación; hongos, moho húmedo o seco, combustión espontánea, fermentación; humedad, sequedad, smog o cambios de temperatura; asentamiento o contracción o expansión de edificios o cimientos; la calefacción o la desecación a que hubieran sido sometidos los objetos que forman parte de la Materia Asegurada. d) Hundimientos, desplazamientos, agrietamientos o asentamientos de muros, pisos, techos, pavimentos, cimientos, muros de contención. Sin embargo, si estos daños son causados por los eventos de Terremoto, Temblor, Erupción Volcánica o Maremoto para los cuales se haya contratado amparo bajo la presente póliza, no se aplicará esta exclusión. e) Todo gasto o costo para implementar modificaciones o mejoras, o por mantenimiento, o para hacer otras reparaciones o arreglos, en el INMUEBLE y/o BIENES dañados o afectados; así como los gastos o costos de cualquier reparación provisional, a menos que constituyan, a la vez, parte de los gastos de la reparación definitiva amparada por la póliza. f) Valor atribuido a los BIENES por razones sentimentales o simbólicas, por afición, por antigüedad, o por exclusividad. g) Pérdida o daño ocurrido cuando el INMUEBLE esté deshabitado y/o cuando los BIENES se hallen en el INMUEBLE deshabitado; en ambos casos durante más de noventa (90) días consecutivos. Las demás exclusiones se encuentran en el acápite 3 de las Condiciones Generales de la Póliza. Aplican exclusiones específicas a la cobertura que se contrate, detalladas en su respectiva Cláusula Adicional. Bienes excluidos: a) INMUEBLE y/o BIENES con cualquier actividad o giro diferente al de casa habitación. b) Animales vivos de cualquier tipo. c) Plantaciones, cultivos, cosechas de cualquier tipo, invernaderos, bosques, selvas, monte bajo, praderas, pampas, árboles, parques, prados, jardines naturales y ornamentales, agua. d) INMUEBLES y/o BIENES en proceso de construcción, reconstrucción, montaje o desmontaje. e) Vehículos motorizados con una placa de rodaje, equipos flotantes o submarinos, aeronaves o artefactos aéreos, embarcaciones, naves acuáticas; de cualquier tipo y tamaño. f) BIENES de cualquier tipo que sean propiedad de terceros aun cuando dichos BIENES se encuentren bajo custodia y/o posesión del Asegurado. g) Material pirotécnico, explosivos, combustibles, mechas, fulminantes, detonadores y similares. h) BIENES situados o instalados u operando o trabajando o siendo usados en él, o a las orillas del, mar, río, lago o laguna, en subterráneos, o debajo del nivel de la superficie terrestre. i) Dinero en efectivo, títulos valores. j) Cualquier tipo de contenido o bien para fines comerciales, de la profesión u ocupación o de negocios de USTED, de cualquier miembro de su familia, por medio de los cuales obtengan un lucro.

Sheet CotizacionInmuebleyBienesVT (hidden)
C1: ="Cotización Seguro de Hogar Flex " & configuracion!$K$2 -> Cotización Seguro de Hogar Flex Enero 2025
C3: Vigencia de la cotización | D3: =TEXT(TODAY(),"dd/mm/yyyy") & " - " & TEXT(TODAY()+15,"dd/mm/yyyy") -> 25/03/2025 - 09/04/2025
C4: Fecha inicio de Vigencia | D4: =Cotizador!$L$6 -> 00:00:00
C5: Canal | D5: =Cotizador!$G$10 -> Corredor
C6: Agente | D6: =Cotizador!R$10 -> 0
C8: Datos del Contratante
C9: Nombre del Contratante | D9: =Cotizador!$G$15 & " " & Cotizador!$M$15& " " & Cotizador!$R$15 -> 
C10: Tipo de documento | D10: =Cotizador!$G$14&" " &Cotizador!$M$14 -> 
F11: Descuento
C12: Planes de Pago Prima | F12: =Cotizador!$M$40 -> 0
C13: Débito automático | D13: Valores de la Cuota
C14: Plan de pago | D14: Prima Comercial | E14: IGV | F14: Prima Total
C15: Prima anual + IGV sin intereses: | D15: =IF(Cotizador!$G$54=0,"",Cotizador!$G$54) ->  | E15: =IF(Cotizador!$G$55=0,"",Cotizador!$G$55) ->  | F15: =IF(Cotizador!$G$56=0,"",Cotizador!$G$56) -> 
C16: Prima anual + IGV sin intereses: | D16: =IF(Cotizador!$L$54=0,"",Cotizador!$L$54) ->  | E16: =IF(Cotizador!$L$55=0,"",Cotizador!$L$55) ->  | F16: =IF(Cotizador!$L$56=0,"",Cotizador!$L$56) -> 
C17: =IF(Cotizador!$I$61="X",Cotizador!$B$61,IF(Cotizador!$I$62="X",Cotizador!$B$62,IF(Cotizador!$I$63="X",Cotizador!$B$63,IF(Cotizador!$I$64="X",Cotizador!$B$64,IF(Cotizador!$I$66="X",Cotizador!$B$66,IF(Cotizador!$I$67="X",Cotizador!$B$67,IF(Cotizador!$I$68="X",Cotizador!$B$68,IF(Cotizador!$I$69="X",Cotizador!$B$69,"")))))))) ->  | D17: =IFERROR(F17/1.18,"") ->  | E17: =IFERROR(F17-D17,"") ->  | F17: =IF(Cotizador!$I$61="X",Cotizador!$J$61,IF(Cotizador!$I$62="X",Cotizador!$J$62,IF(Cotizador!$I$63="X",Cotizador!$J$63,IF(Cotizador!$I$64="X",Cotizador!$J$64,IF(Cotizador!$I$66="X",Cotizador!$J$66,IF(Cotizador!$I$67="X",Cotizador!$J$67,IF(Cotizador!$I$68="X",Cotizador!$J$68,IF(Cotizador!$I$69="X",Cotizador!$J$69,"")))))))) -> 
C18: Materia Asegurada | D18: =IF(Cotizador!$H$29="X",Cotizador!$G$29,IF(Cotizador!$K$29="X",Cotizador!$J$29,IF(Cotizador!$O$29="X",Cotizador!$M$29))) -> FALSE
C20: Datos del Inmueble asegurado
C21: Dirección | D21: =Cotizador!$G$22 & " " & Cotizador!G23 -> 
C22: Departamento | D22: =IF(Cotizador!$L$26=0,"",Cotizador!$L$26) -> 
C23: Provincia | D23: =IF(Cotizador!$G$26=0,"",Cotizador!$G$26) -> 
C24: Distrito | D24: =IF(Cotizador!$G$25=0,"",Cotizador!$G$25) -> 
C25: Tipo de Inmueble | D25: =IF(Cotizador!$E$34="X",Cotizador!$B$34,IF(Cotizador!$E$35="X",Cotizador!$B$35,"")) -> 
C27: Modalidad de Aseguramiento | D27: =IF(Cotizador!$H$31="X",Cotizador!$G$31,IF(Cotizador!$K$31="X",Cotizador!$J$31,"")) -> 
C29: Plan contratado | D29: =IF(Cotizador!$G$29="PLAN BÁSICO","Plan Básico",IF(Cotizador!$G$29="PLAN FULL","Plan Full","Personalizado")) -> Personalizado
C31: Sumas Aseguradas
C32: Suma Asegurada Inmueble | D32: =Cotizador!$G$40 -> 0 | E32: Valor Declarado Inmueble | F32: =Cotizador!$G$38 -> 0
C33: Suma Asegurada Bienes | D33: =Cotizador!G41 -> 0 | E33: Valor Declarado Bienes | F33: =Cotizador!$G$39 -> 0
C34: Suma Asegurada Total (Inmueble + Bienes) | D34: =SUM(D32:D33) -> 0
C36: COBERTURAS (INMUEBLE Y BIENES) | E36: Límites asegurados por vigencia, hasta | F36: Límites asegurados por vigencia, hasta | G36: Prima Comercial | I36: OK
C37: Cobertura principal | E37: INMUEBLE | F37: BIENES
A38: =IF(LEN(B38)=0,"hide","") ->  | B38: =IF('VALOR TOTAL INMUEBLE +BIENES'!B12=0,"",'VALOR TOTAL INMUEBLE +BIENES'!B12) -> X | C38: Incendio y/o rayo, explosión, incendio en aparatos eléctricos. Daños por agua, daños por humo, impacto de vehículos y/o aeronaves o daños por riesgos políticos y sociales | E38: ='VALOR TOTAL INMUEBLE +BIENES'!F12 -> 0 | F38: ='VALOR TOTAL INMUEBLE +BIENES'!G12 -> 0 | G38: ='VALOR TOTAL INMUEBLE +BIENES'!H12 -> 114.8605
A39: =IF(AND(A40="hide",A41="hide",A42="hide",A43="hide",A44="hide",A45="hide",A46="hide",A47="hide",A48="hide",A49="hide",A50="hide",A51="hide",A52="hide",A53="hide",A54="hide"),"hide","") ->  | C39: Coberturas adicionales
A40: =IF(LEN(B40)=0,"hide","") ->  | B40: =IF('VALOR TOTAL INMUEBLE +BIENES'!B14=0,"",'VALOR TOTAL INMUEBLE +BIENES'!B14) -> X | C40: Terremoto, temblor, maremoto, Inundaciones y riesgos de la naturaleza | E40: ='VALOR TOTAL INMUEBLE +BIENES'!F14 -> 0 | F40: ='VALOR TOTAL INMUEBLE +BIENES'!G14 -> 0 | G40: ='VALOR TOTAL INMUEBLE +BIENES'!H14 -> 447.79
A41: =IF(LEN(B40)=0,"hide","") ->  | E41: Suma asegurada que forma parte de la cobertura principal | F41: Suma asegurada que forma parte de la cobertura principal
A42: =IF(LEN(B42)=0,"hide","") ->  | B42: =IF('VALOR TOTAL INMUEBLE +BIENES'!B16=0,"",'VALOR TOTAL INMUEBLE +BIENES'!B16) -> X | C42: Responsabilidad civil frente a terceros | E42: ='VALOR TOTAL INMUEBLE +BIENES'!F16 -> 0 | F42: ='VALOR TOTAL INMUEBLE +BIENES'!G16 -> - | G42: ='VALOR TOTAL INMUEBLE +BIENES'!H16 -> 2.03
A43: =IF(LEN(B42)=0,"hide","") ->  | E43: =coberturasyClausulas!$J$64 -> máximo US$ 200,000
A44: =IF(LEN(B44)=0,"hide","") ->  | B44: =IF('VALOR TOTAL INMUEBLE +BIENES'!B18=0,"",'VALOR TOTAL INMUEBLE +BIENES'!B18) -> X | C44: Rotura accidental de vidrio y/o cristales | E44: ='VALOR TOTAL INMUEBLE +BIENES'!F18 -> US$ 3,000 | G44: ='VALOR TOTAL INMUEBLE +BIENES'!H18 -> 4.46
A45: =IF(LEN(B44)=0,"hide","") ->  | E45: Suma asegurada que forma parte de la cobertura principal
A46: =IF(LEN(B46)=0,"hide","") -> hide | B46: =IF('VALOR TOTAL INMUEBLE +BIENES'!B20=0,"",'VALOR TOTAL INMUEBLE +BIENES'!B20) ->  | C46: Robo o intento de robo de instalaciones fijas | E46: ='VALOR TOTAL INMUEBLE +BIENES'!F20 -> 20% de la suma asegurada de inmueble, máximo US$ 5,000 , suma asegurada que forma parte de la cobertura principal | G46: ='VALOR TOTAL INMUEBLE +BIENES'!H20 -> 0.36
A47: =IF(LEN(B47)=0,"hide","") -> hide | B47: =IF('VALOR TOTAL INMUEBLE +BIENES'!B21=0,"",'VALOR TOTAL INMUEBLE +BIENES'!B21) ->  | C47: Robo y/o daños por intento de robo (dentro y fuera de la vivienda a nivel nacional) | E47: ='VALOR TOTAL INMUEBLE +BIENES'!F21 -> - | F47: ='VALOR TOTAL INMUEBLE +BIENES'!G21 -> 0 | G47: ='VALOR TOTAL INMUEBLE +BIENES'!H21 -> 45.25
A48: hide | B48: =IF('VALOR TOTAL INMUEBLE +BIENES'!B22=0,"",'VALOR TOTAL INMUEBLE +BIENES'!B22) ->  | C48: Robo y/o daños por intento de robo de joyas, platería, relojes, obras de arte, cámaras fotográficas o de video, laptops y bicicletas dentro de la vivienda o que estén siendo portados fuera de la vivienda. | E48: ='VALOR TOTAL INMUEBLE +BIENES'!F22 -> - | F48: ='VALOR TOTAL INMUEBLE +BIENES'!G22 -> USD 10,000, sublímite de la cobertura de Robo | G48: ='VALOR TOTAL INMUEBLE +BIENES'!H22 -> 4.37
A49: hide | B49: =IF('VALOR TOTAL INMUEBLE +BIENES'!B23=0,"",'VALOR TOTAL INMUEBLE +BIENES'!B23) ->  | C49: Hurto | E49: ='VALOR TOTAL INMUEBLE +BIENES'!F23 -> - | F49: ='VALOR TOTAL INMUEBLE +BIENES'!G23 -> US$ 3,000 , sublímite de la cobertura de Robo | G49: ='VALOR TOTAL INMUEBLE +BIENES'!H23 -> 4.96
A50: hide | B50: =IF('VALOR TOTAL INMUEBLE +BIENES'!B24=0,"",'VALOR TOTAL INMUEBLE +BIENES'!B24) ->  | C50: Deshonestidad de trabajadores del hogar | E50: ='VALOR TOTAL INMUEBLE +BIENES'!F24 -> - | F50: ='VALOR TOTAL INMUEBLE +BIENES'!G24 -> US$ 5,000 por evento, máximo 3 eventos por vigencia de la póliza, sublímite de la cobertura de Robo | G50: ='VALOR TOTAL INMUEBLE +BIENES'!H24 -> 0
A51: hide | B51: =IF('VALOR TOTAL INMUEBLE +BIENES'!B25=0,"",'VALOR TOTAL INMUEBLE +BIENES'!B25) ->  | C51: Reembolso de gastos médicos por accidentes de trabajadores del hogar, ocurridos dentro del inmueble | E51: ='VALOR TOTAL INMUEBLE +BIENES'!F25 -> US$ 5,000 por evento, máximo 3 eventos por vigencia de la póliza | F51: Hasta US$ 5,000 / S/ 15,000 por evento, máximo 3 eventos por vigencia de la póliza | G51: ='VALOR TOTAL INMUEBLE +BIENES'!H25 -> 0
B52: =IF('VALOR TOTAL INMUEBLE +BIENES'!B26=0,"",'VALOR TOTAL INMUEBLE +BIENES'!B26) -> X | C52: Gastos de arrendamiento de vivienda temporal a reembolso | E52: ='VALOR TOTAL INMUEBLE +BIENES'!F26 -> US$ 2,000 mensuales, máximo 6 meses por vigencia de la póliza, suma asegurada que forma parte de la cobertura principal | F52: Hasta US$ 5,000 / S/ 15,000 por evento, máximo 3 eventos por vigencia de la póliza | G52: ='VALOR TOTAL INMUEBLE +BIENES'!H26 -> 0
A53: hide | B53: =IF('VALOR TOTAL INMUEBLE +BIENES'!B27=0,"",'VALOR TOTAL INMUEBLE +BIENES'!B27) ->  | C53: Alquiler no percibido por inmueble inhabitable temporalmente (aplica solo para el arrendador) | E53: ='VALOR TOTAL INMUEBLE +BIENES'!F27 -> US$ 2,000 mensuales, máximo 6 meses por vigencia de la póliza, suma asegurada que forma parte de la cobertura principal | F53: Hasta US$ 5,000 / S/ 15,000 por evento, máximo 3 eventos por vigencia de la póliza | G53: ='VALOR TOTAL INMUEBLE +BIENES'!H27 -> 0
B54: =IF('VALOR TOTAL INMUEBLE +BIENES'!B28=0,"",'VALOR TOTAL INMUEBLE +BIENES'!B28) -> X | C54: Gastos extraordinarios: remoción de escombros, honorarios profesionales y construcción de documentos y modelos | E54: ='VALOR TOTAL INMUEBLE +BIENES'!F28 -> 20% de la suma asegurada de inmueble y/o bienes, suma asegurada que forma parte de la cobertura principal | F54: Hasta US$ 5,000 / S/ 15,000 por evento, máximo 3 eventos por vigencia de la póliza | G54: ='VALOR TOTAL INMUEBLE +BIENES'!H28 -> 0
A55: =IF(LEN($B$55)=0,"hide","") ->  | B55: =IF('VALOR TOTAL INMUEBLE +BIENES'!B29=0,"",'VALOR TOTAL INMUEBLE +BIENES'!B29) -> X | C55: Asistencias | I55: OK
A56: =IF(LEN($B$55)=0,"hide","") ->  | C56: ='VALOR TOTAL INMUEBLE +BIENES'!D30 -> Envío y pago de Cerrajero por emergencia | E56: ='VALOR TOTAL INMUEBLE +BIENES'!F30 -> Hasta US$ 300 por evento, Máximo de 3 eventos | G56: ='VALOR TOTAL INMUEBLE +BIENES'!H30 -> 5.75
A57: =IF(LEN($B$55)=0,"hide","") ->  | C57: ='VALOR TOTAL INMUEBLE +BIENES'!D31 -> Envío y pago de Gasfitero por emergencia | E57: ='VALOR TOTAL INMUEBLE +BIENES'!F31 -> Hasta US$ 300 por evento, Máximo de 3 eventos
A58: =IF(LEN($B$55)=0,"hide","") ->  | C58: ='VALOR TOTAL INMUEBLE +BIENES'!D32 -> Envío y pago de Electricista por emergencia | E58: ='VALOR TOTAL INMUEBLE +BIENES'!F32 -> Hasta US$ 300 por evento, Máximo de 3 eventos
A59: =IF(LEN($B$55)=0,"hide","") ->  | C59: ='VALOR TOTAL INMUEBLE +BIENES'!D33 -> Envío y pago de Vidriero por emergencia | E59: ='VALOR TOTAL INMUEBLE +BIENES'!F33 -> Hasta US$ 300 por evento, Máximo de 3 eventos
A60: =IF(LEN($B$55)=0,"hide","") ->  | C60: ='VALOR TOTAL INMUEBLE +BIENES'!D34 -> Limpieza del inmueble asegurado a consecuencia de un siniestro | E60: ='VALOR TOTAL INMUEBLE +BIENES'!F34 -> Hasta US$ 500 por evento, Máximo de 3 eventos
A61: =IF(LEN($B$55)=0,"hide","") ->  | C61: ='VALOR TOTAL INMUEBLE +BIENES'!D35 -> Servicio de Lavado de estores, roller, alfombras | E61: ='VALOR TOTAL INMUEBLE +BIENES'!F35 -> Hasta US$ 80 por evento, máximo de 1 evento, cubriendo la limpieza de una pieza.
C62: ='VALOR TOTAL INMUEBLE +BIENES'!D36 -> Servicio de Lavado de colchón | E62: ='VALOR TOTAL INMUEBLE +BIENES'!F36 -> Hasta US$ 80 por evento, máximo de 1 evento, cubriendo la limpieza de una pieza.
C63: ='VALOR TOTAL INMUEBLE +BIENES'!D37 -> Masajes relajantes a domicilio durante 1 hora | E63: ='VALOR TOTAL INMUEBLE +BIENES'!F37 -> Hasta US$ 80 por evento, máximo de 1 evento, cubriendo la limpieza de una pieza.
C64: ='VALOR TOTAL INMUEBLE +BIENES'!D38 -> Mozo a domicilio | E64: ='VALOR TOTAL INMUEBLE +BIENES'!F38 -> Hasta máximo de 3 eventos al año, con servicio una vez al mes.
C65: ='VALOR TOTAL INMUEBLE +BIENES'!D39 -> Mantenimiento Preventivo de Línea Blanca | E65: ='VALOR TOTAL INMUEBLE +BIENES'!F39 -> Hasta US$ 75 por evento, máximo de 3 eventos, cubriendo la revisión de un equipo.
A66: =IF(LEN($B$55)=0,"hide","") ->  | C66: ='VALOR TOTAL INMUEBLE +BIENES'!D40 -> Orientación telefónica veterinaria para perros las 24H | E66: ='VALOR TOTAL INMUEBLE +BIENES'!F40 -> Sin límite
C67: ='VALOR TOTAL INMUEBLE +BIENES'!D41 -> Hospedaje de perros | E67: ='VALOR TOTAL INMUEBLE +BIENES'!F41 -> Hasta máximo de 3 eventos. Se considera 1 día de hospedaje por evento.
C68: Deducibles: Aplicables por evento/pérdida, en caso de discrepancia prevalece el mayor | I68: OK
A69: =IF(LEN(B69)=0,"hide","") ->  | B69: =IF('VALOR TOTAL INMUEBLE +BIENES'!B43=0,"",'VALOR TOTAL INMUEBLE +BIENES'!B43) -> X | C69: Terremoto / Maremoto | E69: ='VALOR TOTAL INMUEBLE +BIENES'!F43 -> Hasta el 1% del límite asegurado, mínimo US$ 200
A70: =IF(LEN(B70)=0,"hide","") ->  | B70: =IF('VALOR TOTAL INMUEBLE +BIENES'!B44=0,"",'VALOR TOTAL INMUEBLE +BIENES'!B44) -> X | C70: Otros Riesgos de la Naturaleza (entre ellos lluvia, inundación, otros) | E70: ='VALOR TOTAL INMUEBLE +BIENES'!F44 -> Hasta 10% del monto indemnizable, mínimo US$ 200
B71: =IF('VALOR TOTAL INMUEBLE +BIENES'!B45=0,"",'VALOR TOTAL INMUEBLE +BIENES'!B45) -> X | C71: Daños por agua | E71: ='VALOR TOTAL INMUEBLE +BIENES'!F45 -> Hasta 10% del monto indemnizable, mínimo US$ 200
B72: =IF('VALOR TOTAL INMUEBLE +BIENES'!B46=0,"",'VALOR TOTAL INMUEBLE +BIENES'!B46) -> X | C72: Riesgos políticos y sociales | E72: ='VALOR TOTAL INMUEBLE +BIENES'!F46 -> Hasta 10% del monto indemnizable, mínimo US$ 200
B73: =IF('VALOR TOTAL INMUEBLE +BIENES'!B47=0,"",'VALOR TOTAL INMUEBLE +BIENES'!B47) -> X | C73: Responsabilidad civil frente a terceros | E73: ='VALOR TOTAL INMUEBLE +BIENES'!F47 -> Hasta 10% del monto indemnizable, mínimo US$ 200
B74: =IF('VALOR TOTAL INMUEBLE +BIENES'!B48=0,"",'VALOR TOTAL INMUEBLE +BIENES'!B48) -> X | C74: Rotura accidental de vidrio y/o cristales | E74: ='VALOR TOTAL INMUEBLE +BIENES'!F48 -> Hasta 10% del monto indemnizable, mínimo US$ 200
A75: hide | B75: =IF('VALOR TOTAL INMUEBLE +BIENES'!B49=0,"",'VALOR TOTAL INMUEBLE +BIENES'!B49) ->  | C75: Robo o intento de robo de instalaciones fijas | E75: ='VALOR TOTAL INMUEBLE +BIENES'!F49 -> Hasta 10% del monto indemnizable, mínimo US$ 200
A76: hide | B76: =IF('VALOR TOTAL INMUEBLE +BIENES'!B50=0,"",'VALOR TOTAL INMUEBLE +BIENES'!B50) ->  | C76: Robo y/o daños por intento de robo | E76: ='VALOR TOTAL INMUEBLE +BIENES'!F50 -> Hasta 10% del monto indemnizable, mínimo US$ 200
A77: hide | B77: =IF('VALOR TOTAL INMUEBLE +BIENES'!B51=0,"",'VALOR TOTAL INMUEBLE +BIENES'!B51) ->  | C77: Hurto | E77: ='VALOR TOTAL INMUEBLE +BIENES'!F51 -> Hasta 10% del monto indemnizable, mínimo US$ 200
A78: hide | B78: =IF('VALOR TOTAL INMUEBLE +BIENES'!B52=0,"",'VALOR TOTAL INMUEBLE +BIENES'!B52) ->  | C78: Deshonestidad de trabajadores del hogar | E78: ='VALOR TOTAL INMUEBLE +BIENES'!F52 -> Hasta 10% del monto indemnizable, mínimo US$ 200
B79: =IF('VALOR TOTAL INMUEBLE +BIENES'!B53=0,"",'VALOR TOTAL INMUEBLE +BIENES'!B53) -> X | C79: Demás coberturas | E79: ='VALOR TOTAL INMUEBLE +BIENES'!F53 -> Sin deducible
C82: Importante: | I82: OK
C83: Si se encuentran discrepancias entre la presente cotización y los términos de la póliza, prevalecerán las condiciones de esta última.
C84: La presente cotización es válida por un plazo de 30 días calendarios contados a partir de la fecha de recepción de la misma. Luego de vencido dicho plazo la oferta contenida en la presente cotización quedará sin efecto legal alguno entre las partes.
C85: Se deja constancia expresa que, a potestad de la Compañía, la aceptación final del riesgo por parte de esta queda sujeta a la realización de la inspección, por parte de nuestro Departamento de Ingeniería o la persona autorizada para tal efecto, para verificar el efectivo estado del riesgo, así como el estricto cumplimiento por parte del Asegurado de las garantías que a mérito de dicha inspección establezca el Departamento de Ingeniería de la Compañía.
C87: Consideraciones: | I87: OK
C88: - La forma de entrega de la póliza es electrónica. - La forma de pago de la póliza es solo con afiliación al débito automático a una tarjeta de crédito o a una cuenta bancaria. - La modalidad de aseguramiento que brinda este plan de seguros es a valor total. - La cobertura principal comprende además cualquier otro riesgo, súbito e imprevisto, que no esté excluido explícitamente en las exclusiones de las Condiciones Generales y/o Cláusulas Adicionales de la Póliza. - Las coberturas señaladas en Coberturas Adicionales forman parte de la suma asegurada de la Cobertura Principal, es decir, cada indemnización que le paguemos por las coberturas adicionales, reducirá la suma asegurada de la cobertura principal, a excepción de la cobertura adicional Responsabilidad civil frente a terceros, la cual es independiente a la suma asegurada de la cobertura principal. - La cobertura de la póliza en cuanto a pérdida o daños causados por agua que inunde, descargue o derrame de cualquier instalación de agua o desagüe de otros elementos líquidos; no comprenderá el costo de reparar el desperfecto que originó tal pérdida o daño. - Este seguro no otorga cobertura cuando en el inmueble se realiza cualquier actividad o giro comercial diferente al de casa habitación. - Este seguro se renovará automáticamente, es decir, en las mismas condiciones vigentes en el periodo anterior. - Para la cobertura de Robo y/o daños por intento de robo de Joyas y platería se define lo siguiente: Objetos y/o adornos de uso personal elaborados en oro, plata, platino, perlas y que pueden llevar o no incrustadas piedras preciosas de origen biológico o mineral, tanto si están engastadas como si no. También se considera a cualquier objeto ornamental o de uso doméstico elaborado con los materiales enumerados en el párrafo anterior. - El ASEGURADO deberá presentar una relación detallada, a ser actualizada mínimo cada dos años, de los bienes cuyo valor unitario excedan los S/ 5,000. En caso de siniestro, esta relación de bienes es el sustento de la pre-existencia de cada bien declarado. En caso de no cumplir con lo anterior o para bienes afectados no incluidos en la relación presentada, el Asegurado deberá demostrarnos la pre-existencia de los bienes afectados en el siniestro, a través de comprobantes de pago y/o constancia visual (fotografías, video, manuales de uso o similares) en donde se muestre el artículo en el interior del Inmueble asegurado o a la persona usando dicho artículo. - En caso de robo: Se mantiene la exigencia de la denuncia policial, pero se manejará a discreción cada caso hasta por un monto máximo de siniestro de S/ 30,000, siniestros por encima de este monto deberán presentar denuncia policial de manera obligatoria. - Las asistencias están disponibles los 365 días del año en las siguientes ciudades: • Lima Metropolitana exceptuando Ancón, Punta Hermosa, San Bartolo, Santa María y Pucusana. • Trujillo: En los distritos de Trujillo, Victor Larco, Moche y Huanchaco. • Chiclayo: En los distritos de Chiclayo, La Victoria, José Leonardo Ortiz, Pimentel. • Piura: En los distritos de Piura, Castilla, Catacaos. • Arequipa: En los distritos de Arequipa (Cercado), Yanahuara, Cayma, Sachaca, José Luis Bustamante y Rivero, Cerro Colorado. • Cusco: En los distritos de Cusco, San Jerónimo, San Sebastián, Santiago, Wanchaq. Aplican y deben aparecer tanto para a primer riesgo como para valor total
C120: Exlusiones: | I120: OK
C121: Tenga en cuenta que no pagaremos la reparación del desperfecto ni del bien que originó el daño, como tampoco ninguna pérdida o daño proveniente o que sean causa de, o en conexión con, o atribuibles principalmente a: a) Dolo, culpa grave o negligencia inexcusable del CONTRATANTE o de USTED y/o del BENEFICIARIO y/o ENDOSATARIO o de los familiares de cualquiera de ellos, o de sus dependientes, especialmente de los responsables de la seguridad de los BIENES asegurados. b) Guerra, Guerra Civil, invasión, acto de enemigo extranjero, hostilidades u operaciones de guerra, declarada o no. c) Desgaste o deterioro paulatino o fatiga de material, causado por, o resultado de, el uso y funcionamiento del bien; uso o deterioro gradual; deficiencias de rendimiento o capacidad; polución, contaminación; corrosión, erosión; herrumbre u oxidación; hongos, moho húmedo o seco, combustión espontánea, fermentación; humedad, sequedad, smog o cambios de temperatura; asentamiento o contracción o expansión de edificios o cimientos; la calefacción o la desecación a que hubieran sido sometidos los objetos que forman parte de la Materia Asegurada. d) Hundimientos, desplazamientos, agrietamientos o asentamientos de muros, pisos, techos, pavimentos, cimientos, muros de contención. Sin embargo, si estos daños son causados por los eventos de Terremoto, Temblor, Erupción Volcánica o Maremoto para los cuales se haya contratado amparo bajo la presente póliza, no se aplicará esta exclusión. e) Todo gasto o costo para implementar modificaciones o mejoras, o por mantenimiento, o para hacer otras reparaciones o arreglos, en el INMUEBLE y/o BIENES dañados o afectados; así como los gastos o costos de cualquier reparación provisional, a menos que constituyan, a la vez, parte de los gastos de la reparación definitiva amparada por la póliza. f) Valor atribuido a los BIENES por razones sentimentales o simbólicas, por afición, por antigüedad, o por exclusividad. g) Pérdida o daño ocurrido cuando el INMUEBLE esté deshabitado y/o cuando los BIENES se hallen en el INMUEBLE deshabitado; en ambos casos durante más de noventa (90) días consecutivos. Las demás exclusiones se encuentran en el acápite 3 de las Condiciones Generales de la Póliza. Aplican exclusiones específicas a la cobertura que se contrate, detalladas en su respectiva Cláusula Adicional. Bienes excluidos: a) INMUEBLE y/o BIENES con cualquier actividad o giro diferente al de casa habitación. b) Animales vivos de cualquier tipo. c) Plantaciones, cultivos, cosechas de cualquier tipo, invernaderos, bosques, selvas, monte bajo, praderas, pampas, árboles, parques, prados, jardines naturales y ornamentales, agua. d) INMUEBLES y/o BIENES en proceso de construcción, reconstrucción, montaje o desmontaje. e) Vehículos motorizados con una placa de rodaje, equipos flotantes o submarinos, aeronaves o artefactos aéreos, embarcaciones, naves acuáticas; de cualquier tipo y tamaño. f) BIENES de cualquier tipo que sean propiedad de terceros aun cuando dichos BIENES se encuentren bajo custodia y/o posesión del Asegurado. g) Material pirotécnico, explosivos, combustibles, mechas, fulminantes, detonadores y similares. h) BIENES situados o instalados u operando o trabajando o siendo usados en él, o a las orillas del, mar, río, lago o laguna, en subterráneos, o debajo del nivel de la superficie terrestre. i) Dinero en efectivo, títulos valores. j) Cualquier tipo de contenido o bien para fines comerciales, de la profesión u ocupación o de negocios de USTED, de cualquier miembro de su familia, por medio de los cuales obtengan un lucro.

Sheet VALOR TOTAL INMUEBLE (hidden)
D1: VALOR TOTAL INMUEBLE | F1: Ir a Cotizador
E2: INGRESE LA SUMA ASEGURADA | J2: total
D3: Suma asegurada | F3: Prima comercial | G3: =IFERROR(INMUEBLE!$P$7,0) -> 51.5 | J3: =SUM(#REF!) -> 
F4: Igv | G4: =IFERROR(INMUEBLE!$P$8,0) -> 9.27
F5: Prima total | G5: =IFERROR(INMUEBLE!$P$9,0) -> 60.77
D10: COBERTURAS (solo INMUEBLE) | F10: Límites asegurados por vigencia | G10: Prima Comercial
D11: Cobertura principal
B12: X | D12: Incendio y/o rayo, explosión, incendio en aparatos eléctricos. Daños por agua, daños por humo, impacto de vehículos y/o aeronaves o daños por riesgos políticos y sociales | F12: =$E$3 -> 0 | G12: =+IF(Cotizador!$H$37="X",INMUEBLE!$L$11,INMUEBLE!$K$11) -> 51.5
D13: Coberturas adicionales
D14: Terremoto, temblor, maremoto, Inundaciones y riesgos de la naturaleza | F14: =$E$3 -> 0 | G14: =+IF(Cotizador!$H$37="X",INMUEBLE!$L$12,INMUEBLE!$K$12) -> 0
F15: Suma asegurada que forma parte de la cobertura principal
D16: Responsabilidad civil frente a terceros | F16: =$E$3 -> 0 | G16: =+IF(Cotizador!$H$37="X",INMUEBLE!$L$13,INMUEBLE!$K$13) -> 0
F17: =coberturasyClausulas!$J$3 -> máximo US$ 200,000
D18: Rotura accidental de vidrio y/o cristales | F18: =coberturasyClausulas!$J$4 -> Hasta US$ 3,000 ,suma asegurada que forma parte de la cobertura principal | G18: =+IF(Cotizador!$H$37="X",INMUEBLE!$L$14,INMUEBLE!$K$14) -> 0
D19: Robo o intento de robo de instalaciones fijas | F19: =coberturasyClausulas!$J$5 -> Hasta el 20% de la suma asegurada de inmueble, máximo US$ 5,000 ,suma asegurada que forma parte de la cobertura principal | G19: =+IF(Cotizador!$H$37="X",INMUEBLE!$L$15,INMUEBLE!$K$15) -> 0
D20: Reembolso de gastos médicos por accidentes de trabajadores del hogar, ocurridos dentro del inmueble | F20: =coberturasyClausulas!$J$6 -> Hasta US$ 5,000 por evento, máximo 3 eventos por vigencia de la póliza | G20: =+IF(Cotizador!$H$37="X",INMUEBLE!$L$16,INMUEBLE!$K$16) -> 0
D21: Gastos de arrendamiento de vivienda temporal a reembolso | F21: =coberturasyClausulas!$J$7 -> Hasta US$ 2,000 mensuales, máximo 6 meses por vigencia de la póliza, suma asegurada que forma parte de la cobertura principal | G21: =+IF(Cotizador!$H$37="X",INMUEBLE!$L$17,INMUEBLE!$K$17) -> 0
D22: Alquiler no percibido por inmueble inhabitable temporalmente | F22: =coberturasyClausulas!$J$8 -> Hasta US$ 2,000 mensuales, máximo 6 meses por vigencia de la póliza, suma asegurada que forma parte de la cobertura principal | G22: =+IF(Cotizador!$H$37="X",INMUEBLE!$L$18,INMUEBLE!$K$18) -> 0
B23: X | D23: Gastos extraordinarios: remoción de escombros, honorarios profesionales y construcción de documentos y modelos | F23: Hasta el 20% de la suma asegurada de Inmueble, suma asegurada que forma parte de la cobertura principal | G23: 0
E24: Asistencias
D25: =coberturasyClausulas!$E$11 -> Envío y pago de Cerrajero por emergencia las 24H | F25: =coberturasyClausulas!$J$11 -> Hasta US$ 300 por evento, Máximo de 3 eventos | G25: =+IF(Cotizador!$H$37="X",INMUEBLE!$L$19,INMUEBLE!$K$19) -> 0
D26: =coberturasyClausulas!$E$12 -> Envío y pago de Gasfitero por emergencia las 24H | F26: =coberturasyClausulas!$J$12 -> Hasta US$ 300 por evento, Máximo de 3 eventos
D27: =coberturasyClausulas!$E$13 -> Envío y pago de Electricista por emergencia las 24H | F27: =coberturasyClausulas!$J$13 -> Hasta US$ 300 por evento, Máximo de 3 eventos
D28: =coberturasyClausulas!$E$14 -> Envío y pago de Vidriero por emergencia las 24H | F28: =coberturasyClausulas!$J$14 -> Hasta US$ 300 por evento, Máximo de 3 eventos
D29: =coberturasyClausulas!$E$15 -> Limpieza del inmueble asegurado a consecuencia de un siniestro | F29: =coberturasyClausulas!$J$15 -> Hasta US$ 500 por evento, Máximo de 3 eventos
D30: =coberturasyClausulas!$E$16 -> Servicio de Lavado de estores, roller, alfombras | F30: =coberturasyClausulas!$J$16 -> Hasta US$ 80 por evento, máximo de 1 evento, cubriendo la limpieza de una pieza.
D31: =coberturasyClausulas!$E$17 -> Servicio de Lavado de colchón | F31: =coberturasyClausulas!$J$18 -> Hasta US$ 80 por evento, máximo de 1 evento, cubriendo la limpieza de una pieza.
D32: =coberturasyClausulas!$E18 -> Masajes relajantes a domicilio durante 1 hora | F32: =coberturasyClausulas!$J18 -> Hasta US$ 80 por evento, máximo de 1 evento, cubriendo la limpieza de una pieza.
D33: =coberturasyClausulas!$E19 -> Mozo a domicilio | F33: =coberturasyClausulas!$J19 -> Hasta máximo de 3 eventos al año, con servicio una vez al mes.
D34: =coberturasyClausulas!$E20 -> Mantenimiento Preventivo de Línea Blanca | F34: =coberturasyClausulas!$J20 -> Hasta US$ 75 por evento, máximo de 3 eventos, cubriendo la revisión de un equipo.
D35: =coberturasyClausulas!$E21 -> Orientación telefónica veterinaria para perros las 24H | F35: =coberturasyClausulas!$J21 -> Sin límite
D36: =coberturasyClausulas!$E22 -> Hospedaje de perros | F36: =coberturasyClausulas!$J22 -> Hasta máximo de 3 eventos. Se considera 1 día de hospedaje por evento.
D37: Deducibles: Aplicables por evento/pérdida, en caso de discrepancia prevalece el mayor
B38: =IF($B$14=0,"",$B$14) ->  | D38: Terremoto / Maremoto | F38: =coberturasyClausulas!$J$26 -> Hasta el 1% del límite asegurado, mínimo US$ 200
B39: =IF($B$14=0,"",$B$14) ->  | D39: Otros Riesgos de la Naturaleza (entre ellos lluvia, inundación, otros) | F39: =coberturasyClausulas!$J$27 -> Hasta 10% del monto indemnizable, mínimo US$ 200
B40: X | D40: Daños por agua | F40: =coberturasyClausulas!$J$28 -> Hasta 10% del monto indemnizable, mínimo US$ 200
B41: X | D41: Riesgos políticos y sociales | F41: =coberturasyClausulas!$J$29 -> Hasta 10% del monto indemnizable, mínimo US$ 200
B42: =IF($B$16=0,"",$B$16) ->  | D42: Responsabilidad civil frente a terceros | F42: =coberturasyClausulas!$J$30 -> Hasta 10% del monto indemnizable, mínimo US$ 200
B43: =IF($B$18=0,"",$B$18) ->  | D43: Rotura accidental de vidrio y/o cristales | F43: =coberturasyClausulas!$J$31 -> Hasta 10% del monto indemnizable, mínimo US$ 200
B44: =IF($B$19=0,"",$B$19) ->  | D44: Robo o intento de robo de instalaciones fijas | F44: =coberturasyClausulas!$J$32 -> Hasta 10% del monto indemnizable, mínimo US$ 200
B45: =IF($B$24=0,"",$B$24) ->  | D45: Demás coberturas | F45: Sin deducible

Sheet VALOR TOTAL BIENES (hidden)
D1: VALOR TOTAL BIENES | F1: Ir a Cotizador
E2: INGRESE LA SUMA ASEGURADA | J2: total
D3: Suma Asegurada de Bienes | F3: Prima comercial | G3: =IFERROR(BIENES!$P$7,0) -> 51.5 | J3: =SUM(#REF!) -> 
F4: Igv | G4: =IFERROR(BIENES!$P$8,0) -> 9.27
F5: Prima total | G5: =IFERROR(BIENES!$P$9,0) -> 60.77
D10: COBERTURAS (solo BIENES) | F10: Límites asegurados por vigencia | G10: Prima Comercial
D11: Cobertura principal
B12: X | D12: Incendio y/o rayo, explosión, incendio en aparatos eléctricos. Daños por agua, daños por humo, impacto de vehículos y/o aeronaves o daños por riesgos políticos y sociales | F12: =$E$3 -> 0 | G12: =+IF(Cotizador!$H$37="X",BIENES!$L$13,BIENES!$K$13) -> 51.5
D13: Coberturas adicionales
D14: Robo y/o daños por intento de robo (dentro y fuera de la vivienda a nivel nacional) | F14: =$F$12 -> 0 | G14: =+IF(Cotizador!$H$37="X",BIENES!$L$32,BIENES!$K$32) -> 0
D15: Robo y/o daños por intento de robo de joyas, platería, relojes, obras de arte, cámaras fotográficas o de video, laptops y bicicletas dentro de la vivienda o que estén siendo portados fuera de la vivienda. | F15: USD 10,000, sublímite de la cobertura de Robo | G15: =+IF(Cotizador!$H$37="X",BIENES!$L$33,BIENES!$K$33) -> 0
D16: Terremoto, temblor, maremoto, Inundaciones y riesgos de la naturaleza | F16: =$F$14 -> 0 | G16: =+IF(Cotizador!$H$37="X",BIENES!$L$14,BIENES!$K$14) -> 0
F17: Suma asegurada que forma parte de la cobertura principal
D18: Hurto | F18: =coberturasyClausulas!$J$37 -> Hasta US$ 3,000 , sublímite de la cobertura de Robo | G18: =+IF(Cotizador!$H$37="X",BIENES!$L$34,BIENES!$K$34) -> 0
D19: Deshonestidad de trabajadores del hogar | F19: =coberturasyClausulas!$J$38 -> Hasta US$ 5,000 por evento, máximo 3 eventos por vigencia de la póliza, sublímite de la cobertura de Robo | G19: =+IF(Cotizador!$H$37="X",BIENES!$L$35,BIENES!$K$35) -> 0
B20: X | D20: Gastos extraordinarios: remoción de escombros, honorarios profesionales y construcción de documentos y modelos | F20: Hasta el 20% de la suma asegurada de bienes, suma asegurada que forma parte de la cobertura principal | G20: 0
E21: Asistencias
D22: =coberturasyClausulas!$E$39 -> Envío y pago de Cerrajero por emergencia | F22: =coberturasyClausulas!$J$39 -> Hasta US$ 300 por evento, Máximo de 3 eventos | G22: =+IF(Cotizador!H37="X",BIENES!$L$15,BIENES!$K$15) -> 0
D23: =coberturasyClausulas!$E$40 -> Envío y pago de Gasfitero por emergencia | F23: =coberturasyClausulas!$J$40 -> Hasta US$ 300 por evento, Máximo de 3 eventos
D24: =coberturasyClausulas!$E$41 -> Envío y pago de Electricista por emergencia | F24: =coberturasyClausulas!$J$41 -> Hasta US$ 300 por evento, Máximo de 3 eventos
D25: =coberturasyClausulas!$E$42 -> Envío y pago de Vidriero por emergencia | F25: =coberturasyClausulas!$J$42 -> Hasta US$ 300 por evento, Máximo de 3 eventos
D26: =coberturasyClausulas!$E$43 -> Limpieza del inmueble asegurado a consecuencia de un siniestro | F26: =coberturasyClausulas!$J$43 -> Hasta US$ 500 por evento, Máximo de 3 eventos
D27: =coberturasyClausulas!$E$44 -> Servicio de Lavado de estores, roller, alfombras | F27: =coberturasyClausulas!$J$44 -> Hasta US$ 80 por evento, máximo de 1 evento, cubriendo la limpieza de una pieza.
D28: =coberturasyClausulas!$E$45 -> Servicio de Lavado de colchón | F28: =coberturasyClausulas!$J$45 -> Hasta US$ 80 por evento, máximo de 1 evento, cubriendo la limpieza de una pieza.
D29: =coberturasyClausulas!$E46 -> Masajes relajantes a domicilio durante 1 hora | F29: =coberturasyClausulas!$J$46 -> Hasta US$ 80 por evento, máximo de 1 evento, cubriendo la limpieza de una pieza.
D30: =coberturasyClausulas!$E47 -> Mozo a domicilio | F30: =coberturasyClausulas!$J47 -> Hasta máximo de 3 eventos al año, con servicio una vez al mes.
D31: =coberturasyClausulas!$E48 -> Mantenimiento Preventivo de Línea Blanca | F31: =coberturasyClausulas!$J48 -> Hasta US$ 75 por evento, máximo de 3 eventos, cubriendo la revisión de un equipo.
D32: =coberturasyClausulas!$E49 -> Orientación telefónica veterinaria para perros las 24H | F32: =coberturasyClausulas!$J49 -> Sin límite
D33: =coberturasyClausulas!$E50 -> Hospedaje de perros | F33: =coberturasyClausulas!$J50 -> Hasta máximo de 3 eventos. Se considera 1 día de hospedaje por evento.
D34: Deducibles: Aplicables por evento/pérdida, en caso de discrepancia prevalece el mayor
B35: =IF($B$14=0,"",$B$14) ->  | D35: Robo y/o daños por intento de robo | F35: =coberturasyClausulas!$J$54 -> Hasta 10% del monto indemnizable, mínimo US$ 200
B36: =IF($B$18=0,"",$B$18) ->  | D36: Hurto | F36: =coberturasyClausulas!$J$55 -> Hasta 10% del monto indemnizable, mínimo US$ 200
B37: =IF($B$19=0,"",$B$19) ->  | D37: Deshonestidad de trabajadores del hogar | F37: =coberturasyClausulas!$J$56 -> Hasta 10% del monto indemnizable, mínimo US$ 200
B38: =IF($B$16=0,"",$B$16) ->  | D38: Terremoto / Maremoto | F38: =coberturasyClausulas!$J$57 -> Hasta el 1% del límite asegurado, mínimo US$ 200
B39: =IF($B$16=0,"",$B$16) ->  | D39: Otros Riesgos de la Naturaleza (entre ellos lluvia, inundación, otros) | F39: =coberturasyClausulas!$J$58 -> Hasta 10% del monto indemnizable, mínimo US$ 200
B40: X | D40: Daños por agua | F40: =coberturasyClausulas!$J$59 -> Hasta 10% del monto indemnizable, mínimo US$ 200
B41: X | D41: Riesgos políticos y sociales | F41: =coberturasyClausulas!$J$60 -> Hasta 10% del monto indemnizable, mínimo US$ 200
B42: =IF($B$21=0,"",$B$21) ->  | D42: Demás coberturas | F42: Sin deducible

Sheet configMatConstruccion (hidden)
J1: yearMinimo | N1: COD MATERIAL | Q1: 10 | R1: 32 | S1: 4 | T1: 4 | X1: 10 | Y1: 10 | Z1: 1 | AA1: 1
J2: =+YEAR(TODAY())-50 -> 1975 | Q2: PISOS | R2: PISOS | S2: PISOS | T2: PISOS | X2: SOTANOS | Y2: SOTANOS | Z2: SOTANOS | AA2: SOTANOS
N3: 3.0CA | Q3: 3.0CA | R3: 4.0CP | S3: 8.0M2R | T3: 9.0M2F | X3: 3.0CA | Y3: 4.0CP | Z3: 8.0M2R | AA3: 9.0M2F
N4: 4.0CP | Q4: 1 | R4: 1 | S4: 1 | T4: 1 | X4: 0 | Y4: 0 | Z4: 0 | AA4: 0
N5: 8.0M2R | Q5: =Q4+1 -> 2 | R5: =R4+1 -> 2 | S5: =S4+1 -> 2 | T5: =T4+1 -> 2 | X5: =X4+1 -> 1 | Y5: =Y4+1 -> 1 | Z5: =Z4+1 -> 1 | AA5: =AA4+1 -> 1
N6: 9.0M2F | Q6: =Q5+1 -> 3 | R6: 3 | S6: 3 | T6: 3 | X6: =X5+1 -> 2 | Y6: 2
Q7: 4 | R7: 4 | S7: 4 | T7: 4 | X7: 3 | Y7: 3
Q8: 5 | R8: 5 | X8: 4 | Y8: 4
Q9: 6 | R9: 6 | X9: 5 | Y9: 5
Q10: 7 | R10: 7 | X10: 6 | Y10: 6
Q11: 8 | R11: 8 | X11: 7 | Y11: 7
Q12: 9 | R12: 9 | X12: 8 | Y12: 8
Q13: 10 | R13: 10 | X13: 9 | Y13: 9
R14: 11 | X14: 10 | Y14: 10
R15: 12
R16: 13
R17: 14
R18: 15
R19: 16
R20: 17
R21: 18
R22: =R21+1 -> 19
R23: 20
R24: 21
R25: 22
R26: 23
R27: 24
R28: 25
R29: 26
R30: 27
R31: 28
R32: 29
R33: 30
R34: 31
R35: 32

Sheet VALOR TOTAL INMUEBLE +BIENES (hidden)
D1: VALOR TOTAL INMUEBLE +BIENES | G1: Ir a Cotizador
E2: INGRESE LAS SUMAS ASEGURADAS | J2: total
D3: Suma Asegurada de Inmueble | G3: Prima comercial | H3: =IFERROR('INMUEBLE Y BIENES'!$P$7,0) -> 629.8305
D4: Suma Asegurada de Bienes | G4: Igv | H4: =IFERROR('INMUEBLE Y BIENES'!$P$8,0) -> 113.36949
G5: Prima total | H5: =IFERROR('INMUEBLE Y BIENES'!$P$9,0) -> 743.19999
D10: COBERTURAS (INMUEBLE Y BIENES) | F10: Límites asegurados por vigencia, hasta | G10: Límites asegurados por vigencia, hasta | H10: Prima Comercial
D11: Cobertura principal | F11: INMUEBLE | G11: BIENES
B12: X | D12: Incendio y/o rayo, explosión, incendio en aparatos eléctricos. Daños por agua, daños por humo, impacto de vehículos y/o aeronaves o daños por riesgos políticos y sociales | F12: =$E$3 -> 0 | G12: =$E$4 -> 0 | H12: =+IF(Cotizador!$H$37="X",'INMUEBLE Y BIENES'!$L$50,'INMUEBLE Y BIENES'!$K$50) -> 114.8605
D13: Coberturas adicionales
B14: X | D14: Terremoto, temblor, maremoto, Inundaciones y riesgos de la naturaleza | F14: =$E$3 -> 0 | G14: =$E$4 -> 0 | H14: =+IF(Cotizador!$H$37="X",'INMUEBLE Y BIENES'!$L$51,'INMUEBLE Y BIENES'!$K$51) -> 447.79
F15: Suma asegurada que forma parte de la cobertura principal | G15: Suma asegurada que forma parte de la cobertura principal
B16: X | D16: Responsabilidad civil frente a terceros | F16: =$E$3 -> 0 | G16: - | H16: =+IF(Cotizador!$H$37="X",'INMUEBLE Y BIENES'!$L$52,'INMUEBLE Y BIENES'!$K$52) -> 2.03
F17: =coberturasyClausulas!$J$64 -> máximo US$ 200,000
B18: X | D18: Rotura accidental de vidrio y/o cristales | F18: =coberturasyClausulas!$J$65 -> US$ 3,000 | H18: =+IF(Cotizador!$H$37="X",'INMUEBLE Y BIENES'!$L$53,'INMUEBLE Y BIENES'!$K$53) -> 4.46
F19: Suma asegurada que forma parte de la cobertura principal
D20: Robo o intento de robo de instalaciones fijas | F20: =coberturasyClausulas!$J$66 -> 20% de la suma asegurada de inmueble, máximo US$ 5,000 , suma asegurada que forma parte de la cobertura principal | H20: =+IF(Cotizador!$H$37="X",'INMUEBLE Y BIENES'!$L$54,'INMUEBLE Y BIENES'!$K$54) -> 0.36
D21: Robo y/o daños por intento de robo (dentro y fuera de la vivienda a nivel nacional) | F21: - | G21: =$E$4 -> 0 | H21: =+IF(Cotizador!$H$37="X",'INMUEBLE Y BIENES'!$L$70,'INMUEBLE Y BIENES'!$K$70) -> 45.25
D22: Robo y/o daños por intento de robo de joyas, platería, relojes, obras de arte, cámaras fotográficas o de video, laptops y bicicletas dentro de la vivienda o que estén siendo portados fuera de la vivienda. | F22: - | G22: USD 10,000, sublímite de la cobertura de Robo | H22: =+IF(Cotizador!$H$37="X",'INMUEBLE Y BIENES'!$L$71,'INMUEBLE Y BIENES'!$K$71) -> 4.37
D23: Hurto | F23: - | G23: =coberturasyClausulas!$J$68 -> US$ 3,000 , sublímite de la cobertura de Robo | H23: =+IF(Cotizador!$H$37="X",'INMUEBLE Y BIENES'!$L$72,'INMUEBLE Y BIENES'!$K$72) -> 4.96
D24: Deshonestidad de trabajadores del hogar | F24: - | G24: =coberturasyClausulas!$J$69 -> US$ 5,000 por evento, máximo 3 eventos por vigencia de la póliza, sublímite de la cobertura de Robo | H24: =+IF(Cotizador!$H$37="X",'INMUEBLE Y BIENES'!$L$73,'INMUEBLE Y BIENES'!$K$73) -> 0
D25: Reembolso de gastos médicos por accidentes de trabajadores del hogar, ocurridos dentro del inmueble | F25: =coberturasyClausulas!$J$70 -> US$ 5,000 por evento, máximo 3 eventos por vigencia de la póliza | G25: Hasta US$ 5,000 / S/ 15,000 por evento, máximo 3 eventos por vigencia de la póliza | H25: =+IF(Cotizador!$H$37="X",'INMUEBLE Y BIENES'!$L$55,'INMUEBLE Y BIENES'!$K$55) -> 0
B26: X | D26: Gastos de arrendamiento de vivienda temporal a reembolso | F26: =coberturasyClausulas!$J$71 -> US$ 2,000 mensuales, máximo 6 meses por vigencia de la póliza, suma asegurada que forma parte de la cobertura principal | G26: Hasta US$ 2,000 / S/ 6,000 mensuales, máximo 6 meses por vigencia de la póliza, suma asegurada que forma parte de la cobertura principal | H26: =+IF(Cotizador!$H$37="X",'INMUEBLE Y BIENES'!$L$56,'INMUEBLE Y BIENES'!$K$56) -> 0
D27: Alquiler no percibido por inmueble inhabitable temporalmente (aplica solo para el arrendador) | F27: =coberturasyClausulas!$J$72 -> US$ 2,000 mensuales, máximo 6 meses por vigencia de la póliza, suma asegurada que forma parte de la cobertura principal | G27: Hasta US$ 2,000 / S/ 6,000 mensuales, máximo 6 meses por vigencia de la póliza, suma asegurada que forma parte de la cobertura principal | H27: =+IF(Cotizador!$H$37="X",'INMUEBLE Y BIENES'!$L$57,'INMUEBLE Y BIENES'!$K$57) -> 0
B28: X | D28: Gastos extraordinarios: remoción de escombros, honorarios profesionales y construcción de documentos y modelos | F28: 20% de la suma asegurada de inmueble y/o bienes, suma asegurada que forma parte de la cobertura principal | G28: Hasta el 20% de la suma asegurada de inmueble y/o bienes, suma asegurada que forma parte de la cobertura principal | H28: 0
B29: X | E29: Asistencias
D30: =coberturasyClausulas!$E$73 -> Envío y pago de Cerrajero por emergencia | F30: =coberturasyClausulas!$J$73 -> Hasta US$ 300 por evento, Máximo de 3 eventos | H30: =+IF(Cotizador!$H$37="X",'INMUEBLE Y BIENES'!$L$58,'INMUEBLE Y BIENES'!$K$58) -> 5.75
D31: =coberturasyClausulas!$E$74 -> Envío y pago de Gasfitero por emergencia | F31: =coberturasyClausulas!$J$74 -> Hasta US$ 300 por evento, Máximo de 3 eventos
D32: =coberturasyClausulas!$E$75 -> Envío y pago de Electricista por emergencia | F32: =coberturasyClausulas!$J$75 -> Hasta US$ 300 por evento, Máximo de 3 eventos
D33: =coberturasyClausulas!$E$76 -> Envío y pago de Vidriero por emergencia | F33: =coberturasyClausulas!$J$76 -> Hasta US$ 300 por evento, Máximo de 3 eventos
D34: =coberturasyClausulas!$E$77 -> Limpieza del inmueble asegurado a consecuencia de un siniestro | F34: =coberturasyClausulas!$J$77 -> Hasta US$ 500 por evento, Máximo de 3 eventos
D35: =coberturasyClausulas!$E$78 -> Servicio de Lavado de estores, roller, alfombras | F35: =coberturasyClausulas!$J$78 -> Hasta US$ 80 por evento, máximo de 1 evento, cubriendo la limpieza de una pieza.
D36: =coberturasyClausulas!$E$79 -> Servicio de Lavado de colchón | F36: =coberturasyClausulas!$J$79 -> Hasta US$ 80 por evento, máximo de 1 evento, cubriendo la limpieza de una pieza.
D37: =coberturasyClausulas!$E80 -> Masajes relajantes a domicilio durante 1 hora | F37: =coberturasyClausulas!$J80 -> Hasta US$ 80 por evento, máximo de 1 evento, cubriendo la limpieza de una pieza.
D38: =coberturasyClausulas!$E81 -> Mozo a domicilio | F38: =coberturasyClausulas!$J81 -> Hasta máximo de 3 eventos al año, con servicio una vez al mes.
D39: =coberturasyClausulas!$E82 -> Mantenimiento Preventivo de Línea Blanca | F39: =coberturasyClausulas!$J82 -> Hasta US$ 75 por evento, máximo de 3 eventos, cubriendo la revisión de un equipo.
D40: =coberturasyClausulas!$E83 -> Orientación telefónica veterinaria para perros las 24H | F40: =coberturasyClausulas!$J83 -> Sin límite
D41: =coberturasyClausulas!$E84 -> Hospedaje de perros | F41: =coberturasyClausulas!$J84 -> Hasta máximo de 3 eventos. Se considera 1 día de hospedaje por evento.
D42: Deducibles: Aplicables por evento/pérdida, en caso de discrepancia prevalece el mayor
B43: =IF($B$14=0,"",$B$14) -> X | D43: Terremoto / Maremoto | F43: =coberturasyClausulas!$J$88 -> Hasta el 1% del límite asegurado, mínimo US$ 200
B44: =IF($B$14=0,"",$B$14) -> X | D44: Otros Riesgos de la Naturaleza (entre ellos lluvia, inundación, otros) | F44: =coberturasyClausulas!$J$89 -> Hasta 10% del monto indemnizable, mínimo US$ 200
B45: X | D45: Daños por agua | F45: =coberturasyClausulas!$J$90 -> Hasta 10% del monto indemnizable, mínimo US$ 200
B46: X | D46: Riesgos políticos y sociales | F46: =coberturasyClausulas!$J$91 -> Hasta 10% del monto indemnizable, mínimo US$ 200
B47: =IF($B$16=0,"",$B$16) -> X | D47: Responsabilidad civil frente a terceros | F47: =coberturasyClausulas!$J$92 -> Hasta 10% del monto indemnizable, mínimo US$ 200
B48: =IF($B$18=0,"",$B$18) -> X | D48: Rotura accidental de vidrio y/o cristales | F48: =coberturasyClausulas!$J$93 -> Hasta 10% del monto indemnizable, mínimo US$ 200
B49: =IF($B$20=0,"",$B$20) ->  | D49: Robo o intento de robo de instalaciones fijas | F49: =coberturasyClausulas!$J$94 -> Hasta 10% del monto indemnizable, mínimo US$ 200
B50: =IF($B$21=0,"",$B$21) ->  | D50: Robo y/o daños por intento de robo | F50: =coberturasyClausulas!$J$95 -> Hasta 10% del monto indemnizable, mínimo US$ 200
B51: =IF($B$23=0,"",$B$23) ->  | D51: Hurto | F51: =coberturasyClausulas!$J$96 -> Hasta 10% del monto indemnizable, mínimo US$ 200
B52: =IF($B$24=0,"",$B$24) ->  | D52: Deshonestidad de trabajadores del hogar | F52: =coberturasyClausulas!$J$97 -> Hasta 10% del monto indemnizable, mínimo US$ 200
B53: =IF($B$29=0,"",$B$29) -> X | D53: Demás coberturas | F53: Sin deducible

Sheet PRIMER RIESGO INMUEBLE (hidden)
D1: PRIMER RIESGO INMUEBLE | F1: Ir a Cotizador
E2: INGRESE LA SUMA ASEGURADA y MARQUE CON "X" LAS COBERTURAS | J2: total
D3: Suma asegurada | F3: Prima comercial | G3: =IFERROR(INMUEBLE!$P$7,0) -> 51.5 | J3: =SUM(#REF!) -> 
F4: Igv | G4: =IFERROR(INMUEBLE!$P$8,0) -> 9.27
F5: Prima total | G5: =IFERROR(INMUEBLE!$P$9,0) -> 60.77
D10: COBERTURAS (solo INMUEBLE) | F10: Límites asegurados por vigencia | G10: Prima Comercial
D11: Cobertura principal
B12: X | D12: Incendio y/o rayo, explosión, incendio en aparatos eléctricos. Daños por agua, daños por humo, impacto de vehículos y/o aeronaves o daños por riesgos políticos y sociales | F12: =$E$3 -> 0 | G12: =+IF(Cotizador!$H$37="X",INMUEBLE!$L$11,INMUEBLE!$K$11) -> 51.5
D13: Coberturas adicionales
D14: Terremoto, temblor, maremoto, Inundaciones y riesgos de la naturaleza | F14: =$E$3 -> 0 | G14: =+IF(Cotizador!$H$37="X",INMUEBLE!$L$12,INMUEBLE!$K$12) -> 0
F15: Suma asegurada que forma parte de la cobertura principal
D16: Responsabilidad civil frente a terceros | F16: =$E$3 -> 0 | G16: =+IF(Cotizador!$H$37="X",INMUEBLE!$L$13,INMUEBLE!$K$13) -> 0
F17: =coberturasyClausulas!$J$3 -> máximo US$ 200,000
D18: Rotura accidental de vidrio y/o cristales | F18: =coberturasyClausulas!$J$4 -> Hasta US$ 3,000 ,suma asegurada que forma parte de la cobertura principal | G18: =+IF(Cotizador!$H$37="X",INMUEBLE!$L$14,INMUEBLE!$K$14) -> 0
D19: Robo o intento de robo de instalaciones fijas | F19: =coberturasyClausulas!$J$5 -> Hasta el 20% de la suma asegurada de inmueble, máximo US$ 5,000 ,suma asegurada que forma parte de la cobertura principal | G19: =+IF(Cotizador!$H$37="X",INMUEBLE!$L$15,INMUEBLE!$K$15) -> 0
D20: Reembolso de gastos médicos por accidentes de trabajadores del hogar, ocurridos dentro del inmueble | F20: =coberturasyClausulas!$J$6 -> Hasta US$ 5,000 por evento, máximo 3 eventos por vigencia de la póliza | G20: =+IF(Cotizador!$H$37="X",INMUEBLE!$L$16,INMUEBLE!$K$16) -> 0
D21: Gastos de arrendamiento de vivienda temporal a reembolso | F21: =coberturasyClausulas!$J$7 -> Hasta US$ 2,000 mensuales, máximo 6 meses por vigencia de la póliza, suma asegurada que forma parte de la cobertura principal | G21: =+IF(Cotizador!$H$37="X",INMUEBLE!$L$17,INMUEBLE!$K$17) -> 0
D22: Alquiler no percibido por inmueble inhabitable temporalmente | F22: =coberturasyClausulas!$J$8 -> Hasta US$ 2,000 mensuales, máximo 6 meses por vigencia de la póliza, suma asegurada que forma parte de la cobertura principal | G22: =+IF(Cotizador!$H$37="X",INMUEBLE!$L$18,INMUEBLE!$K$18) -> 0
B23: X | D23: Gastos extraordinarios: remoción de escombros, honorarios profesionales y construcción de documentos y modelos | F23: Hasta el 20% de la suma asegurada de Inmueble, suma asegurada que forma parte de la cobertura principal | G23: 0
E24: Asistencias
D25: =coberturasyClausulas!$E$11 -> Envío y pago de Cerrajero por emergencia las 24H | F25: =coberturasyClausulas!$J$11 -> Hasta US$ 300 por evento, Máximo de 3 eventos | G25: =+IF(Cotizador!$H$37="X",INMUEBLE!$L$19,INMUEBLE!$K$19) -> 0
D26: =coberturasyClausulas!$E$12 -> Envío y pago de Gasfitero por emergencia las 24H | F26: =coberturasyClausulas!$J$12 -> Hasta US$ 300 por evento, Máximo de 3 eventos
D27: =coberturasyClausulas!$E$13 -> Envío y pago de Electricista por emergencia las 24H | F27: =coberturasyClausulas!$J$13 -> Hasta US$ 300 por evento, Máximo de 3 eventos
D28: =coberturasyClausulas!$E$14 -> Envío y pago de Vidriero por emergencia las 24H | F28: =coberturasyClausulas!$J$14 -> Hasta US$ 300 por evento, Máximo de 3 eventos
D29: =coberturasyClausulas!$E$15 -> Limpieza del inmueble asegurado a consecuencia de un siniestro | F29: =coberturasyClausulas!$J$15 -> Hasta US$ 500 por evento, Máximo de 3 eventos
D30: =coberturasyClausulas!$E$16 -> Servicio de Lavado de estores, roller, alfombras | F30: =coberturasyClausulas!$J$16 -> Hasta US$ 80 por evento, máximo de 1 evento, cubriendo la limpieza de una pieza.
D31: =coberturasyClausulas!$E$17 -> Servicio de Lavado de colchón | F31: =coberturasyClausulas!$J$17 -> Hasta US$ 80 por evento, máximo de 1 evento, cubriendo la limpieza de una pieza.
D32: =coberturasyClausulas!$E18 -> Masajes relajantes a domicilio durante 1 hora | F32: =coberturasyClausulas!$J18 -> Hasta US$ 80 por evento, máximo de 1 evento, cubriendo la limpieza de una pieza.
D33: =coberturasyClausulas!$E19 -> Mozo a domicilio | F33: =coberturasyClausulas!$J19 -> Hasta máximo de 3 eventos al año, con servicio una vez al mes.
D34: =coberturasyClausulas!$E20 -> Mantenimiento Preventivo de Línea Blanca | F34: =coberturasyClausulas!$J20 -> Hasta US$ 75 por evento, máximo de 3 eventos, cubriendo la revisión de un equipo.
D35: =coberturasyClausulas!$E21 -> Orientación telefónica veterinaria para perros las 24H | F35: =coberturasyClausulas!$J21 -> Sin límite
D36: =coberturasyClausulas!$E22 -> Hospedaje de perros | F36: =coberturasyClausulas!$J22 -> Hasta máximo de 3 eventos. Se considera 1 día de hospedaje por evento.
D37: Deducibles: Aplicables por evento/pérdida, en caso de discrepancia prevalece el mayor
B38: =IF($B$14=0,"",$B$14) ->  | D38: Terremoto / Maremoto | F38: =coberturasyClausulas!$J$26 -> Hasta el 1% del límite asegurado, mínimo US$ 200
B39: =IF($B$14=0,"",$B$14) ->  | D39: Otros Riesgos de la Naturaleza (entre ellos lluvia, inundación, otros) | F39: =coberturasyClausulas!$J$27 -> Hasta 10% del monto indemnizable, mínimo US$ 200
B40: X | D40: Daños por agua | F40: =coberturasyClausulas!$J$28 -> Hasta 10% del monto indemnizable, mínimo US$ 200
B41: X | D41: Riesgos políticos y sociales | F41: =coberturasyClausulas!$J$29 -> Hasta 10% del monto indemnizable, mínimo US$ 200
B42: =IF($B$16=0,"",$B$16) ->  | D42: Responsabilidad civil frente a terceros | F42: =coberturasyClausulas!$J$30 -> Hasta 10% del monto indemnizable, mínimo US$ 200
B43: =IF($B$18=0,"",$B$18) ->  | D43: Rotura accidental de vidrio y/o cristales | F43: =coberturasyClausulas!$J$31 -> Hasta 10% del monto indemnizable, mínimo US$ 200
B44: =IF($B$19=0,"",$B$19) ->  | D44: Robo o intento de robo de instalaciones fijas | F44: =coberturasyClausulas!$J$32 -> Hasta 10% del monto indemnizable, mínimo US$ 200
B45: =IF($B$24=0,"",$B$24) ->  | D45: Demás coberturas | F45: Sin deducible

Sheet PRIMER RIESGO BIENES (hidden)
D1: PRIMER RIESGO BIENES | F1: Ir a Cotizador
E2: INGRESE LA SUMA ASEGURADA | J2: total
D3: Suma Asegurada de Bienes | F3: Prima comercial | G3: =IFERROR(BIENES!$P$7,0) -> 51.5 | J3: =SUM(#REF!) -> 
F4: Igv | G4: =IFERROR(BIENES!$P$8,0) -> 9.27
F5: Prima total | G5: =IFERROR(BIENES!$P$9,0) -> 60.77
D10: COBERTURAS (solo BIENES) | F10: Límites asegurados por vigencia | G10: Prima Comercial
D11: Cobertura principal
B12: X | D12: Incendio y/o rayo, explosión, incendio en aparatos eléctricos. Daños por agua, daños por humo, impacto de vehículos y/o aeronaves o daños por riesgos políticos y sociales | F12: =$E$3 -> 0 | G12: =+IF(Cotizador!$H$37="X",BIENES!$L$13,BIENES!$K$13) -> 51.5
D13: Coberturas adicionales
D14: Robo y/o daños por intento de robo (dentro y fuera de la vivienda a nivel nacional) | F14: =$F$12 -> 0 | G14: =+IF(Cotizador!$H$37="X",BIENES!$L$32,BIENES!$K$32) -> 0
D15: Robo y/o daños por intento de robo de joyas, platería, relojes, obras de arte, cámaras fotográficas o de video, laptops y bicicletas dentro de la vivienda o que estén siendo portados fuera de la vivienda. | F15: USD 10,000, sublímite de la cobertura de Robo | G15: =+IF(Cotizador!$H$37="X",BIENES!$L$33,BIENES!$K$33) -> 0
D16: Terremoto, temblor, maremoto, Inundaciones y riesgos de la naturaleza | F16: =$F$14 -> 0 | G16: =+IF(Cotizador!$H$37="X",BIENES!$L$14,BIENES!$K$14) -> 0
F17: Suma asegurada que forma parte de la cobertura principal
D18: Hurto | F18: =coberturasyClausulas!$J$37 -> Hasta US$ 3,000 , sublímite de la cobertura de Robo | G18: =+IF(Cotizador!$H$37="X",BIENES!$L$34,BIENES!$K$34) -> 0
D19: Deshonestidad de trabajadores del hogar | F19: =coberturasyClausulas!$J$38 -> Hasta US$ 5,000 por evento, máximo 3 eventos por vigencia de la póliza, sublímite de la cobertura de Robo | G19: =+IF(Cotizador!$H$37="X",BIENES!$L$35,BIENES!$K$35) -> 0
B20: X | D20: Gastos extraordinarios: remoción de escombros, honorarios profesionales y construcción de documentos y modelos | F20: Hasta el 20% de la suma asegurada de bienes, suma asegurada que forma parte de la cobertura principal | G20: 0
E21: Asistencias
D22: =coberturasyClausulas!$E$39 -> Envío y pago de Cerrajero por emergencia | F22: =coberturasyClausulas!$J$39 -> Hasta US$ 300 por evento, Máximo de 3 eventos | G22: =+IF(Cotizador!H37="X",BIENES!$L$15,BIENES!$K$15) -> 0
D23: =coberturasyClausulas!$E$40 -> Envío y pago de Gasfitero por emergencia | F23: =coberturasyClausulas!$J$40 -> Hasta US$ 300 por evento, Máximo de 3 eventos
D24: =coberturasyClausulas!$E$41 -> Envío y pago de Electricista por emergencia | F24: =coberturasyClausulas!$J$41 -> Hasta US$ 300 por evento, Máximo de 3 eventos
D25: =coberturasyClausulas!$E$42 -> Envío y pago de Vidriero por emergencia | F25: =coberturasyClausulas!$J$42 -> Hasta US$ 300 por evento, Máximo de 3 eventos
D26: =coberturasyClausulas!$E$43 -> Limpieza del inmueble asegurado a consecuencia de un siniestro | F26: =coberturasyClausulas!$J$43 -> Hasta US$ 500 por evento, Máximo de 3 eventos
D27: =coberturasyClausulas!$E$44 -> Servicio de Lavado de estores, roller, alfombras | F27: =coberturasyClausulas!$J$44 -> Hasta US$ 80 por evento, máximo de 1 evento, cubriendo la limpieza de una pieza.
D28: =coberturasyClausulas!$E$45 -> Servicio de Lavado de colchón | F28: =coberturasyClausulas!$J$45 -> Hasta US$ 80 por evento, máximo de 1 evento, cubriendo la limpieza de una pieza.
D29: =coberturasyClausulas!$E$46 -> Masajes relajantes a domicilio durante 1 hora | F29: =coberturasyClausulas!$J$46 -> Hasta US$ 80 por evento, máximo de 1 evento, cubriendo la limpieza de una pieza.
D30: =coberturasyClausulas!$E$47 -> Mozo a domicilio | F30: =coberturasyClausulas!$J$47 -> Hasta máximo de 3 eventos al año, con servicio una vez al mes.
D31: =coberturasyClausulas!$E$48 -> Mantenimiento Preventivo de Línea Blanca | F31: =coberturasyClausulas!$J$48 -> Hasta US$ 75 por evento, máximo de 3 eventos, cubriendo la revisión de un equipo.
D32: =coberturasyClausulas!$E$49 -> Orientación telefónica veterinaria para perros las 24H | F32: =coberturasyClausulas!$J$49 -> Sin límite
D33: =coberturasyClausulas!$E$50 -> Hospedaje de perros | F33: =coberturasyClausulas!$J$50 -> Hasta máximo de 3 eventos. Se considera 1 día de hospedaje por evento.
D34: Deducibles: Aplicables por evento/pérdida, en caso de discrepancia prevalece el mayor
B35: =IF($B$14=0,"",$B$14) ->  | D35: Robo y/o daños por intento de robo | F35: =coberturasyClausulas!$J$54 -> Hasta 10% del monto indemnizable, mínimo US$ 200
B36: =IF($B$18=0,"",$B$18) ->  | D36: Hurto | F36: =coberturasyClausulas!$J$55 -> Hasta 10% del monto indemnizable, mínimo US$ 200
B37: =IF($B$19=0,"",$B$19) ->  | D37: Deshonestidad de trabajadores del hogar | F37: =coberturasyClausulas!$J$56 -> Hasta 10% del monto indemnizable, mínimo US$ 200
B38: =IF($B$16=0,"",$B$16) ->  | D38: Terremoto / Maremoto | F38: =coberturasyClausulas!$J$57 -> Hasta el 1% del límite asegurado, mínimo US$ 200
B39: =IF($B$16=0,"",$B$16) ->  | D39: Otros Riesgos de la Naturaleza (entre ellos lluvia, inundación, otros) | F39: =coberturasyClausulas!$J$58 -> Hasta 10% del monto indemnizable, mínimo US$ 200
B40: X | D40: Daños por agua | F40: =coberturasyClausulas!$J$59 -> Hasta 10% del monto indemnizable, mínimo US$ 200
B41: X | D41: Riesgos políticos y sociales | F41: =coberturasyClausulas!$J$60 -> Hasta 10% del monto indemnizable, mínimo US$ 200
B42: =IF($B$21=0,"",$B$21) ->  | D42: Demás coberturas | F42: Sin deducible

Sheet PRIMER RIESGO INMUEBLE+BIENES (hidden)
D1: PRIMER RIESGO INMUEBLE +BIENES | G1: Ir a Cotizador
E2: INGRESE LAS SUMAS ASEGURADAS | J2: total
D3: Suma Asegurada de Inmueble | E3: 200000 | H3: =IFERROR('INMUEBLE Y BIENES'!$P$7,0) -> 629.8305 | J3: =SUM(#REF!) -> 
D4: Suma Asegurada de Bienes | E4: 10000 | H4: =IFERROR('INMUEBLE Y BIENES'!$P$8,0) -> 113.36949
H5: =IFERROR('INMUEBLE Y BIENES'!$P$9,0) -> 743.19999
D10: COBERTURAS (INMUEBLE Y BIENES) | F10: Límites asegurados por vigencia, hasta | G10: Límites asegurados por vigencia, hasta | H10: Prima Comercial
D11: Cobertura principal | F11: INMUEBLE | G11: BIENES
B12: X | D12: Incendio y/o rayo, explosión, incendio en aparatos eléctricos. Daños por agua, daños por humo, impacto de vehículos y/o aeronaves o daños por riesgos políticos y sociales | F12: =$E$3 -> 200000 | G12: =$E$4 -> 10000 | H12: =+IF(Cotizador!$H$37="X",'INMUEBLE Y BIENES'!$L$50,'INMUEBLE Y BIENES'!$K$50) -> 114.8605
D13: Coberturas adicionales
B14: X | D14: Terremoto, temblor, maremoto, Inundaciones y riesgos de la naturaleza | F14: =$E$3 -> 200000 | G14: =$E$4 -> 10000 | H14: =+IF(Cotizador!$H$37="X",'INMUEBLE Y BIENES'!$L$51,'INMUEBLE Y BIENES'!$K$51) -> 447.79
F15: Suma asegurada que forma parte de la cobertura principal | G15: Suma asegurada que forma parte de la cobertura principal
B16: X | D16: Responsabilidad civil frente a terceros | F16: =$E$3 -> 200000 | G16: - | H16: =+IF(Cotizador!$H$37="X",'INMUEBLE Y BIENES'!$L$52,'INMUEBLE Y BIENES'!$K$52) -> 2.03
F17: =coberturasyClausulas!$J$64 -> máximo US$ 200,000
B18: X | D18: Rotura accidental de vidrio y/o cristales | F18: =coberturasyClausulas!$J$65 -> US$ 3,000 | H18: =+IF(Cotizador!$H$37="X",'INMUEBLE Y BIENES'!$L$53,'INMUEBLE Y BIENES'!$K$53) -> 4.46
F19: Suma asegurada que forma parte de la cobertura principal
B20: X | D20: Robo o intento de robo de instalaciones fijas | F20: =coberturasyClausulas!$J$66 -> 20% de la suma asegurada de inmueble, máximo US$ 5,000 , suma asegurada que forma parte de la cobertura principal | H20: =+IF(Cotizador!$H$37="X",'INMUEBLE Y BIENES'!$L$54,'INMUEBLE Y BIENES'!$K$54) -> 0.36
B21: X | D21: Robo y/o daños por intento de robo (dentro y fuera de la vivienda a nivel nacional) | F21: - | G21: =$E$4 -> 10000 | H21: =+IF(Cotizador!$H$37="X",'INMUEBLE Y BIENES'!$L$70,'INMUEBLE Y BIENES'!$K$70) -> 45.25
B22: X | D22: Robo y/o daños por intento de robo de joyas, platería, relojes, obras de arte, cámaras fotográficas o de video, laptops y bicicletas dentro de la vivienda o que estén siendo portados fuera de la vivienda. | F22: - | G22: USD 10,000, sublímite de la cobertura de Robo | H22: =+IF(Cotizador!$H$37="X",'INMUEBLE Y BIENES'!$L$71,'INMUEBLE Y BIENES'!$K$71) -> 4.37
B23: X | D23: Hurto | F23: - | G23: =coberturasyClausulas!$J$68 -> US$ 3,000 , sublímite de la cobertura de Robo | H23: =+IF(Cotizador!$H$37="X",'INMUEBLE Y BIENES'!$L$72,'INMUEBLE Y BIENES'!$K$72) -> 4.96
D24: Deshonestidad de trabajadores del hogar | F24: - | G24: =coberturasyClausulas!$J$69 -> US$ 5,000 por evento, máximo 3 eventos por vigencia de la póliza, sublímite de la cobertura de Robo | H24: =+IF(Cotizador!$H$37="X",'INMUEBLE Y BIENES'!$L$73,'INMUEBLE Y BIENES'!$K$73) -> 0
D25: Reembolso de gastos médicos por accidentes de trabajadores del hogar, ocurridos dentro del inmueble | F25: =coberturasyClausulas!$J$70 -> US$ 5,000 por evento, máximo 3 eventos por vigencia de la póliza | G25: Hasta US$ 5,000 / S/ 15,000 por evento, máximo 3 eventos por vigencia de la póliza | H25: =+IF(Cotizador!$H$37="X",'INMUEBLE Y BIENES'!$L$55,'INMUEBLE Y BIENES'!$K$55) -> 0
D26: Gastos de arrendamiento de vivienda temporal a reembolso | F26: =coberturasyClausulas!$J$71 -> US$ 2,000 mensuales, máximo 6 meses por vigencia de la póliza, suma asegurada que forma parte de la cobertura principal | G26: Hasta US$ 2,000 / S/ 6,000 mensuales, máximo 6 meses por vigencia de la póliza, suma asegurada que forma parte de la cobertura principal | H26: =+IF(Cotizador!$H$37="X",'INMUEBLE Y BIENES'!$L$56,'INMUEBLE Y BIENES'!$K$56) -> 0
D27: Alquiler no percibido por inmueble inhabitable temporalmente (aplica solo para el arrendador) | F27: =coberturasyClausulas!$J$72 -> US$ 2,000 mensuales, máximo 6 meses por vigencia de la póliza, suma asegurada que forma parte de la cobertura principal | G27: Hasta US$ 2,000 / S/ 6,000 mensuales, máximo 6 meses por vigencia de la póliza, suma asegurada que forma parte de la cobertura principal | H27: =+IF(Cotizador!$H$37="X",'INMUEBLE Y BIENES'!$L$57,'INMUEBLE Y BIENES'!$K$57) -> 0
B28: X | D28: Gastos extraordinarios: remoción de escombros, honorarios profesionales y construcción de documentos y modelos | F28: 20% de la suma asegurada de inmueble y/o bienes, suma asegurada que forma parte de la cobertura principal | G28: Hasta el 20% de la suma asegurada de inmueble y/o bienes, suma asegurada que forma parte de la cobertura principal | H28: 0
B29: X | E29: Asistencias
D30: =coberturasyClausulas!$E$73 -> Envío y pago de Cerrajero por emergencia | F30: =coberturasyClausulas!$J$73 -> Hasta US$ 300 por evento, Máximo de 3 eventos | H30: =+IF(Cotizador!$H$37="X",'INMUEBLE Y BIENES'!$L$58,'INMUEBLE Y BIENES'!$K$58) -> 5.75
D31: =coberturasyClausulas!$E$74 -> Envío y pago de Gasfitero por emergencia | F31: =coberturasyClausulas!$J$74 -> Hasta US$ 300 por evento, Máximo de 3 eventos
D32: =coberturasyClausulas!$E$75 -> Envío y pago de Electricista por emergencia | F32: =coberturasyClausulas!$J$75 -> Hasta US$ 300 por evento, Máximo de 3 eventos
D33: =coberturasyClausulas!$E$76 -> Envío y pago de Vidriero por emergencia | F33: =coberturasyClausulas!$J$76 -> Hasta US$ 300 por evento, Máximo de 3 eventos
D34: =coberturasyClausulas!$E$77 -> Limpieza del inmueble asegurado a consecuencia de un siniestro | F34: =coberturasyClausulas!$J$77 -> Hasta US$ 500 por evento, Máximo de 3 eventos
D35: =coberturasyClausulas!$E$78 -> Servicio de Lavado de estores, roller, alfombras | F35: =coberturasyClausulas!$J$78 -> Hasta US$ 80 por evento, máximo de 1 evento, cubriendo la limpieza de una pieza.
D36: =coberturasyClausulas!$E$79 -> Servicio de Lavado de colchón | F36: =coberturasyClausulas!$J$79 -> Hasta US$ 80 por evento, máximo de 1 evento, cubriendo la limpieza de una pieza.
D37: =coberturasyClausulas!$E80 -> Masajes relajantes a domicilio durante 1 hora | F37: =coberturasyClausulas!$J80 -> Hasta US$ 80 por evento, máximo de 1 evento, cubriendo la limpieza de una pieza.
D38: =coberturasyClausulas!$E81 -> Mozo a domicilio | F38: =coberturasyClausulas!$J81 -> Hasta máximo de 3 eventos al año, con servicio una vez al mes.
D39: =coberturasyClausulas!$E82 -> Mantenimiento Preventivo de Línea Blanca | F39: =coberturasyClausulas!$J82 -> Hasta US$ 75 por evento, máximo de 3 eventos, cubriendo la revisión de un equipo.
D40: =coberturasyClausulas!$E83 -> Orientación telefónica veterinaria para perros las 24H | F40: =coberturasyClausulas!$J83 -> Sin límite
D41: =coberturasyClausulas!$E84 -> Hospedaje de perros | F41: =coberturasyClausulas!$J84 -> Hasta máximo de 3 eventos. Se considera 1 día de hospedaje por evento.
D42: Deducibles: Aplicables por evento/pérdida, en caso de discrepancia prevalece el mayor
B43: =IF($B$14=0,"",$B$14) -> X | D43: Terremoto / Maremoto | F43: =coberturasyClausulas!$J$88 -> Hasta el 1% del límite asegurado, mínimo US$ 200
B44: =IF($B$14=0,"",$B$14) -> X | D44: Otros Riesgos de la Naturaleza (entre ellos lluvia, inundación, otros) | F44: =coberturasyClausulas!$J$89 -> Hasta 10% del monto indemnizable, mínimo US$ 200
B45: X | D45: Daños por agua | F45: =coberturasyClausulas!$J$90 -> Hasta 10% del monto indemnizable, mínimo US$ 200
B46: X | D46: Riesgos políticos y sociales | F46: =coberturasyClausulas!$J$91 -> Hasta 10% del monto indemnizable, mínimo US$ 200
B47: =IF($B$16=0,"",$B$16) -> X | D47: Responsabilidad civil frente a terceros | F47: =coberturasyClausulas!$J$92 -> Hasta 10% del monto indemnizable, mínimo US$ 200
B48: =IF($B$18=0,"",$B$18) -> X | D48: Rotura accidental de vidrio y/o cristales | F48: =coberturasyClausulas!$J$93 -> Hasta 10% del monto indemnizable, mínimo US$ 200
B49: =IF($B$20=0,"",$B$20) -> X | D49: Robo o intento de robo de instalaciones fijas | F49: =coberturasyClausulas!$J$94 -> Hasta 10% del monto indemnizable, mínimo US$ 200
B50: =IF($B$21=0,"",$B$21) -> X | D50: Robo y/o daños por intento de robo | F50: =coberturasyClausulas!$J$95 -> Hasta 10% del monto indemnizable, mínimo US$ 200
B51: =IF($B$23=0,"",$B$23) -> X | D51: Hurto | F51: =coberturasyClausulas!$J$96 -> Hasta 10% del monto indemnizable, mínimo US$ 200
B52: =IF($B$24=0,"",$B$24) ->  | D52: Deshonestidad de trabajadores del hogar | F52: =coberturasyClausulas!$J$97 -> Hasta 10% del monto indemnizable, mínimo US$ 200
B53: =IF($B$29=0,"",$B$29) -> X | D53: Demás coberturas | F53: Sin deducible

Sheet PlanFullCasaCompleta (hidden)
D1: PLAN FULL CASA COMPLETA | F1: Ir a Cotizador
D10: COBERTURAS (INMUEBLE Y BIENES) | F10: Límites asegurados por vigencia, hasta | G10: Límites asegurados por vigencia, hasta | H10: Prima Comercial
D11: Cobertura principal | F11: INMUEBLE | G11: BIENES
B12: X | D12: Incendio y/o rayo, explosión, incendio en aparatos eléctricos. Daños por agua, daños por humo, impacto de vehículos y/o aeronaves o daños por riesgos políticos y sociales
D13: Coberturas adicionales
B14: X | D14: Terremoto, temblor, maremoto, Inundaciones y riesgos de la naturaleza
F15: Suma asegurada que forma parte de la cobertura principal | G15: Suma asegurada que forma parte de la cobertura principal
D16: Responsabilidad civil frente a terceros | G16: -
F17: =coberturasyClausulas!$J$64 -> máximo US$ 200,000
B18: X | D18: Rotura accidental de vidrio y/o cristales | F18: =coberturasyClausulas!$J$65 -> US$ 3,000
F19: Suma asegurada que forma parte de la cobertura principal
B20: X | D20: Robo o intento de robo de instalaciones fijas | F20: =coberturasyClausulas!$J$66 -> 20% de la suma asegurada de inmueble, máximo US$ 5,000 , suma asegurada que forma parte de la cobertura principal
B21: X | D21: Robo y/o daños por intento de robo (dentro y fuera de la vivienda a nivel nacional) | F21: -
B22: X | D22: Robo y/o daños por intento de robo de joyas, platería, relojes, obras de arte, cámaras fotográficas o de video, laptops y bicicletas dentro de la vivienda o que estén siendo portados fuera de la vivienda. | F22: - | G22: USD 10,000, sublímite de la cobertura de Robo
D23: Hurto | F23: - | G23: =coberturasyClausulas!$J$68 -> US$ 3,000 , sublímite de la cobertura de Robo
D24: Deshonestidad de trabajadores del hogar | F24: - | G24: =coberturasyClausulas!$J$69 -> US$ 5,000 por evento, máximo 3 eventos por vigencia de la póliza, sublímite de la cobertura de Robo
B25: X | D25: Reembolso de gastos médicos por accidentes de trabajadores del hogar, ocurridos dentro del inmueble | F25: =coberturasyClausulas!$J$70 -> US$ 5,000 por evento, máximo 3 eventos por vigencia de la póliza | G25: Hasta US$ 5,000 / S/ 15,000 por evento, máximo 3 eventos por vigencia de la póliza
D26: Gastos de arrendamiento de vivienda temporal a reembolso | F26: =coberturasyClausulas!$J$71 -> US$ 2,000 mensuales, máximo 6 meses por vigencia de la póliza, suma asegurada que forma parte de la cobertura principal | G26: Hasta US$ 2,000 / S/ 6,000 mensuales, máximo 6 meses por vigencia de la póliza, suma asegurada que forma parte de la cobertura principal
D27: Alquiler no percibido por inmueble inhabitable temporalmente (aplica solo para el arrendador) | F27: =coberturasyClausulas!$J$72 -> US$ 2,000 mensuales, máximo 6 meses por vigencia de la póliza, suma asegurada que forma parte de la cobertura principal | G27: Hasta US$ 2,000 / S/ 6,000 mensuales, máximo 6 meses por vigencia de la póliza, suma asegurada que forma parte de la cobertura principal
B28: X | D28: Gastos extraordinarios: remoción de escombros, honorarios profesionales y construcción de documentos y modelos | F28: 20% de la suma asegurada de inmueble y/o bienes, suma asegurada que forma parte de la cobertura principal | G28: Hasta el 20% de la suma asegurada de inmueble y/o bienes, suma asegurada que forma parte de la cobertura principal
B29: X | E29: Asistencias
B30: X | D30: =coberturasyClausulas!$E$73 -> Envío y pago de Cerrajero por emergencia | F30: =coberturasyClausulas!$J$73 -> Hasta US$ 300 por evento, Máximo de 3 eventos
B31: X | D31: =coberturasyClausulas!$E$74 -> Envío y pago de Gasfitero por emergencia | F31: =coberturasyClausulas!$J$74 -> Hasta US$ 300 por evento, Máximo de 3 eventos
B32: X | D32: =coberturasyClausulas!$E$75 -> Envío y pago de Electricista por emergencia | F32: =coberturasyClausulas!$J$75 -> Hasta US$ 300 por evento, Máximo de 3 eventos
B33: X | D33: =coberturasyClausulas!$E$76 -> Envío y pago de Vidriero por emergencia | F33: =coberturasyClausulas!$J$76 -> Hasta US$ 300 por evento, Máximo de 3 eventos
D34: =coberturasyClausulas!$E$77 -> Limpieza del inmueble asegurado a consecuencia de un siniestro | F34: =coberturasyClausulas!$J$77 -> Hasta US$ 500 por evento, Máximo de 3 eventos
B35: X | D35: =coberturasyClausulas!$E$78 -> Servicio de Lavado de estores, roller, alfombras | F35: =coberturasyClausulas!$J$78 -> Hasta US$ 80 por evento, máximo de 1 evento, cubriendo la limpieza de una pieza.
B36: X | D36: =coberturasyClausulas!$E$79 -> Servicio de Lavado de colchón | F36: =coberturasyClausulas!$J$79 -> Hasta US$ 80 por evento, máximo de 1 evento, cubriendo la limpieza de una pieza.
B37: X | D37: =coberturasyClausulas!$E$80 -> Masajes relajantes a domicilio durante 1 hora | F37: =coberturasyClausulas!$J$80 -> Hasta US$ 80 por evento, máximo de 1 evento, cubriendo la limpieza de una pieza.
D38: Deducibles: Aplicables por evento/pérdida, en caso de discrepancia prevalece el mayor
D39: Terremoto / Maremoto | F39: =coberturasyClausulas!$J$88 -> Hasta el 1% del límite asegurado, mínimo US$ 200
D40: Otros Riesgos de la Naturaleza (entre ellos lluvia, inundación, otros) | F40: =coberturasyClausulas!$J$89 -> Hasta 10% del monto indemnizable, mínimo US$ 200
D41: Daños por agua | F41: =coberturasyClausulas!$J$90 -> Hasta 10% del monto indemnizable, mínimo US$ 200
D42: Riesgos políticos y sociales | F42: =coberturasyClausulas!$J$91 -> Hasta 10% del monto indemnizable, mínimo US$ 200
D43: Responsabilidad civil frente a terceros | F43: =coberturasyClausulas!$J$92 -> Hasta 10% del monto indemnizable, mínimo US$ 200
D44: Rotura accidental de vidrio y/o cristales | F44: =coberturasyClausulas!$J$93 -> Hasta 10% del monto indemnizable, mínimo US$ 200
D45: Robo o intento de robo de instalaciones fijas | F45: =coberturasyClausulas!$J$94 -> Hasta 10% del monto indemnizable, mínimo US$ 200
D46: Robo y/o daños por intento de robo | F46: =coberturasyClausulas!$J$95 -> Hasta 10% del monto indemnizable, mínimo US$ 200
D47: Hurto | F47: =coberturasyClausulas!$J$96 -> Hasta 10% del monto indemnizable, mínimo US$ 200
D48: Deshonestidad de trabajadores del hogar | F48: =coberturasyClausulas!$J$97 -> Hasta 10% del monto indemnizable, mínimo US$ 200
D49: Demás coberturas | F49: Sin deducible

Sheet PlanBasico (hidden)
D1: PLAN BÁSICO | F1: Ir a Cotizador
D10: COBERTURAS (INMUEBLE Y BIENES) | F10: Límites asegurados por vigencia, hasta | G10: Límites asegurados por vigencia, hasta | H10: Prima Comercial
D11: Cobertura principal | F11: INMUEBLE | G11: BIENES
B12: X | D12: Incendio y/o rayo, explosión, incendio en aparatos eléctricos. Daños por agua, daños por humo, impacto de vehículos y/o aeronaves o daños por riesgos políticos y sociales
D13: Coberturas adicionales
D14: Terremoto, temblor, maremoto, Inundaciones y riesgos de la naturaleza
F15: Suma asegurada que forma parte de la cobertura principal | G15: Suma asegurada que forma parte de la cobertura principal
D16: Responsabilidad civil frente a terceros | G16: -
F17: =coberturasyClausulas!$J$64 -> máximo US$ 200,000
D18: Rotura accidental de vidrio y/o cristales | F18: =coberturasyClausulas!$J$65 -> US$ 3,000
F19: Suma asegurada que forma parte de la cobertura principal
D20: Robo o intento de robo de instalaciones fijas | F20: =coberturasyClausulas!$J$66 -> 20% de la suma asegurada de inmueble, máximo US$ 5,000 , suma asegurada que forma parte de la cobertura principal
B21: X | D21: Robo y/o daños por intento de robo (dentro y fuera de la vivienda a nivel nacional) | F21: -
D22: Robo y/o daños por intento de robo de joyas, platería, relojes, obras de arte, cámaras fotográficas o de video, laptops y bicicletas dentro de la vivienda o que estén siendo portados fuera de la vivienda. | F22: - | G22: USD 10,000, sublímite de la cobertura de Robo
D23: Hurto | F23: - | G23: =coberturasyClausulas!$J$68 -> US$ 3,000 , sublímite de la cobertura de Robo
D24: Deshonestidad de trabajadores del hogar | F24: - | G24: =coberturasyClausulas!$J$69 -> US$ 5,000 por evento, máximo 3 eventos por vigencia de la póliza, sublímite de la cobertura de Robo
D25: Reembolso de gastos médicos por accidentes de trabajadores del hogar, ocurridos dentro del inmueble | F25: =coberturasyClausulas!$J$70 -> US$ 5,000 por evento, máximo 3 eventos por vigencia de la póliza | G25: Hasta US$ 5,000 / S/ 15,000 por evento, máximo 3 eventos por vigencia de la póliza
D26: Gastos de arrendamiento de vivienda temporal a reembolso | F26: =coberturasyClausulas!$J$71 -> US$ 2,000 mensuales, máximo 6 meses por vigencia de la póliza, suma asegurada que forma parte de la cobertura principal | G26: Hasta US$ 2,000 / S/ 6,000 mensuales, máximo 6 meses por vigencia de la póliza, suma asegurada que forma parte de la cobertura principal
D27: Alquiler no percibido por inmueble inhabitable temporalmente (aplica solo para el arrendador) | F27: =coberturasyClausulas!$J$72 -> US$ 2,000 mensuales, máximo 6 meses por vigencia de la póliza, suma asegurada que forma parte de la cobertura principal | G27: Hasta US$ 2,000 / S/ 6,000 mensuales, máximo 6 meses por vigencia de la póliza, suma asegurada que forma parte de la cobertura principal
B28: X | D28: Gastos extraordinarios: remoción de escombros, honorarios profesionales y construcción de documentos y modelos | F28: 20% de la suma asegurada de inmueble y/o bienes, suma asegurada que forma parte de la cobertura principal | G28: Hasta el 20% de la suma asegurada de inmueble y/o bienes, suma asegurada que forma parte de la cobertura principal
B29: X | E29: Asistencias
B30: X | D30: =coberturasyClausulas!$E$73 -> Envío y pago de Cerrajero por emergencia | F30: =coberturasyClausulas!$J$73 -> Hasta US$ 300 por evento, Máximo de 3 eventos
B31: X | D31: =coberturasyClausulas!$E$74 -> Envío y pago de Gasfitero por emergencia | F31: =coberturasyClausulas!$J$74 -> Hasta US$ 300 por evento, Máximo de 3 eventos
B32: X | D32: =coberturasyClausulas!$E$75 -> Envío y pago de Electricista por emergencia | F32: =coberturasyClausulas!$J$75 -> Hasta US$ 300 por evento, Máximo de 3 eventos
B33: X | D33: =coberturasyClausulas!$E$76 -> Envío y pago de Vidriero por emergencia | F33: =coberturasyClausulas!$J$76 -> Hasta US$ 300 por evento, Máximo de 3 eventos
B34: X | D34: =coberturasyClausulas!$E$77 -> Limpieza del inmueble asegurado a consecuencia de un siniestro | F34: =coberturasyClausulas!$J$77 -> Hasta US$ 500 por evento, Máximo de 3 eventos
D35: =coberturasyClausulas!$E$78 -> Servicio de Lavado de estores, roller, alfombras | F35: =coberturasyClausulas!$J$78 -> Hasta US$ 80 por evento, máximo de 1 evento, cubriendo la limpieza de una pieza.
D36: =coberturasyClausulas!$E$79 -> Servicio de Lavado de colchón | F36: =coberturasyClausulas!$J$79 -> Hasta US$ 80 por evento, máximo de 1 evento, cubriendo la limpieza de una pieza.
D37: =coberturasyClausulas!$E$80 -> Masajes relajantes a domicilio durante 1 hora | F37: =coberturasyClausulas!$J$80 -> Hasta US$ 80 por evento, máximo de 1 evento, cubriendo la limpieza de una pieza.
D38: Deducibles: Aplicables por evento/pérdida, en caso de discrepancia prevalece el mayor
D39: Terremoto / Maremoto | F39: =coberturasyClausulas!$J$88 -> Hasta el 1% del límite asegurado, mínimo US$ 200
D40: Otros Riesgos de la Naturaleza (entre ellos lluvia, inundación, otros) | F40: =coberturasyClausulas!$J$89 -> Hasta 10% del monto indemnizable, mínimo US$ 200
D41: Daños por agua | F41: =coberturasyClausulas!$J$90 -> Hasta 10% del monto indemnizable, mínimo US$ 200
D42: Riesgos políticos y sociales | F42: =coberturasyClausulas!$J$91 -> Hasta 10% del monto indemnizable, mínimo US$ 200
D43: Responsabilidad civil frente a terceros | F43: =coberturasyClausulas!$J$92 -> Hasta 10% del monto indemnizable, mínimo US$ 200
D44: Rotura accidental de vidrio y/o cristales | F44: =coberturasyClausulas!$J$93 -> Hasta 10% del monto indemnizable, mínimo US$ 200
D45: Robo o intento de robo de instalaciones fijas | F45: =coberturasyClausulas!$J$94 -> Hasta 10% del monto indemnizable, mínimo US$ 200
D46: Robo y/o daños por intento de robo | F46: =coberturasyClausulas!$J$95 -> Hasta 10% del monto indemnizable, mínimo US$ 200
D47: Hurto | F47: =coberturasyClausulas!$J$96 -> Hasta 10% del monto indemnizable, mínimo US$ 200
D48: Deshonestidad de trabajadores del hogar | F48: =coberturasyClausulas!$J$97 -> Hasta 10% del monto indemnizable, mínimo US$ 200
D49: Demás coberturas | F49: Sin deducible

Sheet tasas (hidden)
B1: INMUEBLE | H1: BIENES | N1: INMUEBLE Y BIENES | S1: Límites para cobertura de joyas
B2: VALOR TOTAL | C2: PRIMER RIESTO | H2: VALOR TOTAL | I2: PRIMER RIESTO | N2: VALOR TOTAL | O2: PRIMER RIESTO | S2: Monto USD | T2: Monto PEN | U2: Moneda | V2: Límites asegurados por vigencia, hasta | W2: Tasa pura de riesgo
S3: 10000 | T3: =S3*3 -> 30000 | U3: USD | V3: =U3&" "&IF(U3="S/",TEXT(T3,"##,##0"),IF(U3="USD",TEXT(S3,"##,##0"),""))&", sublímite de la cobertura de Robo" -> USD 10,000, sublímite de la cobertura de Robo | W3: 0.2224740285
A4: Tipo de bien: Inmueble | B4: tasa de riesgo | C4: tasa de riesgo | G4: Tipo de bien: Bienes | H4: tasa de riesgo | I4: tasa de riesgo | M4: Tipo de bien: Inmueble | N4: tasa de riesgo | O4: tasa de riesgo | S4: 20000 | T4: =S4*3 -> 60000 | U4: USD | V4: =U4&" "&IF(U4="S/",TEXT(T4,"##,##0"),IF(U4="USD",TEXT(S4,"##,##0"),""))&", sublímite de la cobertura de Robo" -> USD 20,000, sublímite de la cobertura de Robo | W4: 0.2224740285
B5: Corredores | C5: Corredores | H5: Corredores | I5: Corredores | N5: Corredores | O5: Corredores
A6: Gastos generales | B6: 0.14 | C6: 0.14 | G6: Gastos generales | H6: 0 | I6: 0 | M6: Gastos generales | N6: =B6 -> 0.14 | O6: 0.14 | V6: Difernecia Actual | W6: =W3-W4 -> 0
A7: Gastos de comercialización | B7: 0.05 | C7: 0.05 | G7: Gastos de comercialización | H7: 0.05 | I7: 0.05 | M7: Gastos de comercialización | N7: 0.05 | O7: 0.05 | V7: Diferencia | W7: 0.02
A8: Comisión local | B8: 0.175 | C8: 0.175 | G8: Comisión local | H8: 0.175 | I8: 0.175 | M8: Comisión local | N8: 0.175 | O8: 0.175
A9: Utilidad antes de Imp | B9: 0 | C9: 0 | G9: Utilidad antes de Imp | H9: 0 | I9: 0 | M9: Utilidad antes de Imp | N9: 0 | O9: 0
A10: Tasa comercial %o | B10: =+B11/(1-(B6+B7+B8+B9)) -> 2.621914009 | C10: =+C11/(1-(C6+C7+C8+C9)) -> 2.621914009 | G10: Tasa comercial %o | H10: =+H11/(1-(H6+H7+H8+H9)) -> 3.793578074 | I10: =+I11/(1-(I6+I7+I8+I9)) -> 3.793578074 | M10: Tasa comercial %o | N10: =+N11/(1-(N6+N7+N8+N9)) -> 2.621914009 | O10: =+O11/(1-(O6+O7+O8+O9)) -> 2.621914009
A11: Tasa de Riesgo %o | B11: =+SUM(B12:B20) -> 1.664915395 | C11: =+SUM(C12:C20) -> 1.664915395 | G11: Tasa de Riesgo %o | H11: =+SUM(H12:H14) -> 2.940023007 | I11: =+SUM(I12:I14) -> 2.940023007 | M11: Tasa de Riesgo %o | N11: =+SUM(N12:N20) -> 1.664915395 | O11: =+SUM(O12:O20) -> 1.664915395
A12: Incendio y/o rayo, explosión. Daños por agua, daños por humo, impacto de vehículos y/o aeronaves | B12: 0.2922559904 | C12: 0.2922559904 | G12: Incendio y/o rayo, explosión. Daños por agua, daños por humo, impacto de vehículos y/o aeronaves | H12: 1.513784115 | I12: 1.513784115 | M12: Incendio y/o rayo, explosión. Daños por agua, daños por humo, impacto de vehículos y/o aeronaves | N12: =B12 -> 0.2922559904 | O12: =C12 -> 0.2922559904
A13: Terremoto, temblor, maremoto, Inundaciones y riesgos de la naturaleza | B13: 1.326 | C13: 1.326 | G13: Terremoto, temblor, maremoto, Inundaciones y riesgos de la naturaleza | H13: 1.326 | I13: 1.326 | M13: Terremoto, temblor, maremoto, Inundaciones y riesgos de la naturaleza | N13: =B13 -> 1.326 | O13: 1.326
A14: Responsabilidad Civil frente a terceros | B14: 0.006267 | C14: 0.006267 | G14: Asistencias | H14: 0.1002388915 | I14: 0.1002388915 | M14: Responsabilidad Civil frente a terceros | N14: 0.006267 | O14: 0.006267
A15: Rotura accidental de vidrio y/o cristales | B15: 0.01376348608 | C15: 0.01376348608 | G15: Cantidad de asistencias | H15: 6 | I15: 6 | M15: Rotura accidental de vidrio y/o cristales | N15: 0.01376348608 | O15: 0.01376348608
A16: Robo o intento de robo de instalaciones fijas | B16: 0.00109784658 | C16: 0.00109784658 | G16: Tasa por asistencia | H16: =H14/H15 -> 0.01670648192 | I16: =I14/I15 -> 0.01670648192 | M16: Robo o intento de robo de instalaciones fijas | N16: 0.00109784658 | O16: 0.00109784658
A17: Reembolso de gastos médicos por accidentes de trabajadores del hogar | B17: 0.0029409 | C17: 0.0029409 | M17: Reembolso de gastos médicos por accidentes de trabajadores del hogar | N17: 0.0029409 | O17: 0.0029409
A18: Gasto de arrendamiento de vivienda temporal | B18: 0.0045743 | C18: 0.0045743 | M18: Gasto de arrendamiento de vivienda temporal | N18: 0.0045743 | O18: 0.0045743
A19: Alquiler no percibido por inmueble inhabitable temporalmente | B19: 0.0045743 | C19: 0.0045743 | M19: Alquiler no percibido por inmueble inhabitable temporalmente | N19: 0.0045743 | O19: 0.0045743
A20: Asistencias | B20: 0.01344157238 | C20: 0.01344157238 | M20: Asistencias | N20: 0.01344157238 | O20: 0.01344157238
A21: Cantidad de asistencias | B21: 6 | C21: 6 | M21: Cantidad de asistencias | N21: 6 | O21: 6
A22: Tasa por asistencia | B22: =B20/B21 -> 0.002240262063 | C22: =C20/C21 -> 0.002240262063 | M22: Tasa por asistencia | N22: =N20/N21 -> 0.002240262063 | O22: =O20/O21 -> 0.002240262063
G24: Tipo de bien: Bienes con robo | H24: Corredores | I24: Corredores
G25: Gastos generales | H25: 0.15 | I25: 0.15
G26: Gastos de comercialización | H26: 0.05 | I26: 0.05
G27: Comisión local | H27: 0.175 | I27: 0.175
G28: Utilidad antes de Imp | H28: 0.1 | I28: 0.1
G29: Tasa comercial %o | H29: =+H30/(1-(H25+H26+H27+H28)) -> 5.312152711 | I29: =+I30/(1-(I25+I26+I27+I28)) -> 5.312152711
G30: Tasa de Riesgo %o | H30: =+SUM(H31:H34) -> 2.788880174 | I30: =+SUM(I31:I34) -> 2.788880174
G31: Robo y/o daños por intento de robo de bienes | H31: 2.306404696 | I31: 2.306404696
G32: Robo y/o daños por intento de robo de joyas, platería, relojes, obras de arte, cámaras fotográficas o de video, laptops y bicicletas dentro de la vivienda o que estén siendo portados fuera de la vivienda | H32: 0.2224740285 | I32: 0.2224740285 | M32: Tipo de bien: Bienes | N32: tasa de riesgo | O32: tasa de riesgo
G33: Hurto | H33: 0.2533072621 | I33: 0.2533072621 | N33: Corredores | O33: Corredores
G34: Deshonestidad de trabajadores del hogar | H34: 0.006694187049 | I34: 0.006694187049 | M34: Gastos generales | N34: =H6 -> 0 | O34: =I6 -> 0
M35: Gastos de comercialización | N35: =H7 -> 0.05 | O35: 0.05
M36: Comisión local | N36: 0.175 | O36: 0.175
M37: Utilidad antes de Imp | N37: 0 | O37: 0
M38: Tasa comercial %o | N38: =+N39/(1-(N34+N35+N36+N37)) -> 3.793578074 | O38: =+O39/(1-(O34+O35+O36+O37)) -> 3.793578074
M39: Tasa de Riesgo %o | N39: =+SUM(N40:N42) -> 2.940023007 | O39: =+SUM(O40:O42) -> 2.940023007
M40: Incendio y/o rayo, explosión. Daños por agua, daños por humo, impacto de vehículos y/o aeronaves | N40: =H12 -> 1.513784115 | O40: 1.513784115
M41: Terremoto, temblor, maremoto, Inundaciones y riesgos de la naturaleza | N41: 1.326 | O41: 1.326
M42: Asistencias | N42: 0.1002388915 | O42: 0.1002388915
M43: Cantidad de asistencias | N43: 6 | O43: 6
M44: Tasa por asistencia | N44: =N42/N43 -> 0.01670648192 | O44: =O42/O43 -> 0.01670648192
M50: COBERTURAS TOTALES (TODO RIESGO)
M51: Incendio y/o rayo, explosión. Daños por agua, daños por humo, impacto de vehículos y/o aeronaves
M52: Terremoto, temblor, maremoto, Inundaciones y riesgos de la naturaleza
M53: Responsabilidad Civil frente a terceros
M54: Rotura accidental de vidrio y/o cristales
M55: Robo o intento de robo de instalaciones fijas
M56: Reembolso de gastos médicos por accidentes de trabajadores del hogar
M57: Gasto de arrendamiento de vivienda temporal
M58: Alquiler no percibido por inmueble inhabitable temporalmente
M59: Asistencias
M60: TOTAL
M64: Tipo de bien: Bienes con robo | N64: Corredores | O64: Corredores
M65: Gastos generales | N65: =H25 -> 0.15 | O65: 0.15
M66: Gastos de comercialización | N66: =H26 -> 0.05 | O66: 0.05
M67: Comisión local | N67: 0.175 | O67: 0.175
M68: Utilidad antes de Imp | N68: 0.1 | O68: 0.1
M69: Tasa comercial %o | N69: =+N70/(1-(N65+N66+N67+N68)) -> 5.312152711 | O69: =+O70/(1-(O65+O66+O67+O68)) -> 5.312152711
M70: Tasa de Riesgo %o | N70: =+SUM(N71:N74) -> 2.788880174 | O70: =+SUM(O71:O74) -> 2.788880174
M71: Robo y/o daños por intento de robo de bienes | N71: =H31 -> 2.306404696 | O71: 2.306404696
M72: Robo y/o daños por intento de robo de joyas, platería, relojes, obras de arte, cámaras fotográficas o de video, laptops y bicicletas dentro de la vivienda o que estén siendo portados fuera de la vivienda | N72: 0.2224740285 | O72: 0.2224740285
M73: Hurto | N73: =H33 -> 0.2533072621 | O73: 0.2533072621
M74: Deshonestidad de trabajadores del hogar | N74: 0.006694187049 | O74: 0.006694187049

Sheet coberturasyClausulas (hidden)
A1: INMUEBLE valor total
C2: DOLARES | D2: SOLES | F2: TEXTO1 | G2: TEXTO2 | H2: DOLARES | J2: TEXTO FINAL
C3: US$ 200,000 | D3: S/ 600,000 | F3: máximo | H3: US$ 200,000 | J3: =F3& " " &H3 -> máximo US$ 200,000
C4: US$ 3,000 | D4: S/ 9,000 | F4: Hasta | G4: ,suma asegurada que forma parte de la cobertura principal | H4: US$ 3,000 | J4: =F4& " " &H4 & " " &G4 -> Hasta US$ 3,000 ,suma asegurada que forma parte de la cobertura principal
C5: US$ 5,000 | D5: S/ 15,000 | F5: Hasta el 20% de la suma asegurada de inmueble, máximo | G5: ,suma asegurada que forma parte de la cobertura principal | H5: US$ 5,000 | J5: =F5& " " &H5 & " " &G5 -> Hasta el 20% de la suma asegurada de inmueble, máximo US$ 5,000 ,suma asegurada que forma parte de la cobertura principal
C6: US$ 5,000 | D6: S/ 15,000 | F6: Hasta | G6: por evento, máximo 3 eventos por vigencia de la póliza | H6: US$ 5,000 | J6: =F6& " " &H6 & " " &G6 -> Hasta US$ 5,000 por evento, máximo 3 eventos por vigencia de la póliza
C7: US$ 2,000 | D7: S/ 6,000 | F7: Hasta | G7: mensuales, máximo 6 meses por vigencia de la póliza, suma asegurada que forma parte de la cobertura principal | H7: US$ 2,000 | J7: =F7& " " &H7 & " " &G7 -> Hasta US$ 2,000 mensuales, máximo 6 meses por vigencia de la póliza, suma asegurada que forma parte de la cobertura principal
C8: US$ 2,000 | D8: S/ 6,000 | F8: Hasta | G8: mensuales, máximo 6 meses por vigencia de la póliza, suma asegurada que forma parte de la cobertura principal | H8: US$ 2,000 | J8: =F8& " " &H8 & " " &G8 -> Hasta US$ 2,000 mensuales, máximo 6 meses por vigencia de la póliza, suma asegurada que forma parte de la cobertura principal
B11: 1 | C11: US$ 300 | D11: S/ 900 | E11: Envío y pago de Cerrajero por emergencia las 24H | F11: Hasta | G11: por evento, Máximo de 3 eventos | H11: US$ 300 | J11: =F11& " " &H11 & " " &G11 -> Hasta US$ 300 por evento, Máximo de 3 eventos
B12: 2 | C12: US$ 300 | D12: S/ 900 | E12: Envío y pago de Gasfitero por emergencia las 24H | F12: Hasta | G12: por evento, Máximo de 3 eventos | H12: US$ 300 | J12: =F12& " " &H12 & " " &G12 -> Hasta US$ 300 por evento, Máximo de 3 eventos
B13: 3 | C13: US$ 300 | D13: S/ 900 | E13: Envío y pago de Electricista por emergencia las 24H | F13: Hasta | G13: por evento, Máximo de 3 eventos | H13: US$ 300 | J13: =F13& " " &H13 & " " &G13 -> Hasta US$ 300 por evento, Máximo de 3 eventos
B14: 4 | C14: US$ 300 | D14: S/ 900 | E14: Envío y pago de Vidriero por emergencia las 24H | F14: Hasta | G14: por evento, Máximo de 3 eventos | H14: US$ 300 | J14: =F14& " " &H14 & " " &G14 -> Hasta US$ 300 por evento, Máximo de 3 eventos
B15: 5 | C15: US$ 500 | D15: S/ 1500 | E15: Limpieza del inmueble asegurado a consecuencia de un siniestro | F15: Hasta | G15: por evento, Máximo de 3 eventos | H15: US$ 500 | J15: =F15& " " &H15 & " " &G15 -> Hasta US$ 500 por evento, Máximo de 3 eventos
B16: 6 | C16: US$ 80 | D16: S/ 240 | E16: Servicio de Lavado de estores, roller, alfombras | F16: Hasta | G16: (sin copago) por evento, Máximo de 1 evento | H16: US$ 80 | J16: Hasta US$ 80 por evento, máximo de 1 evento, cubriendo la limpieza de una pieza.
B17: 7 | C17: US$ 80 | D17: S/ 240 | E17: Servicio de Lavado de colchón | F17: Hasta | G17: (sin copago) por evento, Máximo de 1 evento | H17: US$ 80 | J17: Hasta US$ 80 por evento, máximo de 1 evento, cubriendo la limpieza de una pieza.
B18: 8 | C18: US$ 80 | D18: S/ 240 | E18: Masajes relajantes a domicilio durante 1 hora | F18: Hasta | G18: (sin copago) por evento, Máximo de 1 evento | H18: US$ 80 | J18: Hasta US$ 80 por evento, máximo de 1 evento, cubriendo la limpieza de una pieza.
B19: 9 | C19: S/ 70 | D19: S/ 70 | E19: Mozo a domicilio | F19: Hasta | G19: (sin copago) por evento, Máximo de 3 eventos | H19: S/ 70 | J19: Hasta máximo de 3 eventos al año, con servicio una vez al mes.
B20: 10 | C20: US$ 75 | D20: S/ 225 | E20: Mantenimiento Preventivo de Línea Blanca | F20: Hasta | G20: (sin copago) por evento, Máximo de 3 eventos | H20: US$ 75 | J20: Hasta US$ 75 por evento, máximo de 3 eventos, cubriendo la revisión de un equipo.
B21: 11 | E21: Orientación telefónica veterinaria para perros las 24H | F21: Hasta | J21: Sin límite
B22: 12 | E22: Hospedaje de perros | F22: Hasta | J22: Hasta máximo de 3 eventos. Se considera 1 día de hospedaje por evento.
C23: US$ 300 | D23: S/ 900 | E23: Asesoría legal por robo dentro del inmueble | F23: Hasta | G23: máximo 3 atenciones por vigencia de la póliza | H23: US$ 300 | J23: =F23& " " &H23 & " " &G23 -> Hasta US$ 300 máximo 3 atenciones por vigencia de la póliza
E24: Asesoría legal teléfonica | J24: Sin límite
C25: S/ 20 | D25: S/ 20 | E25: Baño de mascotas | G25: 2 eventos, Co - pago | H25: S/ 20 | J25: =F25& " " &G25 & " " &H25 & " por evento" -> 2 eventos, Co - pago S/ 20 por evento
C26: US$ 200 | D26: S/ 600 | F26: Hasta el 1% del límite asegurado, mínimo | H26: US$ 200 | J26: =F26& " " &H26 -> Hasta el 1% del límite asegurado, mínimo US$ 200
C27: US$ 200 | D27: S/ 600 | F27: Hasta 10% del monto indemnizable, mínimo | H27: US$ 200 | J27: Hasta 10% del monto indemnizable, mínimo US$ 200
C28: US$ 200 | D28: S/ 600 | F28: Hasta 10% del monto indemnizable, mínimo | H28: US$ 200 | J28: Hasta 10% del monto indemnizable, mínimo US$ 200
C29: US$ 200 | D29: S/ 600 | F29: Hasta 10% del monto indemnizable, mínimo | H29: US$ 200 | J29: Hasta 10% del monto indemnizable, mínimo US$ 200
C30: US$ 200 | D30: S/ 600 | F30: Hasta 10% del monto indemnizable, mínimo | H30: US$ 200 | J30: Hasta 10% del monto indemnizable, mínimo US$ 200
C31: US$ 200 | D31: S/ 600 | F31: Hasta 10% del monto indemnizable, mínimo | H31: US$ 200 | J31: Hasta 10% del monto indemnizable, mínimo US$ 200
C32: US$ 200 | D32: S/ 600 | F32: Hasta 10% del monto indemnizable, mínimo | H32: US$ 200 | J32: Hasta 10% del monto indemnizable, mínimo US$ 200
A34: BIENES valor total
C36: US$ 5,000 | D36: S/ 15,000 | F36: Hasta | G36: , sublímite de la cobertura de Robo | H36: US$ 5,000 | J36: =F36& " " &H36 & " " &G36 -> Hasta US$ 5,000 , sublímite de la cobertura de Robo
C37: US$ 3,000 | D37: S/ 9,000 | F37: Hasta | G37: , sublímite de la cobertura de Robo | H37: US$ 3,000 | J37: Hasta US$ 3,000 , sublímite de la cobertura de Robo
C38: US$ 5,000 | D38: S/ 15,000 | F38: Hasta | G38: por evento, máximo 3 eventos por vigencia de la póliza, sublímite de la cobertura de Robo | H38: US$ 5,000 | J38: Hasta US$ 5,000 por evento, máximo 3 eventos por vigencia de la póliza, sublímite de la cobertura de Robo
B39: 1 | C39: US$ 300 | D39: S/ 900 | E39: Envío y pago de Cerrajero por emergencia | F39: Hasta | G39: por evento, Máximo de 3 eventos | H39: US$ 300 | J39: Hasta US$ 300 por evento, Máximo de 3 eventos
B40: 2 | C40: US$ 300 | D40: S/ 900 | E40: Envío y pago de Gasfitero por emergencia | F40: Hasta | G40: por evento, Máximo de 3 eventos | H40: US$ 300 | J40: =F40& " " &H40 & " " &G40 -> Hasta US$ 300 por evento, Máximo de 3 eventos
B41: 3 | C41: US$ 300 | D41: S/ 900 | E41: Envío y pago de Electricista por emergencia | F41: Hasta | G41: por evento, Máximo de 3 eventos | H41: US$ 300 | J41: =F41& " " &H41 & " " &G41 -> Hasta US$ 300 por evento, Máximo de 3 eventos
B42: 4 | C42: US$ 300 | D42: S/ 900 | E42: Envío y pago de Vidriero por emergencia | F42: Hasta | G42: por evento, Máximo de 3 eventos | H42: US$ 300 | J42: =F42& " " &H42 & " " &G42 -> Hasta US$ 300 por evento, Máximo de 3 eventos
B43: 5 | C43: US$ 500 | D43: S/ 1500 | E43: Limpieza del inmueble asegurado a consecuencia de un siniestro | F43: Hasta | G43: por evento, Máximo de 3 eventos | H43: US$ 500 | J43: =F43& " " &H43 & " " &G43 -> Hasta US$ 500 por evento, Máximo de 3 eventos
B44: 6 | C44: US$ 80 | D44: S/ 240 | E44: Servicio de Lavado de estores, roller, alfombras | F44: Hasta | G44: (sin copago) por evento, Máximo de 1 evento | H44: US$ 80 | J44: Hasta US$ 80 por evento, máximo de 1 evento, cubriendo la limpieza de una pieza.
B45: 7 | C45: US$ 80 | D45: S/ 240 | E45: Servicio de Lavado de colchón | F45: Hasta | G45: (sin copago) por evento, Máximo de 1 evento | H45: US$ 80 | J45: Hasta US$ 80 por evento, máximo de 1 evento, cubriendo la limpieza de una pieza.
B46: 8 | C46: US$ 80 | D46: S/ 240 | E46: Masajes relajantes a domicilio durante 1 hora | F46: Hasta | G46: (sin copago) por evento, Máximo de 1 evento | H46: US$ 80 | J46: Hasta US$ 80 por evento, máximo de 1 evento, cubriendo la limpieza de una pieza.
B47: 9 | C47: S/ 70 | D47: S/ 70 | E47: Mozo a domicilio | F47: Hasta | G47: (sin copago) por evento, Máximo de 3 eventos | H47: S/ 70 | J47: Hasta máximo de 3 eventos al año, con servicio una vez al mes.
B48: 10 | C48: US$ 75 | D48: S/ 225 | E48: Mantenimiento Preventivo de Línea Blanca | F48: Hasta | G48: (sin copago) por evento, Máximo de 3 eventos | H48: US$ 75 | J48: Hasta US$ 75 por evento, máximo de 3 eventos, cubriendo la revisión de un equipo.
B49: 11 | E49: Orientación telefónica veterinaria para perros las 24H | F49: Hasta | J49: Sin límite
B50: 12 | E50: Hospedaje de perros | F50: Hasta | J50: Hasta máximo de 3 eventos. Se considera 1 día de hospedaje por evento.
C51: US$ 300 | D51: S/ 900 | E51: Asesoría legal por robo dentro del inmueble | F51: Hasta | G51: máximo 3 atenciones por vigencia de la póliza | H51: US$ 300 | J51: =F51& " " &H51 & " " &G51 -> Hasta US$ 300 máximo 3 atenciones por vigencia de la póliza
E52: Asesoría legal teléfonica | J52: Sin límite
C53: S/ 20 | D53: S/ 20 | E53: Baño de mascotas | G53: 2 eventos, Co - pago | H53: S/ 20 | J53: =F53& " " &G53 & " " &H53 & " por evento" -> 2 eventos, Co - pago S/ 20 por evento
C54: US$ 200 | D54: S/ 600 | F54: Hasta 10% del monto indemnizable, mínimo | H54: US$ 200 | J54: =F54& " " &H54 -> Hasta 10% del monto indemnizable, mínimo US$ 200
C55: US$ 200 | D55: S/ 600 | F55: Hasta 10% del monto indemnizable, mínimo | H55: US$ 200 | J55: Hasta 10% del monto indemnizable, mínimo US$ 200
C56: US$ 200 | D56: S/ 600 | F56: Hasta 10% del monto indemnizable, mínimo | H56: US$ 200 | J56: Hasta 10% del monto indemnizable, mínimo US$ 200
C57: US$ 200 | D57: S/ 600 | F57: Hasta el 1% del límite asegurado, mínimo | H57: US$ 200 | J57: Hasta el 1% del límite asegurado, mínimo US$ 200
C58: US$ 200 | D58: S/ 600 | F58: Hasta 10% del monto indemnizable, mínimo | H58: US$ 200 | J58: Hasta 10% del monto indemnizable, mínimo US$ 200
C59: US$ 200 | D59: S/ 600 | F59: Hasta 10% del monto indemnizable, mínimo | H59: US$ 200 | J59: Hasta 10% del monto indemnizable, mínimo US$ 200
C60: US$ 200 | D60: S/ 600 | F60: Hasta 10% del monto indemnizable, mínimo | H60: US$ 200 | J60: Hasta 10% del monto indemnizable, mínimo US$ 200
A62: INMUEBLE Y BIENES valor total
C64: US$ 200,000 | D64: S/ 600,000 | F64: máximo | H64: US$ 200,000 | I64: F17 | J64: =F64& " " &H64 -> máximo US$ 200,000
C65: US$ 3,000 | D65: S/ 9,000 | H65: US$ 3,000 | I65: F18 | J65: =H65 -> US$ 3,000
C66: US$ 5,000 | D66: S/ 15,000 | F66: 20% de la suma asegurada de inmueble, máximo | G66: , suma asegurada que forma parte de la cobertura principal | H66: US$ 5,000 | I66: F20 | J66: =F66& " " &H66 & " " &G66 -> 20% de la suma asegurada de inmueble, máximo US$ 5,000 , suma asegurada que forma parte de la cobertura principal
C67: US$ 5,000 | D67: S/ 15,000 | F67: , sublímite de la cobertura de Robo | H67: US$ 5,000 | I67: G22 | J67: =H67& " " & F67 -> US$ 5,000 , sublímite de la cobertura de Robo
C68: US$ 3,000 | D68: S/ 9,000 | F68: , sublímite de la cobertura de Robo | H68: US$ 3,000 | I68: G23 | J68: US$ 3,000 , sublímite de la cobertura de Robo
C69: US$ 5,000 | D69: S/ 15,000 | F69: por evento, máximo 3 eventos por vigencia de la póliza, sublímite de la cobertura de Robo | H69: US$ 5,000 | I69: G24 | J69: US$ 5,000 por evento, máximo 3 eventos por vigencia de la póliza, sublímite de la cobertura de Robo
C70: US$ 5,000 | D70: S/ 15,000 | F70: por evento, máximo 3 eventos por vigencia de la póliza | H70: US$ 5,000 | I70: F25 | J70: US$ 5,000 por evento, máximo 3 eventos por vigencia de la póliza
C71: US$ 2,000 | D71: S/ 6,000 | F71: mensuales, máximo 6 meses por vigencia de la póliza, suma asegurada que forma parte de la cobertura principal | H71: US$ 2,000 | I71: F26 | J71: US$ 2,000 mensuales, máximo 6 meses por vigencia de la póliza, suma asegurada que forma parte de la cobertura principal
C72: US$ 2,000 | D72: S/ 6,000 | F72: mensuales, máximo 6 meses por vigencia de la póliza, suma asegurada que forma parte de la cobertura principal | H72: US$ 2,000 | I72: F27 | J72: US$ 2,000 mensuales, máximo 6 meses por vigencia de la póliza, suma asegurada que forma parte de la cobertura principal
B73: 1 | C73: US$ 300 | D73: S/ 900 | E73: Envío y pago de Cerrajero por emergencia | F73: Hasta | G73: por evento, Máximo de 3 eventos | H73: US$ 300 | I73: F30 | J73: =F73& " " &H73 & " " &G73 -> Hasta US$ 300 por evento, Máximo de 3 eventos
B74: 2 | C74: US$ 300 | D74: S/ 900 | E74: Envío y pago de Gasfitero por emergencia | F74: Hasta | G74: por evento, Máximo de 3 eventos | H74: US$ 300 | I74: F31 | J74: =F74& " " &H74 & " " &G74 -> Hasta US$ 300 por evento, Máximo de 3 eventos
B75: 3 | C75: US$ 300 | D75: S/ 900 | E75: Envío y pago de Electricista por emergencia | F75: Hasta | G75: por evento, Máximo de 3 eventos | H75: US$ 300 | I75: F32 | J75: =F75& " " &H75 & " " &G75 -> Hasta US$ 300 por evento, Máximo de 3 eventos
B76: 4 | C76: US$ 300 | D76: S/ 900 | E76: Envío y pago de Vidriero por emergencia | F76: Hasta | G76: por evento, Máximo de 3 eventos | H76: US$ 300 | I76: F33 | J76: =F76& " " &H76 & " " &G76 -> Hasta US$ 300 por evento, Máximo de 3 eventos
B77: 5 | C77: US$ 500 | D77: S/ 1500 | E77: Limpieza del inmueble asegurado a consecuencia de un siniestro | F77: Hasta | G77: por evento, Máximo de 3 eventos | H77: US$ 500 | I77: F34 | J77: =F77& " " &H77 & " " &G77 -> Hasta US$ 500 por evento, Máximo de 3 eventos
B78: 6 | C78: US$ 80 | D78: S/ 240 | E78: Servicio de Lavado de estores, roller, alfombras | F78: Hasta | G78: (sin copago) por evento, Máximo de 1 evento | H78: US$ 80 | J78: Hasta US$ 80 por evento, máximo de 1 evento, cubriendo la limpieza de una pieza.
B79: 7 | C79: US$ 80 | D79: S/ 240 | E79: Servicio de Lavado de colchón | F79: Hasta | G79: (sin copago) por evento, Máximo de 1 evento | H79: US$ 80 | J79: Hasta US$ 80 por evento, máximo de 1 evento, cubriendo la limpieza de una pieza.
B80: 8 | C80: US$ 80 | D80: S/ 240 | E80: Masajes relajantes a domicilio durante 1 hora | F80: Hasta | G80: (sin copago) por evento, Máximo de 1 evento | H80: US$ 80 | J80: Hasta US$ 80 por evento, máximo de 1 evento, cubriendo la limpieza de una pieza.
B81: 9 | C81: S/ 70 | D81: S/ 70 | E81: Mozo a domicilio | F81: Hasta | G81: (sin copago) por evento, Máximo de 3 eventos | H81: S/ 70 | J81: Hasta máximo de 3 eventos al año, con servicio una vez al mes.
B82: 10 | C82: US$ 75 | D82: S/ 225 | E82: Mantenimiento Preventivo de Línea Blanca | F82: Hasta | G82: (sin copago) por evento, Máximo de 3 eventos | H82: US$ 75 | J82: Hasta US$ 75 por evento, máximo de 3 eventos, cubriendo la revisión de un equipo.
B83: 11 | E83: Orientación telefónica veterinaria para perros las 24H | F83: Hasta | J83: Sin límite
B84: 12 | E84: Hospedaje de perros | F84: Hasta | J84: Hasta máximo de 3 eventos. Se considera 1 día de hospedaje por evento.
C85: US$ 300 | D85: S/ 900 | E85: Asesoría legal por robo dentro del inmueble | F85: Hasta | G85: máximo 3 atenciones por vigencia de la póliza | H85: US$ 300 | J85: =F85& " " &H85 & " " &G85 -> Hasta US$ 300 máximo 3 atenciones por vigencia de la póliza
E86: Asesoría legal teléfonica | J86: Sin límite
C87: S/ 20 | D87: S/ 20 | E87: Baño de mascotas | G87: 2 eventos, Co - pago | H87: S/ 20 | J87: =F87& " " &G87 & " " &H87 & " por evento" -> 2 eventos, Co - pago S/ 20 por evento
C88: US$ 200 | D88: S/ 600 | F88: Hasta el 1% del límite asegurado, mínimo | H88: US$ 200 | I88: F41 | J88: Hasta el 1% del límite asegurado, mínimo US$ 200
C89: US$ 200 | D89: S/ 600 | F89: Hasta 10% del monto indemnizable, mínimo | H89: US$ 200 | I89: F42 | J89: Hasta 10% del monto indemnizable, mínimo US$ 200
C90: US$ 200 | D90: S/ 600 | F90: Hasta 10% del monto indemnizable, mínimo | H90: US$ 200 | I90: F43 | J90: Hasta 10% del monto indemnizable, mínimo US$ 200
C91: US$ 200 | D91: S/ 600 | F91: Hasta 10% del monto indemnizable, mínimo | H91: US$ 200 | I91: F44 | J91: Hasta 10% del monto indemnizable, mínimo US$ 200
C92: US$ 200 | D92: S/ 600 | F92: Hasta 10% del monto indemnizable, mínimo | H92: US$ 200 | I92: F45 | J92: Hasta 10% del monto indemnizable, mínimo US$ 200
C93: US$ 200 | D93: S/ 600 | F93: Hasta 10% del monto indemnizable, mínimo | H93: US$ 200 | I93: F46 | J93: Hasta 10% del monto indemnizable, mínimo US$ 200
C94: US$ 200 | D94: S/ 600 | F94: Hasta 10% del monto indemnizable, mínimo | H94: US$ 200 | I94: F47 | J94: Hasta 10% del monto indemnizable, mínimo US$ 200
C95: US$ 200 | D95: S/ 600 | F95: Hasta 10% del monto indemnizable, mínimo | H95: US$ 200 | I95: F48 | J95: Hasta 10% del monto indemnizable, mínimo US$ 200
C96: US$ 200 | D96: S/ 600 | F96: Hasta 10% del monto indemnizable, mínimo | H96: US$ 200 | I96: F49 | J96: Hasta 10% del monto indemnizable, mínimo US$ 200
C97: US$ 200 | D97: S/ 600 | F97: Hasta 10% del monto indemnizable, mínimo | H97: US$ 200 | I97: F50 | J97: Hasta 10% del monto indemnizable, mínimo US$ 200

Sheet INMUEBLE (hidden)
E1: Ir a Panel
A3: Tipo de bien: Inmueble | B3: tasa de riesgo | D3: Suma asegurada Inmueble | E3: 15000 | W3: Tipo de bien: Inmueble | X3: tasa de riesgo | Y3: tasa comercial | Z3: tasa de riesgo | AA3: tasa comercial | AD3: COMPLETA 1 - Inmueble
B4: Corredores | X4: Corredores | Y4: Corredores | Z4: NNDD | AA4: NNDD
A5: Gastos generales | B5: =tasas!$C$6 -> 0.14 | W5: Gastos generales | X5: 0.0306729 | Y5: 0.03067290513 | Z5: 0.15 | AA5: 0.15
A6: Gastos de comercialización | B6: =tasas!$C$7 -> 0.05 | O6: PRIMA NETA | P6: =+P7/1.03 -> 50 | W6: Gastos de comercialización | X6: 0 | Y6: 0 | Z6: 0.05 | AA6: 0.05
A7: Comisión local | B7: =tasas!$C$8 -> 0.175 | O7: Prima Comercial | P7: =+IF(Cotizador!H37="X",INMUEBLE!L24-INMUEBLE!L24*Cotizador!$M$40,INMUEBLE!K24-INMUEBLE!K24*Cotizador!$M$40) -> 51.5 | W7: Comisión local | X7: 0.2 | Y7: 0.2 | Z7: 0 | AA7: 0
A8: Utilidad antes de Imp | B8: =tasas!$C$9 -> 0 | O8: IGV | P8: =+P7*0.18 -> 9.27 | W8: Utilidad antes de Imp | X8: 0 | Y8: 0 | Z8: 0.0306568 | AA8: 0.03065679971
A9: Tasa comercial %o | B9: =+B10/(1-(B5+B6+B7+B8)) -> 2.621914009 | D9: Tasa Comercial | E9: Prima Neta | F9: Prima | G9: Comision | I9: Operativas | J9: Prima comercial con ajuste | K9: Prima comercial con ajuste de prima mínima | O9: Prima Total | P9: =+P7+P8 -> 60.77 | W9: Tasa comercial %o | X9: =+X10/(1-(X5+X6+X7+X8)) -> 0.7294643592 | Y9: =+SUM(Y11:Y19) ->  | Z9: =+Z10/(1-(Z5+Z6+Z7+Z8)) -> 0.7294490937 | AA9: =+SUM(AA11:AA19) ->  | AD9: Tasa Comercial | AE9: Prima Neta | AF9: Prima | AG9: Comision
A10: Tasa de Riesgo %o | B10: =+SUM(B11:B19) -> 1.664915395 | K10: Dólares | L10: Soles | O10: Comisión Total | P10: =+ROUND(P6*0.2,2) -> 10 | W10: Tasa de Riesgo %o | X10: =+SUM(X11:X19) -> 0.5611967 | Z10: =+SUM(Z11:Z19) -> 0.5611967
A11: Incendio y/o rayo, explosión. Daños por agua, daños por humo, impacto de vehículos y/o aeronaves | B11: =tasas!$C$12 -> 0.2922559904 | D11: =B11/(1-(B5+B6+B7+B8)) -> 0.4602456542 | E11: =ROUND(E3*D11/1000,2) -> 6.9 | F11: =ROUND(E11*(1-B7),2) -> 5.69 | G11: =ROUND(E11*B7,2) -> 1.21 | I11: =+ROUND(E11*1.03,2) -> 7.11 | J11: =+IF(0<=F26>=0,F26+I11,0) -> 7.14 | K11: =+IF(J24<F251,(J11+J251),J11) -> 51.5 | L11: =+IF(J24<F252,(J11+J252),J11) -> 154.5 | W11: Incendio y/o rayo, explosión. Daños por agua, daños por humo, impacto de vehículos y/o aeronaves | X11: 0.5611967 | Y11: =+X11/(1-(#REF!+#REF!+#REF!+#REF!)) ->  | Z11: 0.5611967 | AA11: =+Z11/(1-(#REF!+#REF!+#REF!+#REF!)) ->  | AD11: =X11/(1-(X5+X6+X7+X8)) -> 0.7294643592 | AE11: =ROUND(AE3*AD11/1000,2) -> 0 | AF11: =ROUND(AE11*(1-X7),2) -> 0 | AG11: =ROUND(AE11*X7,2) -> 0
A12: Terremoto, temblor, maremoto, Inundaciones y riesgos de la naturaleza | B12: =tasas!$C$13 -> 1.326 | D12: =B12/(1-(B5+B6+B7+B8)) -> 2.088188976 | E12: =ROUND(E3*D12/1000,2) -> 31.32 | F12: =ROUND(E12*(1-B7),2) -> 25.84 | G12: =ROUND(E12*B7,2) -> 5.48 | I12: 0 | J12: =+I12 -> 0 | K12: =+J12 -> 0 | L12: =+K12 -> 0
A13: Responsabilidad Civil frente a terceros | B13: =tasas!$C$14 -> 0.006267 | D13: =B13/(1-(B5+B6+B7+B8)) -> 0.009869291339 | E13: =ROUND(E3*D13/1000,2) -> 0.15 | F13: =ROUND(E13*(1-B7),2) -> 0.12 | G13: =ROUND(E13*B7,2) -> 0.03 | I13: 0 | J13: =+I13 -> 0 | K13: =+J13 -> 0 | L13: 0
A14: Rotura accidental de vidrio y/o cristales | B14: =tasas!$C$15 -> 0.01376348608 | D14: =B14/(1-(B5+B6+B7+B8)) -> 0.02167478122 | E14: =ROUND(E3*D14/1000,2) -> 0.33 | F14: =ROUND(E14*(1-B7),2) -> 0.27 | G14: =ROUND(E14*B7,2) -> 0.06 | I14: 0 | J14: 0 | K14: 0 | L14: 0
A15: Robo o intento de robo de instalaciones fijas | B15: =tasas!$C$16 -> 0.00109784658 | D15: =B15/(1-(B5+B6+B7+B8)) -> 0.001728892252 | E15: =ROUND(E3*D15/1000,2) -> 0.03 | F15: =ROUND(E15*(1-B7),2) -> 0.02 | G15: =ROUND(E15*B7,2) -> 0.01 | I15: 0 | J15: 0 | K15: 0 | L15: 0
A16: Reembolso de gastos médicos por accidentes de trabajadores del hogar | B16: =tasas!$C$17 -> 0.0029409 | D16: =B16/(1-(B5+B6+B7+B8)) -> 0.004631338583 | E16: =ROUND(E3*D16/1000,2) -> 0.07 | F16: =ROUND(E16*(1-B7),2) -> 0.06 | G16: =ROUND(E16*B7,2) -> 0.01 | I16: 0 | J16: 0 | K16: 0 | L16: 0
A17: Gasto de arrendamiento de vivienda temporal | B17: =tasas!$C$18 -> 0.0045743 | D17: =B17/(1-(B5+B6+B7+B8)) -> 0.007203622047 | E17: =ROUND(E3*D17/1000,2) -> 0.11 | F17: =ROUND(E17*(1-B7),2) -> 0.09 | G17: =ROUND(E17*B7,2) -> 0.02 | I17: 0 | J17: 0 | K17: 0 | L17: 0
A18: Alquiler no percibido por inmueble inhabitable temporalmente | B18: =tasas!$C$19 -> 0.0045743 | D18: =B18/(1-(B5+B6+B7+B8)) -> 0.007203622047 | E18: =ROUND(E3*D18/1000,2) -> 0.11 | F18: =ROUND(E18*(1-B7),2) -> 0.09 | G18: =ROUND(E18*B7,2) -> 0.02 | I18: 0 | J18: 0 | K18: 0 | L18: 0
A19: Asistencias | B19: =tasas!$C$20 -> 0.01344157238 | E19: =E21*B20 -> 0.3 | F19: =F21*B20 -> 0.24 | G19: =G21*B20 -> 0.06 | I19: 0 | J19: =+I19 -> 0 | K19: 0 | L19: 0
A20: Cantidad de asistencias | B20: =tasas!$C$21 -> 6
A21: Tasa por asistencia | B21: =B19/B20 -> 0.002240262063 | D21: =B21/(1-(B5+B6+B7+B8)) -> 0.003527971753 | E21: =ROUND(E3*D21/1000,2) -> 0.05 | F21: =ROUND(E21*(1-B7),2) -> 0.04 | G21: =ROUND(E21*B7,2) -> 0.01
D23: =B10/(1-(B5+B6+B7+B8)) -> 2.621914009 | E23: =ROUND(E3*D23/1000,2) -> 39.33 | F23: =ROUND(E23*(1-B7),2) -> 32.45 | G23: =ROUND(E23*B7,2) -> 6.88
E24: Suma de Cob | F24: =SUM(F11:F19) -> 32.42 | G24: =SUM(G11:G19) -> 6.9 | I24: =SUM(I11:I19) -> 7.11 | J24: =SUM(J11:J19) -> 7.14 | K24: =SUM(K11:K19) -> 51.5 | L24: =SUM(L11:L19) -> 154.5
D25: =+((D23*E3)/1000)+F26 -> 39.35871013 | E25: Esperado | F25: =E23*(1-B7) -> 32.44725 | G25: =E23*B7 -> 6.88275
D26: =+D25*1.03*1.18 -> 47.83657629 | E26: Faltante | F26: =ROUND(F25-F24,2) -> 0.03 | G26: =G25-G24 -> -0.01725
A29: Tipo de bien: Inmueble | B29: tasa de riesgo | W29: Tipo de bien: Inmueble | X29: tasa de riesgo | Y29: tasa comercial | Z29: tasa de riesgo | AA29: tasa comercial | AD29: COMPLETA 2 - Inmueble
B30: Corredores | X30: Corredores | Y30: Corredores | Z30: NNDD | AA30: NNDD
A31: Gastos generales | B31: 0.0306729 | W31: Gastos generales | X31: 0.0306729 | Y31: 0.03067290513 | Z31: 0.15 | AA31: 0.15
A32: Gastos de comercialización | B32: 0 | W32: Gastos de comercialización | X32: 0 | Y32: 0 | Z32: 0.05 | AA32: 0.05
A33: Comisión local | B33: 0.2 | W33: Comisión local | X33: 0.2 | Y33: 0.2 | Z33: 0 | AA33: 0
A34: Utilidad antes de Imp | B34: 0 | W34: Utilidad antes de Imp | X34: 0 | Y34: 0 | Z34: 0.0306568 | AA34: 0.03065679971
A35: Tasa comercial %o | B35: =+B36/(1-(B31+B32+B33+B34)) -> 2.200058337 | E35: Prima Neta | F35: Prima | G35: Comisión | W35: Tasa comercial %o | X35: =+X36/(1-(X31+X32+X33+X34)) -> 2.200058337 | Y35: =+SUM(Y37:Y47) ->  | Z35: =+Z36/(1-(Z31+Z32+Z33+Z34)) -> 2.200012036 | AA35: =+SUM(AA37:AA47) ->  | AD35: Tasa Comercial | AE35: Prima Neta | AF35: Prima | AG35: Comisión
A36: Tasa de Riesgo %o | B36: =+SUM(B37:B47) -> 1.6925645 | W36: Tasa de Riesgo %o | X36: =+SUM(X37:X47) -> 1.6925645 | Z36: =+SUM(Z37:Z47) -> 1.6925643
A37: Incendio y/o rayo, explosión. Daños por agua, daños por humo, impacto de vehículos y/o aeronaves | B37: 0.5611967 | E37: =ROUND(E29*D37/1000,2) -> 0 | F37: =ROUND(E37*(1-B33),2) -> 0 | G37: =ROUND(E37*B33,2) -> 0 | W37: Incendio y/o rayo, explosión. Daños por agua, daños por humo, impacto de vehículos y/o aeronaves | X37: 0.5611967 | Y37: =+X37/(1-(#REF!+#REF!+#REF!+#REF!)) ->  | Z37: 0.5611967 | AA37: =+Z37/(1-(#REF!+#REF!+#REF!+#REF!)) ->  | AD37: =X37/(1-(X31+X32+X33+X34)) -> 0.7294643592 | AE37: =ROUND(AE29*AD37/1000,2) -> 0 | AF37: =ROUND(AE37*(1-X33),2) -> 0 | AG37: =ROUND(AE37*X33,2) -> 0
A38: Terremoto, temblor | B38: 0.9250879 | E38: =ROUND(E29*D38/1000,2) -> 0 | F38: =ROUND(E38*(1-B33),2) -> 0 | G38: =ROUND(E38*B33,2) -> 0 | W38: Terremoto, temblor | X38: 0.9250879 | Y38: =+X38/(1-(#REF!+#REF!+#REF!+#REF!)) ->  | Z38: 0.9250879 | AA38: =+Z38/(1-(#REF!+#REF!+#REF!+#REF!)) ->  | AD38: =X38/(1-(X31+X32+X33+X34)) -> 1.202463685 | AE38: =ROUND(AE29*AD38/1000,2) -> 0 | AF38: =ROUND(AE38*(1-X33),2) -> 0 | AG38: =ROUND(AE38*X33,2) -> 0
A39: Riesgos de la naturaleza | B39: 0.1027875 | E39: =ROUND(E29*D39/1000,2) -> 0 | F39: =ROUND(E39*(1-B33),2) -> 0 | G39: =ROUND(E39*B33,2) -> 0 | W39: Riesgos de la naturaleza | X39: 0.1027875 | Y39: =+X39/(1-(#REF!+#REF!+#REF!+#REF!)) ->  | Z39: 0.1027875 | AA39: =+Z39/(1-(#REF!+#REF!+#REF!+#REF!)) ->  | AD39: =X39/(1-(X31+X32+X33+X34)) -> 0.1336070184 | AE39: =ROUND(AE29*AD39/1000,2) -> 0 | AF39: =ROUND(AE39*(1-X33),2) -> 0 | AG39: =ROUND(AE39*X33,2) -> 0
A40: Riesgos políticos y sociales | B40: 0.005 | E40: =ROUND(E29*D40/1000,2) -> 0 | F40: =ROUND(E40*(1-B33),2) -> 0 | G40: =ROUND(E40*B33,2) -> 0 | W40: Riesgos políticos y sociales | X40: 0.005 | Y40: =+X40/(1-(#REF!+#REF!+#REF!+#REF!)) ->  | Z40: 0.005 | AA40: =+Z40/(1-(#REF!+#REF!+#REF!+#REF!)) ->  | AD40: =X40/(1-(X31+X32+X33+X34)) -> 0.006499186107 | AE40: =ROUND(AE29*AD40/1000,2) -> 0 | AF40: =ROUND(AE40*(1-X33),2) -> 0 | AG40: =ROUND(AE40*X33,2) -> 0
A41: Responsabilidad Civil frente a terceros | B41: 0.006267 | E41: =ROUND(E29*D41/1000,2) -> 0 | F41: =ROUND(E41*(1-B33),2) -> 0 | G41: =ROUND(E41*B33,2) -> 0 | W41: Responsabilidad Civil frente a terceros | X41: 0.006267 | Y41: =+X41/(1-(#REF!+#REF!+#REF!+#REF!)) ->  | Z41: 0.006267 | AA41: =+Z41/(1-(#REF!+#REF!+#REF!+#REF!)) ->  | AD41: =X41/(1-(X31+X32+X33+X34)) -> 0.008146079866 | AE41: =ROUND(AE29*AD41/1000,2) -> 0 | AF41: =ROUND(AE41*(1-X33),2) -> 0 | AG41: =ROUND(AE41*X33,2) -> 0
A42: Rotura accidental de vidrio y/o cristales | B42: 0.0172741 | E42: =ROUND(E29*D42/1000,2) -> 0 | F42: =ROUND(E42*(1-B33),2) -> 0 | G42: =ROUND(E42*B33,2) -> 0 | W42: Rotura accidental de vidrio y/o cristales | X42: 0.0172741 | Y42: =+X42/(1-(#REF!+#REF!+#REF!+#REF!)) ->  | Z42: 0.0172741 | AA42: =+Z42/(1-(#REF!+#REF!+#REF!+#REF!)) ->  | AD42: =X42/(1-(X31+X32+X33+X34)) -> 0.02245351815 | AE42: =ROUND(AE29*AD42/1000,2) -> 0 | AF42: =ROUND(AE42*(1-X33),2) -> 0 | AG42: =ROUND(AE42*X33,2) -> 0
A43: Robo o intento de robo de instalaciones fijas | B43: 0.0003616 | E43: =ROUND(E29*D43/1000,2) -> 0 | F43: =ROUND(E43*(1-B33),2) -> 0 | G43: =ROUND(E43*B33,2) -> 0 | W43: Robo o intento de robo de instalaciones fijas | X43: 0.0003616 | Y43: =+X43/(1-(#REF!+#REF!+#REF!+#REF!)) ->  | Z43: 0.0003616 | AA43: =+Z43/(1-(#REF!+#REF!+#REF!+#REF!)) ->  | AD43: =X43/(1-(X31+X32+X33+X34)) -> 0.0004700211393 | AE43: =ROUND(AE29*AD43/1000,2) -> 0 | AF43: =ROUND(AE43*(1-X33),2) -> 0 | AG43: =ROUND(AE43*X33,2) -> 0
A44: Reembolso de gastos médicos por accidentes de trabajadores del hogar | B44: 0.0029409 | E44: =ROUND(E29*D44/1000,2) -> 0 | F44: =ROUND(E44*(1-B33),2) -> 0 | G44: =ROUND(E44*B33,2) -> 0 | W44: Reembolso de gastos médicos por accidentes de trabajadores del hogar | X44: 0.0029409 | Y44: =+X44/(1-(#REF!+#REF!+#REF!+#REF!)) ->  | Z44: 0.0029409 | AA44: =+Z44/(1-(#REF!+#REF!+#REF!+#REF!)) ->  | AD44: =X44/(1-(X31+X32+X33+X34)) -> 0.003822691284 | AE44: =ROUND(AE29*AD44/1000,2) -> 0 | AF44: =ROUND(AE44*(1-X33),2) -> 0 | AG44: =ROUND(AE44*X33,2) -> 0
A45: Gasto de arrendamiento de vivienda temporal | B45: 0.0045743 | E45: =ROUND(E29*D45/1000,2) -> 0 | F45: =ROUND(E45*(1-B33),2) -> 0 | G45: =ROUND(E45*B33,2) -> 0 | W45: Gasto de arrendamiento de vivienda temporal | X45: 0.0045743 | Y45: =+X45/(1-(#REF!+#REF!+#REF!+#REF!)) ->  | Z45: 0.0045743 | AA45: =+Z45/(1-(#REF!+#REF!+#REF!+#REF!)) ->  | AD45: =X45/(1-(X31+X32+X33+X34)) -> 0.005945845402 | AE45: =ROUND(AE29*AD45/1000,2) -> 0 | AF45: =ROUND(AE45*(1-X33),2) -> 0 | AG45: =ROUND(AE45*X33,2) -> 0
A46: Alquiler no percibido por inmueble inhabitable temporalmente | B46: 0.0045743 | E46: =ROUND(E29*D46/1000,2) -> 0 | F46: =ROUND(E46*(1-B33),2) -> 0 | G46: =ROUND(E46*B33,2) -> 0 | W46: Alquiler no percibido por inmueble inhabitable temporalmente | X46: 0.0045743 | Y46: =+X46/(1-(#REF!+#REF!+#REF!+#REF!)) ->  | Z46: 0.0045743 | AA46: =+Z46/(1-(#REF!+#REF!+#REF!+#REF!)) ->  | AD46: =X46/(1-(X31+X32+X33+X34)) -> 0.005945845402 | AE46: =ROUND(AE29*AD46/1000,2) -> 0 | AF46: =ROUND(AE46*(1-X33),2) -> 0 | AG46: =ROUND(AE46*X33,2) -> 0
A47: Asistencias | B47: 0.0625002 | E47: =E49*B48 -> 0 | F47: =F49*B48 -> 0 | G47: =G49*B48 -> 0 | W47: Asistencias | X47: 0.0625002 | Y47: =+X47/(1-(#REF!+#REF!+#REF!+#REF!)) ->  | Z47: 0.0625 | AA47: =+Z47/(1-(#REF!+#REF!+#REF!+#REF!)) ->  | AE47: =AE49*X48 -> 0 | AF47: =AF49*X48 -> 0 | AG47: =AG49*X48 -> 0
A48: Cantidad de asistencias | B48: 6 | W48: Cantidad de asistencias | X48: 6 | Y48: 6 | Z48: 6 | AA48: 6
A49: Tasa por asistencia | B49: =B47/B48 -> 0.0104167 | E49: =ROUND(E29*D49/1000,2) -> 0 | F49: =ROUND(E49*(1-B33),2) -> 0 | G49: =ROUND(E49*B33,2) -> 0 | W49: Tasa por asistencia | X49: =X47/X48 -> 0.0104167 | Y49: =+ROUND(Y47/Y48,7) ->  | Z49: 0.0104167 | AA49: 0.0104167 | AD49: =X49/(1-(X31+X32+X33+X34)) -> 0.01354001438 | AE49: =ROUND(AE29*AD49/1000,2) -> 0 | AF49: =ROUND(AE49*(1-X33),2) -> 0 | AG49: =ROUND(AE49*X33,2) -> 0
E51: =ROUND(E29*D51/1000,2) -> 0 | F51: =ROUND(E51*(1-B33),2) -> 0 | G51: =ROUND(E51*B33,2) -> 0 | AD51: =X36/(1-(X31+X32+X33+X34)) -> 2.200058337 | AE51: =ROUND(AE29*AD51/1000,2) -> 0 | AF51: =ROUND(AE51*(1-X33),2) -> 0 | AG51: =ROUND(AE51*X33,2) -> 0
E52: Suma de Cob | F52: =SUM(F37:F47) -> 0 | G52: =SUM(G37:G47) -> 0 | AE52: Suma de Cob | AF52: =SUM(AF37:AF47) -> 0 | AG52: =SUM(AG37:AG47) -> 0
E53: Esperado | F53: =E51*(1-B33) -> 0 | G53: =E51*B33 -> 0 | AE53: Esperado | AF53: =AE51*(1-X33) -> 0 | AG53: =AE51*X33 -> 0
E54: Faltante | F54: =F53-F52 -> 0 | G54: =G53-G52 -> 0 | AE54: Faltante | AF54: =AF53-AF52 -> 0 | AG54: =AG53-AG52 -> 0
A58: Tipo de bien: Bienes | B58: tasa de riesgo | W58: Tipo de bien: Bienes | X58: tasa de riesgo | Y58: tasa comercial | Z58: tasa de riesgo | AA58: tasa comercial | AD58: COMPLETA 2 - Contenido
B59: Corredores | X59: Corredores | Y59: Corredores | Z59: NNDD | AA59: NNDD
A60: Gastos generales | B60: 0.1142203 | W60: Gastos generales | X60: 0.1142203 | Y60: 0.03067290513 | Z60: 0.1396364 | AA60: 0.15
A61: Gastos de comercialización | B61: 0 | W61: Gastos de comercialización | X61: 0 | Y61: 0 | Z61: 0.05 | AA61: 0.05
A62: Comisión local | B62: 0.2 | W62: Comisión local | X62: 0.2 | Y62: 0.2 | Z62: 0 | AA62: 0
A63: Utilidad antes de Imp | B63: 0 | W63: Utilidad antes de Imp | X63: 0 | Y63: 0 | Z63: 0 | AA63: 0.03065679971
A64: Tasa comercial %o | B64: =+B65/(1-(B60+B61+B62+B63)) -> 2.200087579 | E64: Prima Neta | F64: Prima | G64: Comisión | W64: Tasa comercial %o | X64: =+X65/(1-(X60+X61+X62+X63)) -> 2.200087579 | Y64: =+SUM(Y66:Y70) ->  | Z64: =+Z65/(1-(Z60+Z61+Z62+Z63)) -> 2.200315142 | AA64: =+SUM(AA66:AA70) ->  | AD64: Tasa Comercial | AE64: Prima Neta | AF64: Prima | AG64: Comisión
A65: Tasa de Riesgo %o | B65: =+SUM(B66:B70) -> 1.5087754 | W65: Tasa de Riesgo %o | X65: =+SUM(X66:X70) -> 1.5087754 | Z65: =+SUM(Z66:Z70) -> 1.7830553
A66: Incendio y/o rayo, explosión. Daños por agua, daños por humo, impacto de vehículos y/o aeronaves | B66: 0.4133998 | E66: =ROUND(E58*D66/1000, 2) -> 0 | F66: =ROUND(E66*(1-B62),2) -> 0 | G66: =ROUND(E66*B62,2) -> 0 | W66: Incendio y/o rayo, explosión. Daños por agua, daños por humo, impacto de vehículos y/o aeronaves | X66: 0.4133998 | Y66: =+X66/(1-(#REF!+#REF!+#REF!+#REF!)) ->  | Z66: 0.4133998 | AA66: =+Z66/(1-(#REF!+#REF!+#REF!+#REF!)) ->  | AD66: =X66/(1-(X60+X61+X62+X63)) -> 0.6028172021 | AE66: =ROUND(AE58*AD66/1000, 2) -> 0 | AF66: =ROUND(AE66*(1-X62),2) -> 0 | AG66: =ROUND(AE66*X62,2) -> 0
A67: Terremoto, temblor | B67: 0.9250879 | E67: =ROUND(E58*D67/1000,2) -> 0 | F67: =ROUND(E67*(1-B62),2) -> 0 | G67: =ROUND(E67*B62,2) -> 0 | W67: Terremoto, temblor | X67: 0.9250879 | Y67: =+X67/(1-(#REF!+#REF!+#REF!+#REF!)) ->  | Z67: 0.9250879 | AA67: =+Z67/(1-(#REF!+#REF!+#REF!+#REF!)) ->  | AD67: =X67/(1-(X60+X61+X62+X63)) -> 1.348957836 | AE67: =ROUND(AE58*AD67/1000,2) -> 0 | AF67: =ROUND(AE67*(1-X62),2) -> 0 | AG67: =ROUND(AE67*X62,2) -> 0
A68: Riesgos de la naturaleza | B68: 0.1027875 | E68: =ROUND(E58*D68/1000,2) -> 0 | F68: =ROUND(E68*(1-B62),2) -> 0 | G68: =ROUND(E68*B62,2) -> 0 | W68: Riesgos de la naturaleza | X68: 0.1027875 | Y68: =+X68/(1-(#REF!+#REF!+#REF!+#REF!)) ->  | Z68: 0.1027875 | AA68: =+Z68/(1-(#REF!+#REF!+#REF!+#REF!)) ->  | AD68: =X68/(1-(X60+X61+X62+X63)) -> 0.1498841392 | AE68: =ROUND(AE58*AD68/1000,2) -> 0 | AF68: =ROUND(AE68*(1-X62),2) -> 0 | AG68: =ROUND(AE68*X62,2) -> 0
A69: Riesgos políticos y sociales | B69: 0.005 | E69: =ROUND(E58*D69/1000,2) -> 0 | F69: =ROUND(E69*(1-B62),2) -> 0 | G69: =ROUND(E69*B62,2) -> 0 | W69: Riesgos políticos y sociales | X69: 0.005 | Y69: =+X69/(1-(#REF!+#REF!+#REF!+#REF!)) ->  | Z69: 0.005 | AA69: =+Z69/(1-(#REF!+#REF!+#REF!+#REF!)) ->  | AD69: =X69/(1-(X60+X61+X62+X63)) -> 0.007290971138 | AE69: =ROUND(AE58*AD69/1000,2) -> 0 | AF69: =ROUND(AE69*(1-X62),2) -> 0 | AG69: =ROUND(AE69*X62,2) -> 0
A70: Asistencias | B70: 0.0625002 | E70: =E72*B71 -> 0 | F70: =F72*B71 -> 0 | G70: =G72*B71 -> 0 | J70: =+I70 -> 0 | W70: Asistencias | X70: 0.0625002 | Y70: =+X70/(1-(#REF!+#REF!+#REF!+#REF!)) ->  | Z70: 0.3367801 | AA70: =+Z70/(1-(#REF!+#REF!+#REF!+#REF!)) ->  | AE70: =AE72*X71 -> 0 | AF70: =AF72*X71 -> 0 | AG70: =AG72*X71 -> 0
A71: Cantidad de asistencias | B71: 6 | W71: Cantidad de asistencias | X71: 6 | Y71: 6 | Z71: 6 | AA71: 6
A72: Tasa por asistencia | B72: =B70/B71 -> 0.0104167 | E72: =ROUND(E58*D72/1000,2) -> 0 | F72: =ROUND(E72*(1-B62),2) -> 0 | G72: =ROUND(E72*B62,2) -> 0 | W72: Tasa por asistencia | X72: =X70/X71 -> 0.0104167 | Y72: =+ROUND(Y70/Y71,7) ->  | Z72: 0.0104167 | AA72: 0.0104167 | AD72: =X72/(1-(X60+X61+X62+X63)) -> 0.01518957181 | AE72: =ROUND(AE58*AD72/1000,2) -> 0 | AF72: =ROUND(AE72*(1-X62),2) -> 0 | AG72: =ROUND(AE72*X62,2) -> 0
E74: =ROUND(E58*D74/1000,2) -> 0 | F74: =ROUND(E74*(1-B62),2) -> 0 | G74: =ROUND(E74*B62,2) -> 0 | AD74: =X65/(1-(X60+X61+X62+X63)) -> 2.200087579 | AE74: =ROUND(AE58*AD74/1000,2) -> 0 | AF74: =ROUND(AE74*(1-X62),2) -> 0 | AG74: =ROUND(AE74*X62,2) -> 0
E75: Suma de Cob | F75: =SUM(F66:F70) -> 0 | G75: =SUM(G66:G70) -> 0 | AE75: Suma de Cob | AF75: =SUM(AF66:AF70) -> 0 | AG75: =SUM(AG66:AG70) -> 0
E76: Esperado | F76: =E74*(1-B62) -> 0 | G76: =E74*B62 -> 0 | AE76: Esperado | AF76: =AE74*(1-X62) -> 0 | AG76: =AE74*X62 -> 0
E77: Faltante | F77: =F76-F75 -> 0 | G77: =G76-G75 -> 0 | AE77: Faltante | AF77: =AF76-AF75 -> 0 | AG77: =AG76-AG75 -> 0
A80: Tipo de bien: Bienes con robo | B80: Corredores | W80: Tipo de bien: Bienes con robo | X80: Corredores | Y80: Corredores | Z80: NNDD | AA80: NNDD
A81: Gastos generales | B81: 0.15 | W81: Gastos generales | X81: 0.15 | Y81: 0.15 | Z81: 0.15 | AA81: 0.15
A82: Gastos de comercialización | B82: 0.05 | W82: Gastos de comercialización | X82: 0.05 | Y82: 0.05 | Z82: 0.05 | AA82: 0.05
A83: Comisión local | B83: 0.2 | W83: Comisión local | X83: 0.2 | Y83: 0.2 | Z83: 0 | AA83: 0
A84: Utilidad antes de Imp | B84: 0.0948186 | W84: Utilidad antes de Imp | X84: 0.0948186 | Y84: 0.09481861887 | Z84: 0.2947788 | AA84: 0.2947788137
A85: Tasa comercial %o | B85: =+B86/(1-(B81+B82+B83+B84)) -> 4.999900828 | E85: Prima Neta | F85: Prima | G85: Comisión | W85: Tasa comercial %o | X85: =+X86/(1-(X81+X82+X83+X84)) -> 4.999900828 | Y85: =+SUM(Y87:Y90) ->  | Z85: =+Z86/(1-(Z81+Z82+Z83+Z84)) -> 4.999506949 | AA85: =+SUM(AA87:AA90) ->  | AD85: Tasa Comercial | AE85: Prima Neta | AF85: Prima | AG85: Comisión
A86: Tasa de Riesgo %o | B86: =+SUM(B87:B90) -> 2.5258569 | W86: Tasa de Riesgo %o | X86: =+SUM(X87:X90) -> 2.5258569 | Z86: =+SUM(Z87:Z90) -> 2.5258569
A87: Robo y/o daños por intento de robo de bienes | B87: 2.4425075 | E87: =ROUND(E58*D87/1000,2) -> 0 | F87: =ROUND(E87*(1-B83),2) -> 0 | G87: =ROUND(E87*B83,2) -> 0 | W87: Robo y/o daños por intento de robo de bienes | X87: 2.4425075 | Y87: =+X87/(1-(#REF!+#REF!+#REF!+#REF!)) ->  | Z87: 2.4425075 | AA87: =+Z87/(1-(#REF!+#REF!+#REF!+#REF!)) ->  | AD87: =X87/(1-(X81+X82+X83+X84)) -> 4.834911776 | AE87: =ROUND(AE58*AD87/1000,2) -> 0 | AF87: =ROUND(AE87*(1-X83),2) -> 0 | AG87: =ROUND(AE87*X83,2) -> 0
A88: Robo y/o daños por intento de robo de bienes especiales: joyas, platería, relojes, obras de arte, cámaras fotográficas o de video, laptops y bicicletas dentro de la vivienda o que estén siendo portados fuera de la vivienda | B88: 0.062312 | E88: =ROUND(E58*D88/1000,2) -> 0 | F88: =ROUND(E88*(1-B83),2) -> 0 | G88: =ROUND(E88*B83,2) -> 0 | W88: Robo y/o daños por intento de robo de bienes especiales: joyas, platería, relojes, obras de arte, cámaras fotográficas o de video, laptops y bicicletas dentro de la vivienda o que estén siendo portados fuera de la vivienda | X88: 0.062312 | Y88: =+X88/(1-(#REF!+#REF!+#REF!+#REF!)) ->  | Z88: 0.062312 | AA88: =+Z88/(1-(#REF!+#REF!+#REF!+#REF!)) ->  | AD88: =X88/(1-(X81+X82+X83+X84)) -> 0.1233457922 | AE88: =ROUND(AE58*AD88/1000,2) -> 0 | AF88: =ROUND(AE88*(1-X83),2) -> 0 | AG88: =ROUND(AE88*X83,2) -> 0
A89: Hurto | B89: 0.0139687 | E89: =ROUND(E58*D89/1000,2) -> 0 | F89: =ROUND(E89*(1-B83),2) -> 0 | G89: =ROUND(E89*B83,2) -> 0 | W89: Hurto | X89: 0.0139687 | Y89: =+X89/(1-(#REF!+#REF!+#REF!+#REF!)) ->  | Z89: 0.0139687 | AA89: =+Z89/(1-(#REF!+#REF!+#REF!+#REF!)) ->  | AD89: =X89/(1-(X81+X82+X83+X84)) -> 0.02765085967 | AE89: =ROUND(AE58*AD89/1000,2) -> 0 | AF89: =ROUND(AE89*(1-X83),2) -> 0 | AG89: =ROUND(AE89*X83,2) -> 0
A90: Deshonestidad de trabajadores del hogar | B90: 0.0070687 | E90: =ROUND(E58*D90/1000,2) -> 0 | F90: =ROUND(E90*(1-B83),2) -> 0 | G90: =ROUND(E90*B83,2) -> 0 | W90: Deshonestidad de trabajadores del hogar | X90: 0.0070687 | Y90: =+X90/(1-(#REF!+#REF!+#REF!+#REF!)) ->  | Z90: 0.0070687 | AA90: =+Z90/(1-(#REF!+#REF!+#REF!+#REF!)) ->  | AD90: =X90/(1-(X81+X82+X83+X84)) -> 0.01399239956 | AE90: =ROUND(AE58*AD90/1000,2) -> 0 | AF90: =ROUND(AE90*(1-X83),2) -> 0 | AG90: =ROUND(AE90*X83,2) -> 0
E92: =ROUND(E58*D92/1000,2) -> 0 | F92: =ROUND(E92*(1-B83),2) -> 0 | G92: =ROUND(E92*B83,2) -> 0 | AD92: =X86/(1-(X81+X82+X83+X84)) -> 4.999900828 | AE92: =ROUND(AE58*AD92/1000,2) -> 0 | AF92: =ROUND(AE92*(1-X83),2) -> 0 | AG92: =ROUND(AE92*X83,2) -> 0
E94: =E51+E74+E92 -> 0 | F94: =IF(F96<>F95,F95,F96) ->  | G94: =IF(G96<>G95,G95,G96) ->  | AD94: TOTAL COMPLETA 2 | AE94: =AE51+AE74+AE92 -> 0 | AF94: =IF(AF96<>AF95,AF95,AF96) ->  | AG94: =IF(AG96<>AG95,AG95,AG96) -> 
E95: Suma Ajustada | F95: =#REF!+#REF! ->  | G95: =#REF!+#REF! ->  | AE95: Suma Ajustada | AF95: =#REF!+#REF! ->  | AG95: =#REF!+#REF! -> 
E96: Suma Esperada | F96: =F51+F74+F92 -> 0 | G96: =G51+G74+G92 -> 0 | AE96: Suma Esperada | AF96: =AF51+AF74+AF92 -> 0 | AG96: =AE94*X83 -> 0
A105: Tipo de bien: Inmueble | B105: tasa de riesgo | W105: Tipo de bien: Inmueble | X105: tasa de riesgo | Y105: tasa comercial | Z105: tasa de riesgo | AA105: tasa comercial | AD105: COMPLETA 3 - Inmueble
B106: Corredores | X106: Corredores | Y106: Corredores | Z106: NNDD | AA106: NNDD
A107: Gastos generales | B107: 0.0306729 | W107: Gastos generales | X107: 0.0306729 | Y107: 0.03067290513 | Z107: 0.15 | AA107: 0.15
A108: Gastos de comercialización | B108: 0 | W108: Gastos de comercialización | X108: 0 | Y108: 0 | Z108: 0.05 | AA108: 0.05
A109: Comisión local | B109: 0.2 | W109: Comisión local | X109: 0.2 | Y109: 0.2 | Z109: 0 | AA109: 0
A110: Utilidad antes de Imp | B110: 0 | W110: Utilidad antes de Imp | X110: 0 | Y110: 0 | Z110: 0.0306568 | AA110: 0.03065679971
A111: Tasa comercial %o | B111: =+B112/(1-(B107+B108+B109+B110)) -> 2.200058337 | E111: Prima Neta | F111: Prima | G111: Comisión | W111: Tasa comercial %o | X111: =+X112/(1-(X107+X108+X109+X110)) -> 2.200058337 | Y111: =+SUM(Y113:Y123) ->  | Z111: =+Z112/(1-(Z107+Z108+Z109+Z110)) -> 2.200012036 | AA111: =+SUM(AA113:AA123) ->  | AD111: Tasa Comercial | AE111: Prima Neta | AF111: Prima | AG111: Comisión
A112: Tasa de Riesgo %o | B112: =+SUM(B113:B123) -> 1.6925645 | W112: Tasa de Riesgo %o | X112: =+SUM(X113:X123) -> 1.6925645 | Z112: =+SUM(Z113:Z123) -> 1.6925643
A113: Incendio y/o rayo, explosión. Daños por agua, daños por humo, impacto de vehículos y/o aeronaves | B113: 0.5611967 | E113: =ROUND(E105*D113/1000,2) -> 0 | F113: =ROUND(E113*(1-B109),2) -> 0 | G113: =ROUND(E113*B109,2) -> 0 | W113: Incendio y/o rayo, explosión. Daños por agua, daños por humo, impacto de vehículos y/o aeronaves | X113: 0.5611967 | Y113: =+X113/(1-(#REF!+#REF!+#REF!+#REF!)) ->  | Z113: 0.5611967 | AA113: =+Z113/(1-(#REF!+#REF!+#REF!+#REF!)) ->  | AD113: =X113/(1-(X107+X108+X109+X110)) -> 0.7294643592 | AE113: =ROUND(AE105*AD113/1000,2) -> 0 | AF113: =ROUND(AE113*(1-X109),2) -> 0 | AG113: =ROUND(AE113*X109,2) -> 0
A114: Terremoto, temblor | B114: 0.9250879 | E114: =ROUND(E105*D114/1000,2) -> 0 | F114: =ROUND(E114*(1-B109),2) -> 0 | G114: =ROUND(E114*B109,2) -> 0 | W114: Terremoto, temblor | X114: 0.9250879 | Y114: =+X114/(1-(#REF!+#REF!+#REF!+#REF!)) ->  | Z114: 0.9250879 | AA114: =+Z114/(1-(#REF!+#REF!+#REF!+#REF!)) ->  | AD114: =X114/(1-(X107+X108+X109+X110)) -> 1.202463685 | AE114: =ROUND(AE105*AD114/1000,2) -> 0 | AF114: =ROUND(AE114*(1-X109),2) -> 0 | AG114: =ROUND(AE114*X109,2) -> 0
A115: Riesgos de la naturaleza | B115: 0.1027875 | E115: =ROUND(E105*D115/1000,2) -> 0 | F115: =ROUND(E115*(1-B109),2) -> 0 | G115: =ROUND(E115*B109,2) -> 0 | W115: Riesgos de la naturaleza | X115: 0.1027875 | Y115: =+X115/(1-(#REF!+#REF!+#REF!+#REF!)) ->  | Z115: 0.1027875 | AA115: =+Z115/(1-(#REF!+#REF!+#REF!+#REF!)) ->  | AD115: =X115/(1-(X107+X108+X109+X110)) -> 0.1336070184 | AE115: =ROUND(AE105*AD115/1000,2) -> 0 | AF115: =ROUND(AE115*(1-X109),2) -> 0 | AG115: =ROUND(AE115*X109,2) -> 0
A116: Riesgos políticos y sociales | B116: 0.005 | E116: =ROUND(E105*D116/1000,2) -> 0 | F116: =ROUND(E116*(1-B109),2) -> 0 | G116: =ROUND(E116*B109,2) -> 0 | W116: Riesgos políticos y sociales | X116: 0.005 | Y116: =+X116/(1-(#REF!+#REF!+#REF!+#REF!)) ->  | Z116: 0.005 | AA116: =+Z116/(1-(#REF!+#REF!+#REF!+#REF!)) ->  | AD116: =X116/(1-(X107+X108+X109+X110)) -> 0.006499186107 | AE116: =ROUND(AE105*AD116/1000,2) -> 0 | AF116: =ROUND(AE116*(1-X109),2) -> 0 | AG116: =ROUND(AE116*X109,2) -> 0
A117: Responsabilidad Civil frente a terceros | B117: 0.006267 | E117: =ROUND(E105*D117/1000,2) -> 0 | F117: =ROUND(E117*(1-B109),2) -> 0 | G117: =ROUND(E117*B109,2) -> 0 | W117: Responsabilidad Civil frente a terceros | X117: 0.006267 | Y117: =+X117/(1-(#REF!+#REF!+#REF!+#REF!)) ->  | Z117: 0.006267 | AA117: =+Z117/(1-(#REF!+#REF!+#REF!+#REF!)) ->  | AD117: =X117/(1-(X107+X108+X109+X110)) -> 0.008146079866 | AE117: =ROUND(AE105*AD117/1000,2) -> 0 | AF117: =ROUND(AE117*(1-X109),2) -> 0 | AG117: =ROUND(AE117*X109,2) -> 0
A118: Rotura accidental de vidrio y/o cristales | B118: 0.0172741 | E118: =ROUND(E105*D118/1000,2) -> 0 | F118: =ROUND(E118*(1-B109),2) -> 0 | G118: =ROUND(E118*B109,2) -> 0 | W118: Rotura accidental de vidrio y/o cristales | X118: 0.0172741 | Y118: =+X118/(1-(#REF!+#REF!+#REF!+#REF!)) ->  | Z118: 0.0172741 | AA118: =+Z118/(1-(#REF!+#REF!+#REF!+#REF!)) ->  | AD118: =X118/(1-(X107+X108+X109+X110)) -> 0.02245351815 | AE118: =ROUND(AE105*AD118/1000,2) -> 0 | AF118: =ROUND(AE118*(1-X109),2) -> 0 | AG118: =ROUND(AE118*X109,2) -> 0
A119: Robo o intento de robo de instalaciones fijas | B119: 0.0003616 | E119: =ROUND(E105*D119/1000,2) -> 0 | F119: =ROUND(E119*(1-B109),2) -> 0 | G119: =ROUND(E119*B109,2) -> 0 | W119: Robo o intento de robo de instalaciones fijas | X119: 0.0003616 | Y119: =+X119/(1-(#REF!+#REF!+#REF!+#REF!)) ->  | Z119: 0.0003616 | AA119: =+Z119/(1-(#REF!+#REF!+#REF!+#REF!)) ->  | AD119: =X119/(1-(X107+X108+X109+X110)) -> 0.0004700211393 | AE119: =ROUND(AE105*AD119/1000,2) -> 0 | AF119: =ROUND(AE119*(1-X109),2) -> 0 | AG119: =ROUND(AE119*X109,2) -> 0
